Body,Name of Body,Date,Transaction Number,Invoice Number,Amount,Supplier Name,Supplier ID,VAT Reg no,Expense Area,Expense Type,Expense Code,Creditor Type
18,Devon County Council,08/08/2012,CFADRES30066465,REDACTED UNDER DP ACT,1424,18 MARINE PARADE,265062,,People Services,Care Spot - Private (3rd),5701,B
18,Devon County Council,22/08/2012,CFADRES30067137,REDACTED UNDER DP ACT,1424,18 MARINE PARADE,265062,,People Services,Care Spot - Private (3rd),5701,B
18,Devon County Council,08/08/2012,CFADRES30066279,REDACTED UNDER DP ACT,3339.55,AARON COURT,173212,,People Services,Care Spot - Private (3rd),5701,B
18,Devon County Council,22/08/2012,CFADRES30066953,REDACTED UNDER DP ACT,5859.32,AARON COURT,173212,,People Services,Care Spot - Private (3rd),5701,B
18,Devon County Council,08/08/2012,CFADRES30066558,REDACTED UNDER DP ACT,6790.12,ABBEYFIELD - SHANDFORD,292973,231972268,People Services,Care Spot - Private (3rd),5701,B
18,Devon County Council,22/08/2012,CFADRES30067228,REDACTED UNDER DP ACT,6790.12,ABBEYFIELD - SHANDFORD,292973,231972268,People Services,Care Spot - Private (3rd),5701,B
18,Devon County Council,08/08/2012,CFADRES30065935,REDACTED UNDER DP ACT,4049.34,ABBEYFIELD E DEV EXTRA CARE SOC,88511,,People Services,Care Spot - Private (3rd),5701,B
18,Devon County Council,22/08/2012,CFADRES30066610,REDACTED UNDER DP ACT,4049.34,ABBEYFIELD E DEV EXTRA CARE SOC,88511,,People Services,Care Spot - Private (3rd),5701,B
18,Devon County Council,22/08/2012,CFADRES30066576,REDACTED UNDER DP ACT,11007.98,ABBOTSFIELD NURSING HOME,86776,,People Services,Care Spot - Private (3rd),5701,B
18,Devon County Council,22/08/2012,CFADRES30066881,REDACTED UNDER DP ACT,6286.56,ACTION ON HEARING LOSS,121442,,People Services,Care Spot - Private (3rd),5701,B
18,Devon County Council,08/08/2012,CFADRES30066016,REDACTED UNDER DP ACT,19493.52,ADELAIDE LODGE CARE HOME PRTNSHP,89773,,People Services,Care Spot - Private (3rd),5701,B
18,Devon County Council,22/08/2012,CFADRES30066691,REDACTED UNDER DP ACT,19493.52,ADELAIDE LODGE CARE HOME PRTNSHP,89773,,People Services,Care Spot - Private (3rd),5701,B
18,Devon County Council,08/08/2012,CFADRES30066494,REDACTED UNDER DP ACT,782,ADL CARE - T/A JUBILEE HOUSE,278152,,People Services,Care Spot - Private (3rd),5701,B
18,Devon County Council,22/08/2012,CFADRES30067166,REDACTED UNDER DP ACT,782,ADL CARE - T/A JUBILEE HOUSE,278152,,People Services,Care Spot - Private (3rd),5701,B
18,Devon County Council,15/08/2012,CFADDOM30041357,REDACTED UNDER DP ACT,558.25,ADVENT CARE TEAM LTD,168316,,People Services,Care Spot - Private (3rd),5701,B
18,Devon County Council,15/08/2012,CFADDOM30041358,REDACTED UNDER DP ACT,646.8,ADVENT CARE TEAM LTD,168316,,People Services,Care Spot - Private (3rd),5701,B
18,Devon County Council,15/08/2012,CFADDOM30041360,REDACTED UNDER DP ACT,640.5,ADVENT CARE TEAM LTD,168316,,People Services,Care Spot - Private (3rd),5701,B
18,Devon County Council,15/08/2012,CFADDOM30041362,REDACTED UNDER DP ACT,1639.68,ADVENT CARE TEAM LTD,168316,,People Services,Care Spot - Private (3rd),5701,B
18,Devon County Council,15/08/2012,CFADDOM30041371,REDACTED UNDER DP ACT,539,ADVENT CARE TEAM LTD,168316,,People Services,Care Spot - Private (3rd),5701,B
18,Devon County Council,15/08/2012,CFADDOM30041372,REDACTED UNDER DP ACT,531.3,ADVENT CARE TEAM LTD,168316,,People Services,Care Spot - Private (3rd),5701,B
18,Devon County Council,15/08/2012,CFADDOM30041373,REDACTED UNDER DP ACT,646.8,ADVENT CARE TEAM LTD,168316,,People Services,Care Spot - Private (3rd),5701,B
18,Devon County Council,15/08/2012,CFADDOM30041379,REDACTED UNDER DP ACT,631.4,ADVENT CARE TEAM LTD,168316,,People Services,Care Spot - Private (3rd),5701,B
18,Devon County Council,15/08/2012,CFADDOM30041381,REDACTED UNDER DP ACT,646.8,ADVENT CARE TEAM LTD,168316,,People Services,Care Spot - Private (3rd),5701,B
18,Devon County Council,15/08/2012,CFADDOM30041382,REDACTED UNDER DP ACT,639.1,ADVENT CARE TEAM LTD,168316,,People Services,Care Spot - Private (3rd),5701,B
18,Devon County Council,15/08/2012,CFADDOM30041385,REDACTED UNDER DP ACT,646.8,ADVENT CARE TEAM LTD,168316,,People Services,Care Spot - Private (3rd),5701,B
18,Devon County Council,15/08/2012,CFADDOM30041390,REDACTED UNDER DP ACT,614.88,ADVENT CARE TEAM LTD,168316,,People Services,Care Spot - Private (3rd),5701,B
18,Devon County Council,15/08/2012,CFADDOM30041391,REDACTED UNDER DP ACT,862.4,ADVENT CARE TEAM LTD,168316,,People Services,Care Spot - Private (3rd),5701,B
18,Devon County Council,15/08/2012,CFADDOM30041395,REDACTED UNDER DP ACT,525,ADVENT CARE TEAM LTD,168316,,People Services,Care Spot - Private (3rd),5701,B
18,Devon County Council,15/08/2012,CFADDOM30041396,REDACTED UNDER DP ACT,510.4,ADVENT CARE TEAM LTD,168316,,People Services,Care Spot - Private (3rd),5701,B
18,Devon County Council,15/08/2012,CFADDOM30041404,REDACTED UNDER DP ACT,815.24,ADVENT CARE TEAM LTD,168316,,People Services,Care Spot - Private (3rd),5701,B
18,Devon County Council,15/08/2012,CFADDOM30041405,REDACTED UNDER DP ACT,688.08,ADVENT CARE TEAM LTD,168316,,People Services,Care Spot - Private (3rd),5701,B
18,Devon County Council,15/08/2012,CFADDOM30041406,REDACTED UNDER DP ACT,612.32,ADVENT CARE TEAM LTD,168316,,People Services,Care Spot - Private (3rd),5701,B
18,Devon County Council,20/08/2012,CFADDOM30041724,REDACTED UNDER DP ACT,5952.32,ADVENT CARE TEAM LTD,168316,,People Services,Care Spot - Private (3rd),5701,B
18,Devon County Council,20/08/2012,CFADDOM30041727,REDACTED UNDER DP ACT,812.35,ADVENT CARE TEAM LTD,168316,,People Services,Care Spot - Private (3rd),5701,B
18,Devon County Council,08/08/2012,CFSUPP30170851,REDACTED UNDER DP ACT,1202.92,ALABARE CHRISTIAN CARE CENTRES,226086,,People Services,Accomodation Based Services (3rd),5707,B
18,Devon County Council,08/08/2012,CFADRES30065919,REDACTED UNDER DP ACT,14064.57,ALBAN HOUSE,87208,,People Services,Care Spot - Private (3rd),5701,B
18,Devon County Council,22/08/2012,CFADRES30066594,REDACTED UNDER DP ACT,13765.2,ALBAN HOUSE,87208,,People Services,Care Spot - Private (3rd),5701,B
18,Devon County Council,08/08/2012,CFADRES30066370,REDACTED UNDER DP ACT,889.29,ALINTHIA HOUSE,218317,,People Services,Care Spot - Private (3rd),5701,B
18,Devon County Council,08/08/2012,CFADRES30066128,REDACTED UNDER DP ACT,2509.32,ALLIED BACK-UP PROJECT,90897,,People Services,Care Spot - Private (3rd),5701,B
18,Devon County Council,22/08/2012,CFADRES30066802,REDACTED UNDER DP ACT,2509.32,ALLIED BACK-UP PROJECT,90897,,People Services,Care Spot - Private (3rd),5701,B
18,Devon County Council,22/08/2012,CFADRES30067235,REDACTED UNDER DP ACT,3395.62,ALMONDSBURY CARE TA BELMONT HSE,294406,,People Services,Care Spot - Private (3rd),5701,B
18,Devon County Council,08/08/2012,CFADRES30066031,REDACTED UNDER DP ACT,5581.41,ALPHINGTON LODGE RESIDENTIAL HME,89941,,People Services,Care Spot - Private (3rd),5701,B
18,Devon County Council,22/08/2012,CFADRES30066705,REDACTED UNDER DP ACT,5507.6,ALPHINGTON LODGE RESIDENTIAL HME,89941,,People Services,Care Spot - Private (3rd),5701,B
18,Devon County Council,08/08/2012,CFADRES30066061,REDACTED UNDER DP ACT,1880.56,ALPINE LODGE RCH LTD,90255,,People Services,Care Spot - Private (3rd),5701,B
18,Devon County Council,22/08/2012,CFADRES30066735,REDACTED UNDER DP ACT,1880.56,ALPINE LODGE RCH LTD,90255,,People Services,Care Spot - Private (3rd),5701,B
18,Devon County Council,08/08/2012,CFADDOM30040874,REDACTED UNDER DP ACT,885.36,ANGEL HOMECARE,210685,,People Services,Care Spot - Private (3rd),5701,B
18,Devon County Council,08/08/2012,CFADDOM30040881,REDACTED UNDER DP ACT,2570.4,ANGEL HOMECARE,210685,,People Services,Care Spot - Private (3rd),5701,B
18,Devon County Council,08/08/2012,CFADDOM30040883,REDACTED UNDER DP ACT,740.48,ANGEL HOMECARE,210685,,People Services,Care Spot - Private (3rd),5701,B
18,Devon County Council,08/08/2012,CFADDOM30040885,REDACTED UNDER DP ACT,899.64,ANGEL HOMECARE,210685,,People Services,Care Spot - Private (3rd),5701,B
18,Devon County Council,08/08/2012,CFADDOM30040887,REDACTED UNDER DP ACT,742.56,ANGEL HOMECARE,210685,,People Services,Care Spot - Private (3rd),5701,B
18,Devon County Council,08/08/2012,CFADDOM30040888,REDACTED UNDER DP ACT,599.76,ANGEL HOMECARE,210685,,People Services,Care Spot - Private (3rd),5701,B
18,Devon County Council,08/08/2012,CFADDOM30040891,REDACTED UNDER DP ACT,628.32,ANGEL HOMECARE,210685,,People Services,Care Spot - Private (3rd),5701,B
18,Devon County Council,08/08/2012,CFADDOM30040900,REDACTED UNDER DP ACT,797.44,ANGEL HOMECARE,210685,,People Services,Care Spot - Private (3rd),5701,B
18,Devon County Council,08/08/2012,CFADDOM30040902,REDACTED UNDER DP ACT,1256.64,ANGEL HOMECARE,210685,,People Services,Care Spot - Private (3rd),5701,B
18,Devon County Council,08/08/2012,CFADDOM30040903,REDACTED UNDER DP ACT,890,ANGEL HOMECARE,210685,,People Services,Care Spot - Private (3rd),5701,B
18,Devon County Council,08/08/2012,CFADDOM30040910,REDACTED UNDER DP ACT,697.76,ANGEL HOMECARE,210685,,People Services,Care Spot - Private (3rd),5701,B
18,Devon County Council,22/08/2012,CFADRES30066809,REDACTED UNDER DP ACT,13265.04,ANGELA COURT,90966,,People Services,Care Spot - Private (3rd),5701,B
18,Devon County Council,08/08/2012,CFADRES30065931,REDACTED UNDER DP ACT,4790.4,ANNING BJ,87559,,People Services,Care Spot - Private (3rd),5701,B
18,Devon County Council,22/08/2012,CFADRES30066606,REDACTED UNDER DP ACT,4790.4,ANNING BJ,87559,,People Services,Care Spot - Private (3rd),5701,B
18,Devon County Council,08/08/2012,CFADRES30066538,REDACTED UNDER DP ACT,793,ARGYLE PARK NH/MARK&LUKE GILBERT,289098,,People Services,Care Spot - Private (3rd),5701,B
18,Devon County Council,22/08/2012,CFADRES30067207,REDACTED UNDER DP ACT,793,ARGYLE PARK NH/MARK&LUKE GILBERT,289098,,People Services,Care Spot - Private (3rd),5701,B
18,Devon County Council,08/08/2012,CFADRES30066388,REDACTED UNDER DP ACT,10866.28,ARK CARE HOMES LTD (CF PAYMENTS),229190,,People Services,Care Spot - Private (3rd),5701,B
18,Devon County Council,15/08/2012,CFADDAY30018662,REDACTED UNDER DP ACT,2211.2,AROHA HOUSE LIMITED,216752,,People Services,Individualised Support - Private (3rd),5706,B
18,Devon County Council,15/08/2012,CFADDAY30018663,REDACTED UNDER DP ACT,2211.2,AROHA HOUSE LIMITED,216752,,People Services,Individualised Support - Private (3rd),5706,B
18,Devon County Council,15/08/2012,CFADDAY30018664,REDACTED UNDER DP ACT,2211.2,AROHA HOUSE LIMITED,216752,,People Services,Individualised Support - Private (3rd),5706,B
18,Devon County Council,15/08/2012,CFADDAY30018665,REDACTED UNDER DP ACT,2211.2,AROHA HOUSE LIMITED,216752,,People Services,Individualised Support - Private (3rd),5706,B
18,Devon County Council,15/08/2012,CFADDAY30018666,REDACTED UNDER DP ACT,2211.2,AROHA HOUSE LIMITED,216752,,People Services,Care Spot - Private (3rd),5701,B
18,Devon County Council,08/08/2012,CFADRES30065978,REDACTED UNDER DP ACT,8256.38,ARUNDEL HOUSE,89227,,People Services,Care Spot - Private (3rd),5701,B
18,Devon County Council,08/08/2012,CFADRES30066337,REDACTED UNDER DP ACT,4488.52,ARUNDEL HOUSE,201385,,People Services,Care Spot - Private (3rd),5701,B
18,Devon County Council,22/08/2012,CFADRES30066653,REDACTED UNDER DP ACT,8449.24,ARUNDEL HOUSE,89227,,People Services,Care Spot - Private (3rd),5701,B
18,Devon County Council,22/08/2012,CFADRES30067010,REDACTED UNDER DP ACT,4488.52,ARUNDEL HOUSE,201385,,People Services,Care Spot - Private (3rd),5701,B
18,Devon County Council,08/08/2012,CFADRES30066502,REDACTED UNDER DP ACT,882,ASHCROFT HOUSE LEEDS,280636,,People Services,Care Spot - Private (3rd),5701,B
18,Devon County Council,22/08/2012,CFADRES30067174,REDACTED UNDER DP ACT,882,ASHCROFT HOUSE LEEDS,280636,,People Services,Care Spot - Private (3rd),5701,B
18,Devon County Council,08/08/2012,CFADRES30066509,REDACTED UNDER DP ACT,1600,ASHEBOROUGH HOUSE CARE CENTRE,281379,,People Services,Care Spot - Private (3rd),5701,B
18,Devon County Council,22/08/2012,CFADRES30067180,REDACTED UNDER DP ACT,1600,ASHEBOROUGH HOUSE CARE CENTRE,281379,,People Services,Care Spot - Private (3rd),5701,B
18,Devon County Council,08/08/2012,CFADRES30066281,REDACTED UNDER DP ACT,12411.87,ASHFIELD RESIDENTIAL HOME,173331,,People Services,Care Spot - Private (3rd),5701,B
18,Devon County Council,22/08/2012,CFADRES30066955,REDACTED UNDER DP ACT,13241.86,ASHFIELD RESIDENTIAL HOME,173331,,People Services,Care Spot - Private (3rd),5701,B
18,Devon County Council,08/08/2012,CFADRES30065962,REDACTED UNDER DP ACT,5622.52,ASHLEIGH MANOR,89097,,People Services,Care Spot - Private (3rd),5701,B
18,Devon County Council,22/08/2012,CFADRES30066637,REDACTED UNDER DP ACT,3477.52,ASHLEIGH MANOR,89097,,People Services,Care Spot - Private (3rd),5701,B
18,Devon County Council,08/08/2012,CFADRES30066085,REDACTED UNDER DP ACT,2880.34,ASSISSI COMMUNITY CARE,90460,,People Services,Care Spot - Private (3rd),5701,B
18,Devon County Council,22/08/2012,CFADRES30066759,REDACTED UNDER DP ACT,2880.34,ASSISSI COMMUNITY CARE,90460,,People Services,Care Spot - Private (3rd),5701,B
18,Devon County Council,01/08/2012,CFADDAY30018232,REDACTED UNDER DP ACT,573.75,ASSISTED LIVING SOUTH WEST,231671,,People Services,Individualised Support - Private (3rd),5706,B
18,Devon County Council,01/08/2012,CFADDAY30018234,REDACTED UNDER DP ACT,1080,ASSISTED LIVING SOUTH WEST,231671,,People Services,Individualised Support - Private (3rd),5706,B
18,Devon County Council,08/08/2012,CFADDAY30018466,REDACTED UNDER DP ACT,1527,ASSISTED LIVING SOUTH WEST,231671,,People Services,Individualised Support - Private (3rd),5706,B
18,Devon County Council,08/08/2012,CFADDAY30018467,REDACTED UNDER DP ACT,1527,ASSISTED LIVING SOUTH WEST,231671,,People Services,Individualised Support - Private (3rd),5706,B
18,Devon County Council,13/08/2012,CFADDAY30018572,REDACTED UNDER DP ACT,5565.84,ASSISTED LIVING SOUTH WEST,231671,,People Services,Individualised Support - Private (3rd),5706,B
18,Devon County Council,15/08/2012,CFADDAY30018667,REDACTED UNDER DP ACT,1464,ASSISTED LIVING SOUTH WEST,231671,,People Services,Individualised Support - Private (3rd),5706,B
18,Devon County Council,15/08/2012,CFADDAY30018668,REDACTED UNDER DP ACT,2733,ASSISTED LIVING SOUTH WEST,231671,,People Services,Individualised Support - Private (3rd),5706,B
18,Devon County Council,20/08/2012,CFADDAY30018844,REDACTED UNDER DP ACT,3226.96,ASSISTED LIVING SOUTH WEST,231671,,People Services,Individualised Support - Private (3rd),5706,B
18,Devon County Council,20/08/2012,CFADDAY30018845,REDACTED UNDER DP ACT,1288,ASSISTED LIVING SOUTH WEST,231671,,People Services,Individualised Support - Private (3rd),5706,B
18,Devon County Council,20/08/2012,CFADDAY30018846,REDACTED UNDER DP ACT,1288,ASSISTED LIVING SOUTH WEST,231671,,People Services,Individualised Support - Private (3rd),5706,B
18,Devon County Council,20/08/2012,CFADDAY30018847,REDACTED UNDER DP ACT,2661,ASSISTED LIVING SOUTH WEST,231671,,People Services,Individualised Support - Private (3rd),5706,B
18,Devon County Council,20/08/2012,CFADDAY30018848,REDACTED UNDER DP ACT,702,ASSISTED LIVING SOUTH WEST,231671,,People Services,Individualised Support - Private (3rd),5706,B
18,Devon County Council,20/08/2012,CFADDAY30018849,REDACTED UNDER DP ACT,3226.96,ASSISTED LIVING SOUTH WEST,231671,,People Services,Individualised Support - Private (3rd),5706,B
18,Devon County Council,20/08/2012,CFADDAY30018850,REDACTED UNDER DP ACT,540,ASSISTED LIVING SOUTH WEST,231671,,People Services,Individualised Support - Private (3rd),5706,B
18,Devon County Council,20/08/2012,CFADDAY30018851,REDACTED UNDER DP ACT,3226.96,ASSISTED LIVING SOUTH WEST,231671,,People Services,Individualised Support - Private (3rd),5706,B
18,Devon County Council,20/08/2012,CFADDAY30018852,REDACTED UNDER DP ACT,2517,ASSISTED LIVING SOUTH WEST,231671,,People Services,Individualised Support - Private (3rd),5706,B
18,Devon County Council,20/08/2012,CFADDAY30018853,REDACTED UNDER DP ACT,2471.56,ASSISTED LIVING SOUTH WEST,231671,,People Services,Individualised Support - Private (3rd),5706,B
18,Devon County Council,22/08/2012,CFADDAY30019006,REDACTED UNDER DP ACT,852.75,ASSISTED LIVING SOUTH WEST,231671,,People Services,Individualised Support - Private (3rd),5706,B
18,Devon County Council,13/08/2012,CFADDOM30041153,REDACTED UNDER DP ACT,2538,ASSISTED LIVING SOUTH WEST,231671,,People Services,Care Spot - Private (3rd),5701,B
18,Devon County Council,08/08/2012,CFADDAY17331834,REDACTED UNDER DP ACT,-1527,ASSISTED LIVING SOUTH WEST,231671,,People Services,Individualised Support - Private (3rd),5706,B
18,Devon County Council,08/08/2012,CFADDAY17331835,REDACTED UNDER DP ACT,-1527,ASSISTED LIVING SOUTH WEST,231671,,People Services,Individualised Support - Private (3rd),5706,B
18,Devon County Council,08/08/2012,CFADRES30066404,REDACTED UNDER DP ACT,1012.8,ASTOR HALL,231831,,People Services,Care Spot - Private (3rd),5701,B
18,Devon County Council,22/08/2012,CFADRES30067076,REDACTED UNDER DP ACT,1012.8,ASTOR HALL,231831,,People Services,Care Spot - Private (3rd),5701,B
18,Devon County Council,08/08/2012,CFADDAY30018443,REDACTED UNDER DP ACT,1092,ATLANTIC SUPPORT (DEVON) LTD,202818,,People Services,Individualised Support - Private (3rd),5706,B
18,Devon County Council,08/08/2012,CFADDAY30018444,REDACTED UNDER DP ACT,910,ATLANTIC SUPPORT (DEVON) LTD,202818,,People Services,Individualised Support - Private (3rd),5706,B
18,Devon County Council,08/08/2012,CFADDAY30018445,REDACTED UNDER DP ACT,1092,ATLANTIC SUPPORT (DEVON) LTD,202818,,People Services,Individualised Support - Private (3rd),5706,B
18,Devon County Council,08/08/2012,CFADDAY30018446,REDACTED UNDER DP ACT,1092,ATLANTIC SUPPORT (DEVON) LTD,202818,,People Services,Individualised Support - Private (3rd),5706,B
18,Devon County Council,08/08/2012,CFADDAY30018447,REDACTED UNDER DP ACT,624,ATLANTIC SUPPORT (DEVON) LTD,202818,,People Services,Individualised Support - Private (3rd),5706,B
18,Devon County Council,08/08/2012,CFADDAY30018448,REDACTED UNDER DP ACT,1092,ATLANTIC SUPPORT (DEVON) LTD,202818,,People Services,Individualised Support - Private (3rd),5706,B
18,Devon County Council,08/08/2012,CFADDAY30018450,REDACTED UNDER DP ACT,576,ATLANTIC SUPPORT (DEVON) LTD,202818,,People Services,Individualised Support - Private (3rd),5706,B
18,Devon County Council,22/08/2012,CFADRES30066786,REDACTED UNDER DP ACT,4687.72,AUSTIN C-UNDER BARLEY CLOSE R HM,90702,,People Services,Care Spot - Private (3rd),5701,B
18,Devon County Council,08/08/2012,CFADRES30066223,REDACTED UNDER DP ACT,689.74,AVELAND COURT,142843,,People Services,Care Spot - Private (3rd),5701,B
18,Devon County Council,22/08/2012,CFADRES30066897,REDACTED UNDER DP ACT,689.74,AVELAND COURT,142843,,People Services,Care Spot - Private (3rd),5701,B
18,Devon County Council,08/08/2012,CFADRES30066199,REDACTED UNDER DP ACT,12256.08,AVENS CARE HOMES LTD,118327,,People Services,Care Spot - Private (3rd),5701,B
18,Devon County Council,22/08/2012,CFADRES30066873,REDACTED UNDER DP ACT,14701.79,AVENS CARE HOMES LTD,118327,,People Services,Care Spot - Private (3rd),5701,B
18,Devon County Council,08/08/2012,CFADRES30066510,REDACTED UNDER DP ACT,750,AVERLEA RESIDENTIAL HOME,282401,,People Services,Care Spot - Private (3rd),5701,B
18,Devon County Council,22/08/2012,CFADRES30067181,REDACTED UNDER DP ACT,750,AVERLEA RESIDENTIAL HOME,282401,,People Services,Care Spot - Private (3rd),5701,B
18,Devon County Council,08/08/2012,CFADRES30066470,REDACTED UNDER DP ACT,952,AVON LEA NURSING HOME,267854,,People Services,Care Spot - Private (3rd),5701,B
18,Devon County Council,22/08/2012,CFADRES30067142,REDACTED UNDER DP ACT,952,AVON LEA NURSING HOME,267854,,People Services,Care Spot - Private (3rd),5701,B
18,Devon County Council,28/08/2012,CFADDOM30041976,REDACTED UNDER DP ACT,25180.72,AXE VALLEY CARE LTD,202776,,People Services,Care Spot - Private (3rd),5701,B
18,Devon County Council,28/08/2012,CFADDOM30041977,REDACTED UNDER DP ACT,22796.51,AXE VALLEY CARE LTD,202776,,People Services,Care Spot - Private (3rd),5701,B
18,Devon County Council,28/08/2012,CFADDOM30041978,REDACTED UNDER DP ACT,20075.83,AXE VALLEY CARE LTD,202776,,People Services,Care Spot - Private (3rd),5701,B
18,Devon County Council,28/08/2012,CFADDOM30041979,REDACTED UNDER DP ACT,6217.86,AXE VALLEY CARE LTD,202776,,People Services,Care Spot - Private (3rd),5701,B
18,Devon County Council,22/08/2012,CFADRES30066749,REDACTED UNDER DP ACT,10554.69,BARCHESTER HEALTHCARE HOMES LTD,90416,,People Services,Care Spot - Private (3rd),5701,B
18,Devon County Council,22/08/2012,CFADRES30066750,REDACTED UNDER DP ACT,7148.39,BARCHESTER HEALTHCARE HOMES LTD,90416,,People Services,Care Spot - Private (3rd),5701,B
18,Devon County Council,02/08/2012,FINNDAD30449250,220029543,3400,BARCHESTER HEALTHCARE HOMES LTD,90416,,People Services,Care Spot - Private (3rd),5701,B
18,Devon County Council,02/08/2012,FINNDAD30449251,220029754,971.42,BARCHESTER HEALTHCARE HOMES LTD,90416,,People Services,Care Spot - Private (3rd),5701,B
18,Devon County Council,08/08/2012,CFADRES30065932,REDACTED UNDER DP ACT,1282.6,BARCHESTER HEALTHCARE H-RE MANOR,87581,,People Services,Care Spot - Private (3rd),5701,B
18,Devon County Council,22/08/2012,CFADRES30066607,REDACTED UNDER DP ACT,1282.6,BARCHESTER HEALTHCARE H-RE MANOR,87581,,People Services,Care Spot - Private (3rd),5701,B
18,Devon County Council,08/08/2012,CFADRES30066363,REDACTED UNDER DP ACT,812.9,BARHAM HOUSE NURSING HOME,214737,,People Services,Care Spot - Private (3rd),5701,B
18,Devon County Council,22/08/2012,CFADRES30067036,REDACTED UNDER DP ACT,812.9,BARHAM HOUSE NURSING HOME,214737,,People Services,Care Spot - Private (3rd),5701,B
18,Devon County Council,08/08/2012,CFADRES30065970,REDACTED UNDER DP ACT,1986.76,BARKER KI & GM T/A DAWN R C H,89142,,People Services,Care Spot - Private (3rd),5701,B
18,Devon County Council,22/08/2012,CFADRES30066645,REDACTED UNDER DP ACT,1986.76,BARKER KI & GM T/A DAWN R C H,89142,,People Services,Care Spot - Private (3rd),5701,B
18,Devon County Council,08/08/2012,CFADRES30065987,REDACTED UNDER DP ACT,11622.64,BARN PARK RESIDENTIAL HOME,89354,,People Services,Care Spot - Private (3rd),5701,B
18,Devon County Council,22/08/2012,CFADRES30066662,REDACTED UNDER DP ACT,10970.5,BARN PARK RESIDENTIAL HOME,89354,,People Services,Care Spot - Private (3rd),5701,B
18,Devon County Council,08/08/2012,CFADRES30066269,REDACTED UNDER DP ACT,753.82,BARNFIELD HOUSE,168283,,People Services,Care Spot - Private (3rd),5701,B
18,Devon County Council,22/08/2012,CFADRES30066943,REDACTED UNDER DP ACT,753.82,BARNFIELD HOUSE,168283,,People Services,Care Spot - Private (3rd),5701,B
18,Devon County Council,08/08/2012,CFADRES30065925,REDACTED UNDER DP ACT,5175.3,BARNSTAPLE OLD PEOPLES H A HOSTL,87455,,People Services,Care Spot - Private (3rd),5701,B
18,Devon County Council,22/08/2012,CFADRES30066600,REDACTED UNDER DP ACT,5175.3,BARNSTAPLE OLD PEOPLES H A HOSTL,87455,,People Services,Care Spot - Private (3rd),5701,B
18,Devon County Council,08/08/2012,CFADRES30066290,REDACTED UNDER DP ACT,8504.54,BARTON HOUSE RESIDENTIAL HOME,178688,,People Services,Care Spot - Private (3rd),5701,B
18,Devon County Council,22/08/2012,CFADRES30066963,REDACTED UNDER DP ACT,7151.06,BARTON HOUSE RESIDENTIAL HOME,178688,,People Services,Care Spot - Private (3rd),5701,B
18,Devon County Council,08/08/2012,CFADRES30066354,REDACTED UNDER DP ACT,2786.43,BARTON LODGE RESIDENTIAL HOME,207195,,People Services,Care Spot - Private (3rd),5701,B
18,Devon County Council,22/08/2012,CFADRES30067027,REDACTED UNDER DP ACT,2430.71,BARTON LODGE RESIDENTIAL HOME,207195,,People Services,Care Spot - Private (3rd),5701,B
18,Devon County Council,22/08/2012,CFADRES30066825,REDACTED UNDER DP ACT,2056.99,BASCOMBE COURT,97577,,People Services,Care Spot - Private (3rd),5701,B
18,Devon County Council,08/08/2012,CFADRES30066065,REDACTED UNDER DP ACT,9816.74,BAXENDALE AM/MRS NB TA AMELIA HS,90280,,People Services,Care Spot - Private (3rd),5701,B
18,Devon County Council,22/08/2012,CFADRES30066739,REDACTED UNDER DP ACT,9101.22,BAXENDALE AM/MRS NB TA AMELIA HS,90280,,People Services,Care Spot - Private (3rd),5701,B
18,Devon County Council,01/08/2012,CFADDOM30040436,REDACTED UNDER DP ACT,644.16,BAY CARE GROUP,262868,,People Services,Care Spot - Private (3rd),5701,B
18,Devon County Council,01/08/2012,CFADDOM30040437,REDACTED UNDER DP ACT,607.56,BAY CARE GROUP,262868,,People Services,Care Spot - Private (3rd),5701,B
18,Devon County Council,20/08/2012,CFADDOM30041836,REDACTED UNDER DP ACT,688.08,BAY CARE GROUP,262868,,People Services,Care Spot - Private (3rd),5701,B
18,Devon County Council,20/08/2012,CFADDOM30041837,REDACTED UNDER DP ACT,614.88,BAY CARE GROUP,262868,,People Services,Care Spot - Private (3rd),5701,B
18,Devon County Council,20/08/2012,CFADDOM30041839,REDACTED UNDER DP ACT,710.04,BAY CARE GROUP,262868,,People Services,Care Spot - Private (3rd),5701,B
18,Devon County Council,20/08/2012,CFADDOM30041841,REDACTED UNDER DP ACT,592.92,BAY CARE GROUP,262868,,People Services,Care Spot - Private (3rd),5701,B
18,Devon County Council,20/08/2012,CFADDOM30041856,REDACTED UNDER DP ACT,614.88,BAY CARE GROUP,262868,,People Services,Care Spot - Private (3rd),5701,B
18,Devon County Council,08/08/2012,CFADRES30066476,REDACTED UNDER DP ACT,952,BAY TREE LODGE,271222,,People Services,Care Spot - Private (3rd),5701,B
18,Devon County Council,22/08/2012,CFADRES30067148,REDACTED UNDER DP ACT,952,BAY TREE LODGE,271222,,People Services,Care Spot - Private (3rd),5701,B
18,Devon County Council,08/08/2012,CFADRES30066178,REDACTED UNDER DP ACT,10375.22,BE SMART SOUTH WEST LTD,105345,,People Services,Care Spot - Private (3rd),5701,B
18,Devon County Council,22/08/2012,CFADRES30066852,REDACTED UNDER DP ACT,10375.22,BE SMART SOUTH WEST LTD,105345,,People Services,Care Spot - Private (3rd),5701,B
18,Devon County Council,08/08/2012,CFADRES30066132,REDACTED UNDER DP ACT,11919.44,BEACON COURT,90958,,People Services,Care Spot - Private (3rd),5701,B
18,Devon County Council,22/08/2012,CFADRES30066806,REDACTED UNDER DP ACT,8854.44,BEACON COURT,90958,,People Services,Care Spot - Private (3rd),5701,B
18,Devon County Council,08/08/2012,CFADRES30065957,REDACTED UNDER DP ACT,13965.48,BEECH HOUSE(EXETER)LTD,89053,,People Services,Care Spot - Private (3rd),5701,B
18,Devon County Council,08/08/2012,CFADRES30066384,REDACTED UNDER DP ACT,1014.6,BEECH LAWN NURSING & RES HOME,226788,,People Services,Care Spot - Private (3rd),5701,B
18,Devon County Council,22/08/2012,CFADRES30067056,REDACTED UNDER DP ACT,1014.6,BEECH LAWN NURSING & RES HOME,226788,,People Services,Care Spot - Private (3rd),5701,B
18,Devon County Council,08/08/2012,CFADRES30066253,REDACTED UNDER DP ACT,731.84,BEECHCROFT CARE HOME,159338,,People Services,Care Spot - Private (3rd),5701,B
18,Devon County Council,22/08/2012,CFADRES30066927,REDACTED UNDER DP ACT,731.84,BEECHCROFT CARE HOME,159338,,People Services,Care Spot - Private (3rd),5701,B
18,Devon County Council,08/08/2012,CFADRES30066356,REDACTED UNDER DP ACT,9228.24,BELMONT GRANGE,208839,,People Services,Care Spot - Private (3rd),5701,B
18,Devon County Council,22/08/2012,CFADRES30067029,REDACTED UNDER DP ACT,9228.24,BELMONT GRANGE,208839,,People Services,Care Spot - Private (3rd),5701,B
18,Devon County Council,08/08/2012,CFADRES30066032,REDACTED UNDER DP ACT,1310.14,BETTERCARE UK LTD,89948,,People Services,Care Spot - Private (3rd),5701,B
18,Devon County Council,22/08/2012,CFADRES30066706,REDACTED UNDER DP ACT,1310.14,BETTERCARE UK LTD,89948,,People Services,Care Spot - Private (3rd),5701,B
18,Devon County Council,08/08/2012,CFADRES30066345,REDACTED UNDER DP ACT,6888.26,BICKLEIGH DOWN CARE HOME,205626,,People Services,Care Spot - Private (3rd),5701,B
18,Devon County Council,22/08/2012,CFADRES30067018,REDACTED UNDER DP ACT,6710.4,BICKLEIGH DOWN CARE HOME,205626,,People Services,Care Spot - Private (3rd),5701,B
18,Devon County Council,08/08/2012,CFADRES30066121,REDACTED UNDER DP ACT,19621.82,BIDNA HOUSE,90844,,People Services,Care Spot - Private (3rd),5701,B
18,Devon County Council,22/08/2012,CFADRES30066795,REDACTED UNDER DP ACT,14183.84,BIDNA HOUSE,90844,,People Services,Care Spot - Private (3rd),5701,B
18,Devon County Council,08/08/2012,CFADRES30066035,REDACTED UNDER DP ACT,10570.4,BINDON CARE LTD,89979,,People Services,Care Spot - Private (3rd),5701,B
18,Devon County Council,22/08/2012,CFADRES30066709,REDACTED UNDER DP ACT,10570.4,BINDON CARE LTD,89979,,People Services,Care Spot - Private (3rd),5701,B
18,Devon County Council,08/08/2012,CFADRES30066462,REDACTED UNDER DP ACT,1496.84,BIRCHAMS GRANGE,264870,,People Services,Care Spot - Private (3rd),5701,B
18,Devon County Council,22/08/2012,CFADRES30067134,REDACTED UNDER DP ACT,1180,BIRCHAMS GRANGE,264870,,People Services,Care Spot - Private (3rd),5701,B
18,Devon County Council,08/08/2012,CFADRES30066524,REDACTED UNDER DP ACT,1555.58,BLOSSOM FIELDS,285993,,People Services,Care Spot - Private (3rd),5701,B
18,Devon County Council,22/08/2012,CFADRES30067193,REDACTED UNDER DP ACT,1555.58,BLOSSOM FIELDS,285993,,People Services,Care Spot - Private (3rd),5701,B
18,Devon County Council,15/08/2012,CFADDOM30041473,REDACTED UNDER DP ACT,875.76,BLUEBIRD CARE (NEWTON ABBOT),237624,,People Services,Care Spot - Private (3rd),5701,B
18,Devon County Council,15/08/2012,CFADDOM30041477,REDACTED UNDER DP ACT,2499.12,BLUEBIRD CARE (NEWTON ABBOT),237624,,People Services,Care Spot - Private (3rd),5701,B
18,Devon County Council,15/08/2012,CFADDOM30041481,REDACTED UNDER DP ACT,506.94,BLUEBIRD CARE (NEWTON ABBOT),237624,,People Services,Care Spot - Private (3rd),5701,B
18,Devon County Council,15/08/2012,CFADDOM30041485,REDACTED UNDER DP ACT,774.69,BLUEBIRD CARE (NEWTON ABBOT),237624,,People Services,Care Spot - Private (3rd),5701,B
18,Devon County Council,15/08/2012,CFADDOM30041486,REDACTED UNDER DP ACT,1110.27,BLUEBIRD CARE (NEWTON ABBOT),237624,,People Services,Care Spot - Private (3rd),5701,B
18,Devon County Council,15/08/2012,CFADDOM30041489,REDACTED UNDER DP ACT,656.88,BLUEBIRD CARE (NEWTON ABBOT),237624,,People Services,Care Spot - Private (3rd),5701,B
18,Devon County Council,15/08/2012,CFADDOM30041492,REDACTED UNDER DP ACT,542.64,BLUEBIRD CARE (NEWTON ABBOT),237624,,People Services,Care Spot - Private (3rd),5701,B
18,Devon County Council,15/08/2012,CFADDOM30041509,REDACTED UNDER DP ACT,710.43,BLUEBIRD CARE (NEWTON ABBOT),237624,,People Services,Care Spot - Private (3rd),5701,B
18,Devon County Council,15/08/2012,CFADDOM30041510,REDACTED UNDER DP ACT,799.68,BLUEBIRD CARE (NEWTON ABBOT),237624,,People Services,Care Spot - Private (3rd),5701,B
18,Devon County Council,15/08/2012,CFADDOM30041520,REDACTED UNDER DP ACT,999.6,BLUEBIRD CARE (NEWTON ABBOT),237624,,People Services,Care Spot - Private (3rd),5701,B
18,Devon County Council,15/08/2012,CFADDOM30041529,REDACTED UNDER DP ACT,535.5,BLUEBIRD CARE (NEWTON ABBOT),237624,,People Services,Care Spot - Private (3rd),5701,B
18,Devon County Council,15/08/2012,CFADDOM30041530,REDACTED UNDER DP ACT,1799.28,BLUEBIRD CARE (NEWTON ABBOT),237624,,People Services,Care Spot - Private (3rd),5701,B
18,Devon County Council,15/08/2012,CFADDOM30041536,REDACTED UNDER DP ACT,564.06,BLUEBIRD CARE (NEWTON ABBOT),237624,,People Services,Care Spot - Private (3rd),5701,B
18,Devon County Council,08/08/2012,CFADRES30066488,REDACTED UNDER DP ACT,12351.62,BODMEYRICK RESIDENTIAL HOME,277062,,People Services,Care Spot - Private (3rd),5701,B
18,Devon County Council,22/08/2012,CFADRES30067160,REDACTED UNDER DP ACT,12030.74,BODMEYRICK RESIDENTIAL HOME,277062,,People Services,Residential Income,9365,B
18,Devon County Council,08/08/2012,CFADRES30066078,REDACTED UNDER DP ACT,19803,BOLEALLER HOUSE LTD,90433,,People Services,Care Spot - Private (3rd),5701,B
18,Devon County Council,22/08/2012,CFADRES30066752,REDACTED UNDER DP ACT,19803,BOLEALLER HOUSE LTD,90433,,People Services,Care Spot - Private (3rd),5701,B
18,Devon County Council,08/08/2012,CFADRES30066526,REDACTED UNDER DP ACT,1000,BOSWORTH CARE HOME,286381,,People Services,Care Spot - Private (3rd),5701,B
18,Devon County Council,22/08/2012,CFADRES30067195,REDACTED UNDER DP ACT,1000,BOSWORTH CARE HOME,286381,,People Services,Care Spot - Private (3rd),5701,B
18,Devon County Council,08/08/2012,CFADDAY30018464,REDACTED UNDER DP ACT,869.44,BRACKEN TOR HOUSE,215900,,People Services,Individualised Support - Private (3rd),5706,B
18,Devon County Council,29/08/2012,CFADDAY30019301,REDACTED UNDER DP ACT,620,BRACKEN TOR HOUSE,215900,,People Services,Individualised Support - Private (3rd),5706,B
18,Devon County Council,08/08/2012,CFADRES30066365,REDACTED UNDER DP ACT,8886.28,BRACKEN TOR HOUSE,215900,,People Services,Care Spot - Private (3rd),5701,B
18,Devon County Council,22/08/2012,CFADRES30067038,REDACTED UNDER DP ACT,8886.28,BRACKEN TOR HOUSE,215900,,People Services,Care Spot - Private (3rd),5701,B
18,Devon County Council,08/08/2012,CFADRES30066252,REDACTED UNDER DP ACT,4058.51,BRAEMAR HOUSE,157418,,People Services,Care Spot - Private (3rd),5701,B
18,Devon County Council,22/08/2012,CFADRES30066926,REDACTED UNDER DP ACT,2025.36,BRAEMAR HOUSE,157418,,People Services,Care Spot - Private (3rd),5701,B
18,Devon County Council,22/08/2012,CFADRES30065321,REDACTED UNDER DP ACT,2582.58,BRANDON RESIDENTIAL CARE HOME,89375,,People Services,Care Spot - Private (3rd),5701,B
18,Devon County Council,22/08/2012,CFADRES30065989,REDACTED UNDER DP ACT,2582.58,BRANDON RESIDENTIAL CARE HOME,89375,,People Services,Care Spot - Private (3rd),5701,B
18,Devon County Council,22/08/2012,CFADRES30066664,REDACTED UNDER DP ACT,4420.44,BRANDON RESIDENTIAL CARE HOME,89375,,People Services,Care Spot - Private (3rd),5701,B
18,Devon County Council,22/08/2012,CFADRES17332290,REDACTED UNDER DP ACT,-5290.2,BRANDON RESIDENTIAL CARE HOME,89375,,People Services,Care Spot - Private (3rd),5701,B
18,Devon County Council,08/08/2012,CFADRES30066461,REDACTED UNDER DP ACT,950,BRANSFORD LTD T/A FERN HOUSE,264494,,People Services,Care Spot - Private (3rd),5701,B
18,Devon County Council,13/08/2012,CFADDOM30041167,REDACTED UNDER DP ACT,576.24,BRAUNTON CARE LTD,262416,,People Services,Care Spot - Private (3rd),5701,B
18,Devon County Council,13/08/2012,CFADDOM30041169,REDACTED UNDER DP ACT,1728.72,BRAUNTON CARE LTD,262416,,People Services,Care Spot - Private (3rd),5701,B
18,Devon County Council,13/08/2012,CFADDOM30041170,REDACTED UNDER DP ACT,507.64,BRAUNTON CARE LTD,262416,,People Services,Care Spot - Private (3rd),5701,B
18,Devon County Council,13/08/2012,CFADDOM30041173,REDACTED UNDER DP ACT,555.66,BRAUNTON CARE LTD,262416,,People Services,Care Spot - Private (3rd),5701,B
18,Devon County Council,13/08/2012,CFADDOM30041174,REDACTED UNDER DP ACT,1879.64,BRAUNTON CARE LTD,262416,,People Services,Care Spot - Private (3rd),5701,B
18,Devon County Council,13/08/2012,CFADDOM30041175,REDACTED UNDER DP ACT,2009.98,BRAUNTON CARE LTD,262416,,People Services,Care Spot - Private (3rd),5701,B
18,Devon County Council,13/08/2012,CFADDOM30041184,REDACTED UNDER DP ACT,771.75,BRAUNTON CARE LTD,262416,,People Services,Care Spot - Private (3rd),5701,B
18,Devon County Council,13/08/2012,CFADDOM30041185,REDACTED UNDER DP ACT,2250.08,BRAUNTON CARE LTD,262416,,People Services,Care Spot - Private (3rd),5701,B
18,Devon County Council,13/08/2012,CFADDOM30041186,REDACTED UNDER DP ACT,1344.56,BRAUNTON CARE LTD,262416,,People Services,Care Spot - Private (3rd),5701,B
18,Devon County Council,13/08/2012,CFADDOM30041188,REDACTED UNDER DP ACT,583.1,BRAUNTON CARE LTD,262416,,People Services,Care Spot - Private (3rd),5701,B
18,Devon County Council,13/08/2012,CFADDOM30041189,REDACTED UNDER DP ACT,1618.96,BRAUNTON CARE LTD,262416,,People Services,Care Spot - Private (3rd),5701,B
18,Devon County Council,23/08/2012,FINNDAD30449664,902,1779.16,BRAUNTON CARE LTD,262416,,People Services,Care Spot - Private (3rd),5701,B
18,Devon County Council,08/08/2012,CFADRES30066091,REDACTED UNDER DP ACT,7439.01,BRIARCROFT,90534,,People Services,Care Spot - Private (3rd),5701,B
18,Devon County Council,22/08/2012,CFADRES30066765,REDACTED UNDER DP ACT,6730.88,BRIARCROFT,90534,,People Services,Care Spot - Private (3rd),5701,B
18,Devon County Council,08/08/2012,CFADRES30065916,REDACTED UNDER DP ACT,2590,BROADREACH HOUSE,87099,,People Services,Care Spot - Private (3rd),5701,B
18,Devon County Council,22/08/2012,CFADRES30066591,REDACTED UNDER DP ACT,1390,BROADREACH HOUSE,87099,,People Services,Care Spot - Private (3rd),5701,B
18,Devon County Council,08/08/2012,CFADRES30066008,REDACTED UNDER DP ACT,16897.82,BRONTE RESIDENTIAL CARE HOME,89647,,People Services,Care Spot - Private (3rd),5701,B
18,Devon County Council,22/08/2012,CFADRES30066683,REDACTED UNDER DP ACT,10078.54,BRONTE RESIDENTIAL CARE HOME,89647,,People Services,Care Spot - Private (3rd),5701,B
18,Devon County Council,08/08/2012,CFADRES30066302,REDACTED UNDER DP ACT,2862,BROOK LODGE,186523,,People Services,Care Spot - Private (3rd),5701,B
18,Devon County Council,22/08/2012,CFADRES30066975,REDACTED UNDER DP ACT,2862,BROOK LODGE,186523,,People Services,Care Spot - Private (3rd),5701,B
18,Devon County Council,08/08/2012,CFADRES30066169,REDACTED UNDER DP ACT,1536.6,BUPA CARE HOMES LTD/AYLESHAM CRT,102126,,People Services,Care Spot - Private (3rd),5701,B
18,Devon County Council,22/08/2012,CFADRES30066843,REDACTED UNDER DP ACT,1536.6,BUPA CARE HOMES LTD/AYLESHAM CRT,102126,,People Services,Care Spot - Private (3rd),5701,B
18,Devon County Council,08/08/2012,CFADDAY30018452,REDACTED UNDER DP ACT,732.24,BURDON GRANGE,203246,,People Services,Care Spot - Private (3rd),5701,B
18,Devon County Council,13/08/2012,CFADDOM30041096,REDACTED UNDER DP ACT,1591.52,BURDON GRANGE,203246,,People Services,Care Spot - Private (3rd),5701,B
18,Devon County Council,13/08/2012,CFADDOM30041099,REDACTED UNDER DP ACT,548.8,BURDON GRANGE,203246,,People Services,Care Spot - Private (3rd),5701,B
18,Devon County Council,13/08/2012,CFADDOM30041100,REDACTED UNDER DP ACT,2304.96,BURDON GRANGE,203246,,People Services,Care Spot - Private (3rd),5701,B
18,Devon County Council,13/08/2012,CFADDOM30041102,REDACTED UNDER DP ACT,919.24,BURDON GRANGE,203246,,People Services,Care Spot - Private (3rd),5701,B
18,Devon County Council,13/08/2012,CFADDOM30041104,REDACTED UNDER DP ACT,1152.48,BURDON GRANGE,203246,,People Services,Care Spot - Private (3rd),5701,B
18,Devon County Council,13/08/2012,CFADDOM30041106,REDACTED UNDER DP ACT,905.52,BURDON GRANGE,203246,,People Services,Care Spot - Private (3rd),5701,B
18,Devon County Council,13/08/2012,CFADDOM30041112,REDACTED UNDER DP ACT,2497.04,BURDON GRANGE,203246,,People Services,Care Spot - Private (3rd),5701,B
18,Devon County Council,13/08/2012,CFADDAY30018536,REDACTED UNDER DP ACT,730.56,BURLINGTON CARE,160108,,People Services,Individualised Support - Private (3rd),5706,B
18,Devon County Council,08/08/2012,CFADRES30066260,REDACTED UNDER DP ACT,3427.4,BURLINGTON CARE,160108,,People Services,Care Spot - Private (3rd),5701,B
18,Devon County Council,22/08/2012,CFADRES30066934,REDACTED UNDER DP ACT,3427.4,BURLINGTON CARE,160108,,People Services,Care Spot - Private (3rd),5701,B
18,Devon County Council,08/08/2012,CFADRES30066265,REDACTED UNDER DP ACT,874.92,BURNHAM NURSING & RESIDNTL CENTR,164760,,People Services,Care Spot - Private (3rd),5701,B
18,Devon County Council,22/08/2012,CFADRES30066939,REDACTED UNDER DP ACT,874.92,BURNHAM NURSING & RESIDNTL CENTR,164760,,People Services,Care Spot - Private (3rd),5701,B
18,Devon County Council,08/08/2012,CFADRES30065923,REDACTED UNDER DP ACT,6608.16,BURROW DOWN SUPPORT SERVICES LTD,87371,,People Services,Care Spot - Private (3rd),5701,B
18,Devon County Council,22/08/2012,CFADRES30066598,REDACTED UNDER DP ACT,8323.7,BURROW DOWN SUPPORT SERVICES LTD,87371,,People Services,Care Respite - Private (3rd),5703,B
18,Devon County Council,08/08/2012,CFADRES30066028,REDACTED UNDER DP ACT,6803.3,C0MMUNITY PROJECTS NORTH DEVON,89902,,People Services,Care Spot - Private (3rd),5701,B
18,Devon County Council,22/08/2012,CFADRES30066702,REDACTED UNDER DP ACT,6803.3,C0MMUNITY PROJECTS NORTH DEVON,89902,,People Services,Care Spot - Private (3rd),5701,B
18,Devon County Council,08/08/2012,CFADRES30066390,REDACTED UNDER DP ACT,2020.2,CAMBERLEY COTTAGE,229198,,People Services,Care Spot - Private (3rd),5701,B
18,Devon County Council,22/08/2012,CFADRES30067062,REDACTED UNDER DP ACT,2020.2,CAMBERLEY COTTAGE,229198,,People Services,Care Spot - Private (3rd),5701,B
18,Devon County Council,08/08/2012,CFADRES30066228,REDACTED UNDER DP ACT,8026.96,CAMELOT HOUSE EMI NURSING HOME,144364,,People Services,Care Spot - Private (3rd),5701,B
18,Devon County Council,22/08/2012,CFADRES30066902,REDACTED UNDER DP ACT,8468.8,CAMELOT HOUSE EMI NURSING HOME,144364,,People Services,Care Spot - Private (3rd),5701,B
18,Devon County Council,06/08/2012,CFADDAY30018290,REDACTED UNDER DP ACT,612,CAMPHILL DEVON COMMUNITY LTD,105994,,People Services,Individualised Support - Private (3rd),5706,B
18,Devon County Council,06/08/2012,CFADDAY30018291,REDACTED UNDER DP ACT,634.08,CAMPHILL DEVON COMMUNITY LTD,105994,,People Services,Individualised Support - Private (3rd),5706,B
18,Devon County Council,13/08/2012,CFADDAY30018527,REDACTED UNDER DP ACT,966,CAMPHILL DEVON COMMUNITY LTD,105994,,People Services,Care Spot - Private (3rd),5701,B
18,Devon County Council,13/08/2012,CFADDAY30018528,REDACTED UNDER DP ACT,1587,CAMPHILL DEVON COMMUNITY LTD,105994,,People Services,Care Spot - Private (3rd),5701,B
18,Devon County Council,08/08/2012,CFADRES30066182,REDACTED UNDER DP ACT,17037.58,CAMPHILL DEVON COMMUNITY LTD,105994,,People Services,Care Spot - Private (3rd),5701,B
18,Devon County Council,22/08/2012,CFADRES30066856,REDACTED UNDER DP ACT,16981.02,CAMPHILL DEVON COMMUNITY LTD,105994,,People Services,Care Spot - Private (3rd),5701,B
18,Devon County Council,06/08/2012,CFADDOM30040641,REDACTED UNDER DP ACT,668.58,CARE COMPANY(SW)LTD,209342,,People Services,Care Spot - Private (3rd),5701,B
18,Devon County Council,13/08/2012,CFADDOM30041127,REDACTED UNDER DP ACT,734.29,CARE COMPANY(SW)LTD,209342,,People Services,Care Spot - Private (3rd),5701,B
18,Devon County Council,13/08/2012,CFADDOM30041131,REDACTED UNDER DP ACT,1817.64,CARE COMPANY(SW)LTD,209342,,People Services,Care Spot - Private (3rd),5701,B
18,Devon County Council,13/08/2012,CFADDOM30041134,REDACTED UNDER DP ACT,1067.14,CARE COMPANY(SW)LTD,209342,,People Services,Care Spot - Private (3rd),5701,B
18,Devon County Council,13/08/2012,CFADDOM30041138,REDACTED UNDER DP ACT,538.56,CARE COMPANY(SW)LTD,209342,,People Services,Care Spot - Private (3rd),5701,B
18,Devon County Council,13/08/2012,CFADDOM30041144,REDACTED UNDER DP ACT,1712.92,CARE COMPANY(SW)LTD,209342,,People Services,Care Spot - Private (3rd),5701,B
18,Devon County Council,13/08/2012,CFADDOM30041147,REDACTED UNDER DP ACT,508.64,CARE COMPANY(SW)LTD,209342,,People Services,Care Spot - Private (3rd),5701,B
18,Devon County Council,13/08/2012,CFADDOM30041149,REDACTED UNDER DP ACT,658.24,CARE COMPANY(SW)LTD,209342,,People Services,Care Spot - Private (3rd),5701,B
18,Devon County Council,28/08/2012,CFADDOM30041980,REDACTED UNDER DP ACT,18169.7,CARETIME SERVICES LIMITED,210505,,People Services,Care Spot - Private (3rd),5701,B
18,Devon County Council,28/08/2012,CFADDOM30041981,REDACTED UNDER DP ACT,21389,CARETIME SERVICES LIMITED,210505,,People Services,Care Spot - Private (3rd),5701,B
18,Devon County Council,28/08/2012,CFADDOM30041982,REDACTED UNDER DP ACT,20476.21,CARETIME SERVICES LIMITED,210505,,People Services,Care Spot - Private (3rd),5701,B
18,Devon County Council,28/08/2012,CFADDOM30041983,REDACTED UNDER DP ACT,5690.56,CARETIME SERVICES LIMITED,210505,,People Services,Care Spot - Private (3rd),5701,B
18,Devon County Council,08/08/2012,CFADRES30066421,REDACTED UNDER DP ACT,914.12,CARRINGTON HOUSE,240422,,People Services,Care Spot - Private (3rd),5701,B
18,Devon County Council,22/08/2012,CFADRES30067093,REDACTED UNDER DP ACT,914.12,CARRINGTON HOUSE,240422,,People Services,Care Spot - Private (3rd),5701,B
18,Devon County Council,08/08/2012,CFADRES30066057,REDACTED UNDER DP ACT,15792.62,CASH DE,90200,,People Services,Care Spot - Private (3rd),5701,B
18,Devon County Council,22/08/2012,CFADRES30066731,REDACTED UNDER DP ACT,15792.62,CASH DE,90200,,People Services,Care Spot - Private (3rd),5701,B
18,Devon County Council,08/08/2012,CFADRES30066015,REDACTED UNDER DP ACT,1858.12,CASTEL FROMA,89760,,People Services,Care Spot - Private (3rd),5701,B
18,Devon County Council,22/08/2012,CFADRES30066690,REDACTED UNDER DP ACT,1858.12,CASTEL FROMA,89760,,People Services,Care Spot - Private (3rd),5701,B
18,Devon County Council,08/08/2012,CFADRES30066374,REDACTED UNDER DP ACT,14486.2,CASTLE HOUSE NURSING HOME,220448,,People Services,Care Spot - Private (3rd),5701,B
18,Devon County Council,08/08/2012,CFADRES30066081,REDACTED UNDER DP ACT,1549.36,CASTLE ROAD RENT A/C,90446,,People Services,Care Spot - Private (3rd),5701,B
18,Devon County Council,22/08/2012,CFADRES30066755,REDACTED UNDER DP ACT,1549.36,CASTLE ROAD RENT A/C,90446,,People Services,Care Spot - Private (3rd),5701,B
18,Devon County Council,08/08/2012,CFADRES30066441,REDACTED UNDER DP ACT,2036.2,CATHERINE HOUSE,251903,,People Services,Care Spot - Private (3rd),5701,B
18,Devon County Council,22/08/2012,CFADRES30067114,REDACTED UNDER DP ACT,2036.2,CATHERINE HOUSE,251903,,People Services,Care Spot - Private (3rd),5701,B
18,Devon County Council,08/08/2012,CFADRES30066406,REDACTED UNDER DP ACT,2607,CEDAR GRANGE,232408,,People Services,Care Spot - Private (3rd),5701,B
18,Devon County Council,22/08/2012,CFADRES30067078,REDACTED UNDER DP ACT,2664,CEDAR GRANGE,232408,,People Services,Care Spot - Private (3rd),5701,B
18,Devon County Council,08/08/2012,CFADRES30066482,REDACTED UNDER DP ACT,1100,CERNE ABBAS,275155,,People Services,Care Spot - Private (3rd),5701,B
18,Devon County Council,22/08/2012,CFADRES30067154,REDACTED UNDER DP ACT,1100,CERNE ABBAS,275155,,People Services,Care Spot - Private (3rd),5701,B
18,Devon County Council,15/08/2012,CFADDAY30018688,REDACTED UNDER DP ACT,1358.46,CHAPTER 1,256621,,People Services,Individualised Support - Private (3rd),5706,B
18,Devon County Council,15/08/2012,CFADDAY30018692,REDACTED UNDER DP ACT,778.35,CHAPTER 1,256621,,People Services,Individualised Support - Private (3rd),5706,B
18,Devon County Council,15/08/2012,CFADDAY30018693,REDACTED UNDER DP ACT,1358.46,CHAPTER 1,256621,,People Services,Individualised Support - Private (3rd),5706,B
18,Devon County Council,15/08/2012,CFADDAY30018694,REDACTED UNDER DP ACT,682.68,CHAPTER 1,256621,,People Services,Individualised Support - Private (3rd),5706,B
18,Devon County Council,15/08/2012,CFADDAY30018695,REDACTED UNDER DP ACT,679.23,CHAPTER 1,256621,,People Services,Individualised Support - Private (3rd),5706,B
18,Devon County Council,15/08/2012,CFADDAY30018697,REDACTED UNDER DP ACT,679.23,CHAPTER 1,256621,,People Services,Individualised Support - Private (3rd),5706,B
18,Devon County Council,15/08/2012,CFADDAY30018698,REDACTED UNDER DP ACT,638.57,CHAPTER 1,256621,,People Services,Individualised Support - Private (3rd),5706,B
18,Devon County Council,15/08/2012,CFADDAY30018699,REDACTED UNDER DP ACT,638.57,CHAPTER 1,256621,,People Services,Individualised Support - Private (3rd),5706,B
18,Devon County Council,06/08/2012,CFADDOM30040702,REDACTED UNDER DP ACT,1953,CHAPTER CARE(NORTH DEVON)LTD,230988,911614553,People Services,Care Spot - Private (3rd),5701,B
18,Devon County Council,06/08/2012,CFADDOM30040706,REDACTED UNDER DP ACT,987,CHAPTER CARE(NORTH DEVON)LTD,230988,911614553,People Services,Care Spot - Private (3rd),5701,B
18,Devon County Council,06/08/2012,CFADDOM30040708,REDACTED UNDER DP ACT,1302,CHAPTER CARE(NORTH DEVON)LTD,230988,911614553,People Services,Care Spot - Private (3rd),5701,B
18,Devon County Council,06/08/2012,CFADDOM30040709,REDACTED UNDER DP ACT,1032.5,CHAPTER CARE(NORTH DEVON)LTD,230988,911614553,People Services,Care Spot - Private (3rd),5701,B
18,Devon County Council,06/08/2012,CFADDOM30040712,REDACTED UNDER DP ACT,588,CHAPTER CARE(NORTH DEVON)LTD,230988,911614553,People Services,Care Spot - Private (3rd),5701,B
18,Devon County Council,06/08/2012,CFADDOM30040715,REDACTED UNDER DP ACT,588,CHAPTER CARE(NORTH DEVON)LTD,230988,911614553,People Services,Care Spot - Private (3rd),5701,B
18,Devon County Council,06/08/2012,CFADDOM30040721,REDACTED UNDER DP ACT,588,CHAPTER CARE(NORTH DEVON)LTD,230988,911614553,People Services,Care Spot - Private (3rd),5701,B
18,Devon County Council,06/08/2012,CFADDOM30040724,REDACTED UNDER DP ACT,1568,CHAPTER CARE(NORTH DEVON)LTD,230988,911614553,People Services,Care Spot - Private (3rd),5701,B
18,Devon County Council,06/08/2012,CFADDOM30040726,REDACTED UNDER DP ACT,1799,CHAPTER CARE(NORTH DEVON)LTD,230988,911614553,People Services,Care Spot - Private (3rd),5701,B
18,Devon County Council,06/08/2012,CFADDOM30040727,REDACTED UNDER DP ACT,1736,CHAPTER CARE(NORTH DEVON)LTD,230988,911614553,People Services,Care Spot - Private (3rd),5701,B
18,Devon County Council,06/08/2012,CFADDOM30040728,REDACTED UNDER DP ACT,567,CHAPTER CARE(NORTH DEVON)LTD,230988,911614553,People Services,Care Spot - Private (3rd),5701,B
18,Devon County Council,06/08/2012,CFADDOM30040730,REDACTED UNDER DP ACT,1281,CHAPTER CARE(NORTH DEVON)LTD,230988,911614553,People Services,Care Spot - Private (3rd),5701,B
18,Devon County Council,06/08/2012,CFADDOM30040740,REDACTED UNDER DP ACT,784,CHAPTER CARE(NORTH DEVON)LTD,230988,911614553,People Services,Care Spot - Private (3rd),5701,B
18,Devon County Council,06/08/2012,CFADDOM30040745,REDACTED UNDER DP ACT,616,CHAPTER CARE(NORTH DEVON)LTD,230988,911614553,People Services,Care Spot - Private (3rd),5701,B
18,Devon County Council,06/08/2012,CFADDOM30040747,REDACTED UNDER DP ACT,1540,CHAPTER CARE(NORTH DEVON)LTD,230988,911614553,People Services,Care Spot - Private (3rd),5701,B
18,Devon County Council,08/08/2012,CFADRES30066036,REDACTED UNDER DP ACT,782,CHARLTON HOUSE R HME,89999,,People Services,Care Spot - Private (3rd),5701,B
18,Devon County Council,22/08/2012,CFADRES30066710,REDACTED UNDER DP ACT,782,CHARLTON HOUSE R HME,89999,,People Services,Care Spot - Private (3rd),5701,B
18,Devon County Council,08/08/2012,CFADRES30066230,REDACTED UNDER DP ACT,5503.6,CHARTERHOUSE RESIDENTIAL HOME,146731,,People Services,Care Spot - Private (3rd),5701,B
18,Devon County Council,22/08/2012,CFADRES30066904,REDACTED UNDER DP ACT,6215.03,CHARTERHOUSE RESIDENTIAL HOME,146731,,People Services,Care Spot - Private (3rd),5701,B
18,Devon County Council,08/08/2012,CFADRES30066499,REDACTED UNDER DP ACT,970,CHASTON HOUSE LTD/MRS P LEATHAM,279695,,People Services,Care Spot - Private (3rd),5701,B
18,Devon County Council,22/08/2012,CFADRES30067171,REDACTED UNDER DP ACT,970,CHASTON HOUSE LTD/MRS P LEATHAM,279695,,People Services,Care Spot - Private (3rd),5701,B
18,Devon County Council,08/08/2012,CFADRES30066275,REDACTED UNDER DP ACT,16030.46,CHELFHAM HOUSE RESIDENTIAL HOME,170833,,People Services,Care Spot - Private (3rd),5701,B
18,Devon County Council,22/08/2012,CFADRES30066949,REDACTED UNDER DP ACT,16030.46,CHELFHAM HOUSE RESIDENTIAL HOME,170833,,People Services,Care Spot - Private (3rd),5701,B
18,Devon County Council,08/08/2012,CFADRES30065930,REDACTED UNDER DP ACT,2630.84,CHELSTON PARK NURSING & RES HOME,87556,,People Services,Care Spot - Private (3rd),5701,B
18,Devon County Council,22/08/2012,CFADRES30066605,REDACTED UNDER DP ACT,2630.84,CHELSTON PARK NURSING & RES HOME,87556,,People Services,Care Spot - Private (3rd),5701,B
18,Devon County Council,08/08/2012,CFADRES30066389,REDACTED UNDER DP ACT,565.02,CHERITON RESIDENTIAL & CARE HOME,229197,,People Services,Care Spot - Private (3rd),5701,B
18,Devon County Council,22/08/2012,CFADRES30067061,REDACTED UNDER DP ACT,565.02,CHERITON RESIDENTIAL & CARE HOME,229197,,People Services,Care Spot - Private (3rd),5701,B
18,Devon County Council,08/08/2012,CFADRES30065914,REDACTED UNDER DP ACT,4940.84,CHIMES THE,87062,,People Services,Care Spot - Private (3rd),5701,B
18,Devon County Council,22/08/2012,CFADRES30066589,REDACTED UNDER DP ACT,4940.84,CHIMES THE,87062,,People Services,Care Spot - Private (3rd),5701,B
18,Devon County Council,08/08/2012,CFADRES30065920,REDACTED UNDER DP ACT,919.7,CHOICE CARE HOME,87299,,People Services,Care Spot - Private (3rd),5701,B
18,Devon County Council,22/08/2012,CFADRES30066595,REDACTED UNDER DP ACT,919.7,CHOICE CARE HOME,87299,,People Services,Care Spot - Private (3rd),5701,B
18,Devon County Council,08/08/2012,CFSUPP30170777,REDACTED UNDER DP ACT,19252.32,CHRISTIAN ALLIANCE H A(SP PMTS),120564,,People Services,Accomodation Based Services (3rd),5707,B
18,Devon County Council,24/08/2012,FINMH30444876,0175SNETLAGE,1358.46,CHRISTIAN ALLIANCE HOUSING ASSOC,160070,749563487,People Services,Individualised Support - Private (3rd),5706,B
18,Devon County Council,08/08/2012,CFADRES30066431,REDACTED UNDER DP ACT,744.1,COACH HOUSE RESIDENTIAL HOME,246276,,People Services,Care Spot - Private (3rd),5701,B
18,Devon County Council,22/08/2012,CFADRES30067103,REDACTED UNDER DP ACT,744.1,COACH HOUSE RESIDENTIAL HOME,246276,,People Services,Care Spot - Private (3rd),5701,B
18,Devon County Council,08/08/2012,CFADRES30066545,REDACTED UNDER DP ACT,1100,COLLYCARE / B&M TA ST LUKES/OAKS,290845,,People Services,Care Spot - Private (3rd),5701,B
18,Devon County Council,22/08/2012,CFADRES30067214,REDACTED UNDER DP ACT,1100,COLLYCARE / B&M TA ST LUKES/OAKS,290845,,People Services,Care Spot - Private (3rd),5701,B
18,Devon County Council,08/08/2012,CFADRES30066165,REDACTED UNDER DP ACT,1352.08,COLOMBINI E,101115,,People Services,Care Spot - Private (3rd),5701,B
18,Devon County Council,22/08/2012,CFADRES30066839,REDACTED UNDER DP ACT,1352.08,COLOMBINI E,101115,,People Services,Care Spot - Private (3rd),5701,B
18,Devon County Council,02/08/2012,CFADDAY30018118,REDACTED UNDER DP ACT,660,COMMUNITY CARE TRUST S DEVON LTD,87475,,People Services,Individualised Support - Private (3rd),5706,B
18,Devon County Council,02/08/2012,CFADDAY30018119,REDACTED UNDER DP ACT,690,COMMUNITY CARE TRUST S DEVON LTD,87475,,People Services,Individualised Support - Private (3rd),5706,B
18,Devon County Council,02/08/2012,CFADDAY30018120,REDACTED UNDER DP ACT,960,COMMUNITY CARE TRUST S DEVON LTD,87475,,People Services,Individualised Support - Private (3rd),5706,B
18,Devon County Council,02/08/2012,CFADDAY30018121,REDACTED UNDER DP ACT,585,COMMUNITY CARE TRUST S DEVON LTD,87475,,People Services,Individualised Support - Private (3rd),5706,B
18,Devon County Council,02/08/2012,CFADDAY30018122,REDACTED UNDER DP ACT,1065,COMMUNITY CARE TRUST S DEVON LTD,87475,,People Services,Individualised Support - Private (3rd),5706,B
18,Devon County Council,02/08/2012,CFADDAY30018123,REDACTED UNDER DP ACT,1005,COMMUNITY CARE TRUST S DEVON LTD,87475,,People Services,Individualised Support - Private (3rd),5706,B
18,Devon County Council,16/08/2012,FINMH30444868,CCT-PA-010,840,COMMUNITY CARE TRUST S DEVON LTD,87475,,People Services,Care Spot - Private (3rd),5701,B
18,Devon County Council,21/08/2012,FINMH30444871,CCT-PA-011,743.1,COMMUNITY CARE TRUST S DEVON LTD,87475,,People Services,Care Spot - Private (3rd),5701,B
18,Devon County Council,24/08/2012,FINMH30444913,CCT-PA-006,1371.6,COMMUNITY CARE TRUST S DEVON LTD,87475,,People Services,Care Spot - Private (3rd),5701,B
18,Devon County Council,08/08/2012,CFADRES30066513,REDACTED UNDER DP ACT,1458.36,COOMBE HOUSE THE,283895,,People Services,Care Spot - Private (3rd),5701,B
18,Devon County Council,08/08/2012,CFADRES30065929,REDACTED UNDER DP ACT,15327.27,COOMBESWOOD HOUSE,87540,,People Services,Care Spot - Private (3rd),5701,B
18,Devon County Council,22/08/2012,CFADRES30066604,REDACTED UNDER DP ACT,15280.13,COOMBESWOOD HOUSE,87540,,People Services,Care Spot - Private (3rd),5701,B
18,Devon County Council,08/08/2012,CFADRES30066206,REDACTED UNDER DP ACT,1957.22,COPPER BEECHES CARE HOME,121229,,People Services,Care Spot - Private (3rd),5701,B
18,Devon County Council,13/08/2012,DHRP30223296,2.1,1466.25,COPPER BEECHES CARE HOME,121229,,Corporate Services,Course / Exam Fees & Registration,4312,B
18,Devon County Council,08/08/2012,CFADRES30066433,REDACTED UNDER DP ACT,1687.4,COPPICE LEA,247059,,People Services,Care Spot - Private (3rd),5701,B
18,Devon County Council,22/08/2012,CFADRES30067105,REDACTED UNDER DP ACT,1687.4,COPPICE LEA,247059,,People Services,Care Spot - Private (3rd),5701,B
18,Devon County Council,08/08/2012,CFADRES30066496,REDACTED UNDER DP ACT,1595.58,CORNERWAYS CARE HOME,278868,,People Services,Care Spot - Private (3rd),5701,B
18,Devon County Council,22/08/2012,CFADRES30067168,REDACTED UNDER DP ACT,1595.58,CORNERWAYS CARE HOME,278868,,People Services,Care Spot - Private (3rd),5701,B
18,Devon County Council,15/08/2012,CFADDAY30018594,REDACTED UNDER DP ACT,12586,CORNWALL CARE LTD (TRURO),90449,,People Services,Individualised Support - Private (3rd),5706,B
18,Devon County Council,15/08/2012,CFADDAY30018595,REDACTED UNDER DP ACT,15732.5,CORNWALL CARE LTD (TRURO),90449,,People Services,Individualised Support - Private (3rd),5706,B
18,Devon County Council,28/08/2012,CFADDAY30019131,REDACTED UNDER DP ACT,12586,CORNWALL CARE LTD (TRURO),90449,,People Services,Individualised Support - Private (3rd),5706,B
18,Devon County Council,08/08/2012,CFADRES30065969,REDACTED UNDER DP ACT,8778.4,COURT HEALTHCARE LTD,89123,,People Services,Care Spot - Private (3rd),5701,B
18,Devon County Council,22/08/2012,CFADRES30066644,REDACTED UNDER DP ACT,8778.4,COURT HEALTHCARE LTD,89123,,People Services,Care Spot - Private (3rd),5701,B
18,Devon County Council,08/08/2012,CFADRES30065939,REDACTED UNDER DP ACT,3427.22,COURT HOUSE RESIDENTIAL HOME,88684,,People Services,Care Spot - Private (3rd),5701,B
18,Devon County Council,22/08/2012,CFADRES30066614,REDACTED UNDER DP ACT,3427.22,COURT HOUSE RESIDENTIAL HOME,88684,,People Services,Care Spot - Private (3rd),5701,B
18,Devon County Council,08/08/2012,CFADRES30066202,REDACTED UNDER DP ACT,7739.64,COURT RETIREMENT RESIDENCE,119163,,People Services,Care Spot - Private (3rd),5701,B
18,Devon County Council,22/08/2012,CFADRES30066876,REDACTED UNDER DP ACT,7499.94,COURT RETIREMENT RESIDENCE,119163,,People Services,Care Spot - Private (3rd),5701,B
18,Devon County Council,28/08/2012,CFADDAY30019077,REDACTED UNDER DP ACT,730.71,CRAEGMOOR HEALTHCARE,89875,,People Services,Individualised Support - Private (3rd),5706,B
18,Devon County Council,28/08/2012,CFADDAY30019078,REDACTED UNDER DP ACT,1487.57,CRAEGMOOR HEALTHCARE,89875,,People Services,Individualised Support - Private (3rd),5706,B
18,Devon County Council,28/08/2012,CFADDAY30019079,REDACTED UNDER DP ACT,682,CRAEGMOOR HEALTHCARE,89875,,People Services,Individualised Support - Private (3rd),5706,B
18,Devon County Council,28/08/2012,CFADDAY30019081,REDACTED UNDER DP ACT,1388.4,CRAEGMOOR HEALTHCARE,89875,,People Services,Individualised Support - Private (3rd),5706,B
18,Devon County Council,08/08/2012,CFADRES30065980,REDACTED UNDER DP ACT,4462.52,CRANE AC & EL/HARRIS MBC & DR AJ,89244,,People Services,Care Spot - Private (3rd),5701,B
18,Devon County Council,22/08/2012,CFADRES30066655,REDACTED UNDER DP ACT,4462.52,CRANE AC & EL/HARRIS MBC & DR AJ,89244,,People Services,Care Spot - Private (3rd),5701,B
18,Devon County Council,08/08/2012,CFADRES30066522,REDACTED UNDER DP ACT,900,CRANTOCK LODGE (NEW OWNERS),285672,,People Services,Care Spot - Private (3rd),5701,B
18,Devon County Council,22/08/2012,CFADRES30067191,REDACTED UNDER DP ACT,900,CRANTOCK LODGE (NEW OWNERS),285672,,People Services,Care Spot - Private (3rd),5701,B
18,Devon County Council,08/08/2012,CFADDAY30018356,REDACTED UNDER DP ACT,4458,CREDENCE HOUSE,87058,,People Services,Individualised Support - Private (3rd),5706,B
18,Devon County Council,13/08/2012,CFADDAY30018504,REDACTED UNDER DP ACT,4458,CREDENCE HOUSE,87058,,People Services,Individualised Support - Private (3rd),5706,B
18,Devon County Council,08/08/2012,CFADRES30065913,REDACTED UNDER DP ACT,3738.38,CREDENCE HOUSE,87058,,People Services,Care Spot - Private (3rd),5701,B
18,Devon County Council,22/08/2012,CFADRES30066588,REDACTED UNDER DP ACT,4698.38,CREDENCE HOUSE,87058,,People Services,Care Spot - Private (3rd),5701,B
18,Devon County Council,08/08/2012,CFADRES30066056,REDACTED UNDER DP ACT,11715.58,CREDITON CARE & SUPPORT HOMES LT,90198,,People Services,Care Spot - Private (3rd),5701,B
18,Devon County Council,08/08/2012,CFADRES30066556,REDACTED UNDER DP ACT,8429.33,CRELAKE CARE LTD T/A CRELAKE HSE,292598,,People Services,Care Spot - Private (3rd),5701,B
18,Devon County Council,22/08/2012,CFADRES30067225,REDACTED UNDER DP ACT,9132.04,CRELAKE CARE LTD T/A CRELAKE HSE,292598,,People Services,Care Spot - Private (3rd),5701,B
18,Devon County Council,08/08/2012,CFADRES30066439,REDACTED UNDER DP ACT,4160,CROFT LODGE (NEW OWNERS),250761,,People Services,Care Spot - Private (3rd),5701,B
18,Devon County Council,22/08/2012,CFADRES30067112,REDACTED UNDER DP ACT,4160,CROFT LODGE (NEW OWNERS),250761,,People Services,Care Spot - Private (3rd),5701,B
18,Devon County Council,08/08/2012,CFADRES30066194,REDACTED UNDER DP ACT,7568.96,CROOK M T/A SOUTHERNHAY RES HOME,115824,,People Services,Care Spot - Private (3rd),5701,B
18,Devon County Council,22/08/2012,CFADRES30066868,REDACTED UNDER DP ACT,7568.96,CROOK M T/A SOUTHERNHAY RES HOME,115824,,People Services,Care Spot - Private (3rd),5701,B
18,Devon County Council,08/08/2012,CFADRES30065903,REDACTED UNDER DP ACT,2259.32,CROSS PARK HOUSE,86782,,People Services,Care Spot - Private (3rd),5701,B
18,Devon County Council,22/08/2012,CFADRES30066578,REDACTED UNDER DP ACT,2259.32,CROSS PARK HOUSE,86782,,People Services,Care Spot - Private (3rd),5701,B
18,Devon County Council,08/08/2012,CFADRES30066033,REDACTED UNDER DP ACT,8692,CROWE GF,89970,945640606,People Services,Care Spot - Private (3rd),5701,B
18,Devon County Council,22/08/2012,CFADRES30066707,REDACTED UNDER DP ACT,8692,CROWE GF,89970,945640606,People Services,Care Spot - Private (3rd),5701,B
18,Devon County Council,22/08/2012,CFADRES30066874,REDACTED UNDER DP ACT,12179.34,CULM VALLEY CARE CENTRE,118328,,People Services,Care Spot - Private (3rd),5701,B
18,Devon County Council,08/08/2012,CFADRES30065966,REDACTED UNDER DP ACT,3528.68,DAVIES JL & PJ,89115,,People Services,Care Spot - Private (3rd),5701,B
18,Devon County Council,22/08/2012,CFADRES30066641,REDACTED UNDER DP ACT,3528.68,DAVIES JL & PJ,89115,,People Services,Care Spot - Private (3rd),5701,B
18,Devon County Council,08/08/2012,CFADRES30065955,REDACTED UNDER DP ACT,3697.48,DAY SUSAN OLD PEOPLES HOME,89018,,People Services,Care Spot - Private (3rd),5701,B
18,Devon County Council,22/08/2012,CFADRES30066630,REDACTED UNDER DP ACT,3697.48,DAY SUSAN OLD PEOPLES HOME,89018,,People Services,Care Spot - Private (3rd),5701,B
18,Devon County Council,28/08/2012,CFADDOM30042033,REDACTED UNDER DP ACT,2051.14,DEER PARK RESIDENTIAL HOME,277063,,People Services,Care Spot - Private (3rd),5701,B
18,Devon County Council,08/08/2012,CFADRES30066511,REDACTED UNDER DP ACT,23190.18,DENE COURT RESIDENTIAL HOME,282520,,People Services,Care Spot - Private (3rd),5701,B
18,Devon County Council,22/08/2012,CFADRES30067182,REDACTED UNDER DP ACT,19890.9,DENE COURT RESIDENTIAL HOME,282520,,People Services,Care Spot - Private (3rd),5701,B
18,Devon County Council,08/08/2012,CFADRES30066130,REDACTED UNDER DP ACT,3542.68,DEVON & CORNWALL AUTISTIC,90937,,People Services,Care Spot - Private (3rd),5701,B
18,Devon County Council,22/08/2012,CFADRES30066804,REDACTED UNDER DP ACT,3542.68,DEVON & CORNWALL AUTISTIC,90937,,People Services,Care Spot - Private (3rd),5701,B
18,Devon County Council,06/08/2012,CFADDAY30018259,REDACTED UNDER DP ACT,1720.04,DEVON & CORNWALL AUTISTIC COMM T,88854,,People Services,Care Spot - Private (3rd),5701,B
18,Devon County Council,20/08/2012,CFADDAY30018754,REDACTED UNDER DP ACT,2355.6,DEVON & CORNWALL AUTISTIC COMM T,88854,,People Services,Care Spot - Private (3rd),5701,B
18,Devon County Council,20/08/2012,CFADDAY30018755,REDACTED UNDER DP ACT,1720.04,DEVON & CORNWALL AUTISTIC COMM T,88854,,People Services,Care Spot - Private (3rd),5701,B
18,Devon County Council,20/08/2012,CFADDAY30018756,REDACTED UNDER DP ACT,2434.12,DEVON & CORNWALL AUTISTIC COMM T,88854,,People Services,Care Spot - Private (3rd),5701,B
18,Devon County Council,20/08/2012,CFADDAY30018757,REDACTED UNDER DP ACT,1720.04,DEVON & CORNWALL AUTISTIC COMM T,88854,,People Services,Care Spot - Private (3rd),5701,B
18,Devon County Council,20/08/2012,CFADDAY30018758,REDACTED UNDER DP ACT,2355.6,DEVON & CORNWALL AUTISTIC COMM T,88854,,People Services,Care Spot - Private (3rd),5701,B
18,Devon County Council,08/08/2012,CFADRES30065949,REDACTED UNDER DP ACT,1365.82,DEVON & CORNWALL AUTISTIC COMM T,88854,,People Services,Care Spot - Private (3rd),5701,B
18,Devon County Council,22/08/2012,CFADRES30066624,REDACTED UNDER DP ACT,1365.82,DEVON & CORNWALL AUTISTIC COMM T,88854,,People Services,Care Spot - Private (3rd),5701,B
18,Devon County Council,08/08/2012,CFADDAY30018362,REDACTED UNDER DP ACT,533.6,DEVON & CORNWALL CARE SERVICES,89806,,People Services,Individualised Support - Private (3rd),5706,B
18,Devon County Council,28/08/2012,CFADDOM30041930,REDACTED UNDER DP ACT,16778.01,DEVON & CORNWALL CARE SERVICES,89806,,People Services,Care Block - Private (3rd),5702,B
18,Devon County Council,28/08/2012,CFADDOM30041931,REDACTED UNDER DP ACT,3060.4,DEVON & CORNWALL CARE SERVICES,89806,,People Services,Care Spot - Private (3rd),5701,B
18,Devon County Council,08/08/2012,CFADRES30066062,REDACTED UNDER DP ACT,20703.5,DEVON SHELTERED HOMES TRUST,90260,,People Services,Care Spot - Private (3rd),5701,B
18,Devon County Council,22/08/2012,CFADRES30066736,REDACTED UNDER DP ACT,20703.5,DEVON SHELTERED HOMES TRUST,90260,,People Services,Care Spot - Private (3rd),5701,B
18,Devon County Council,08/08/2012,CFADRES30065938,REDACTED UNDER DP ACT,2549.02,DIAMOND CARE 2000 LTD,88681,,People Services,Care Spot - Private (3rd),5701,B
18,Devon County Council,22/08/2012,CFADRES30066613,REDACTED UNDER DP ACT,2549.02,DIAMOND CARE 2000 LTD,88681,,People Services,Care Spot - Private (3rd),5701,B
18,Devon County Council,08/08/2012,CFADRES30066548,REDACTED UNDER DP ACT,13372.72,DIAMOND CARE(2000)LD/THE CHANTRY,291234,,People Services,Care Spot - Private (3rd),5701,B
18,Devon County Council,22/08/2012,CFADRES30067217,REDACTED UNDER DP ACT,13372.72,DIAMOND CARE(2000)LD/THE CHANTRY,291234,,People Services,Care Spot - Private (3rd),5701,B
18,Devon County Council,08/08/2012,CFADRES30066155,REDACTED UNDER DP ACT,8205.2,DODGE C T/A WESTCLIFFE HOUSE,99246,,People Services,Care Spot - Private (3rd),5701,B
18,Devon County Council,22/08/2012,CFADRES30066829,REDACTED UNDER DP ACT,8590.2,DODGE C T/A WESTCLIFFE HOUSE,99246,,People Services,Care Spot - Private (3rd),5701,B
18,Devon County Council,08/08/2012,CFADRES30065991,REDACTED UNDER DP ACT,11212.61,DODGE T/A WESTCLIFFE HOUSE,89387,,People Services,Care Spot - Private (3rd),5701,B
18,Devon County Council,22/08/2012,CFADRES30066666,REDACTED UNDER DP ACT,11138.9,DODGE T/A WESTCLIFFE HOUSE,89387,,People Services,Care Spot - Private (3rd),5701,B
18,Devon County Council,08/08/2012,CFADRES30066012,REDACTED UNDER DP ACT,13150.79,DONNESS NURSING HOME,89728,,People Services,Care Spot - Private (3rd),5701,B
18,Devon County Council,22/08/2012,CFADRES30066687,REDACTED UNDER DP ACT,12175.28,DONNESS NURSING HOME,89728,,People Services,Care Spot - Private (3rd),5701,B
18,Devon County Council,08/08/2012,CFADRES30066248,REDACTED UNDER DP ACT,13392.26,DONNINGTON HOUSE,156587,,People Services,Care Spot - Private (3rd),5701,B
18,Devon County Council,22/08/2012,CFADRES30066922,REDACTED UNDER DP ACT,12292.26,DONNINGTON HOUSE,156587,,People Services,Care Spot - Private (3rd),5701,B
18,Devon County Council,08/08/2012,CFADRES30066452,REDACTED UNDER DP ACT,17384.33,DOROTHY THORNTON R H-IN ADMNSTN,259220,,People Services,Care Spot - Private (3rd),5701,B
18,Devon County Council,22/08/2012,CFADRES30067125,REDACTED UNDER DP ACT,15364.04,DOROTHY THORNTON R H-IN ADMNSTN,259220,,People Services,Care Spot - Private (3rd),5701,B
18,Devon County Council,08/08/2012,CFADRES30066167,REDACTED UNDER DP ACT,10130.3,DOVELEIGH CARE LTD T/A DOVE CRT,101741,,People Services,Care Spot - Private (3rd),5701,B
18,Devon County Council,22/08/2012,CFADRES30066841,REDACTED UNDER DP ACT,10130.3,DOVELEIGH CARE LTD T/A DOVE CRT,101741,,People Services,Care Spot - Private (3rd),5701,B
18,Devon County Council,08/08/2012,CFADRES30066176,REDACTED UNDER DP ACT,888,DRAKE NURSING HOME,104889,,People Services,Care Spot - Private (3rd),5701,B
18,Devon County Council,22/08/2012,CFADRES30066850,REDACTED UNDER DP ACT,888,DRAKE NURSING HOME,104889,,People Services,Care Spot - Private (3rd),5701,B
18,Devon County Council,08/08/2012,CFADRES30066153,REDACTED UNDER DP ACT,13983.96,DUNMORE RESIDENTIAL CARE HOME,98047,,People Services,Care Spot - Private (3rd),5701,B
18,Devon County Council,22/08/2012,CFADRES30066827,REDACTED UNDER DP ACT,9349.59,DUNMORE RESIDENTIAL CARE HOME,98047,,People Services,Care Spot - Private (3rd),5701,B
18,Devon County Council,08/08/2012,CFADRES30066242,REDACTED UNDER DP ACT,841.98,DURNSFORD LODGE RESIDENTIAL HOME,155801,,People Services,Care Spot - Private (3rd),5701,B
18,Devon County Council,22/08/2012,CFADRES30066916,REDACTED UNDER DP ACT,841.98,DURNSFORD LODGE RESIDENTIAL HOME,155801,,People Services,Care Spot - Private (3rd),5701,B
18,Devon County Council,08/08/2012,CFADRES30066360,REDACTED UNDER DP ACT,668.42,EARLFIELD LODGE,209895,,People Services,Care Spot - Private (3rd),5701,B
18,Devon County Council,22/08/2012,CFADRES30067033,REDACTED UNDER DP ACT,668.42,EARLFIELD LODGE,209895,,People Services,Care Spot - Private (3rd),5701,B
18,Devon County Council,02/08/2012,FINNDAD30449246,4617,1088,EASTLEIGH CARE HOMES,89795,,People Services,Care Spot - Private (3rd),5701,B
18,Devon County Council,02/08/2012,FINNDAD30449247,4618,1088,EASTLEIGH CARE HOMES,89795,,People Services,Care Spot - Private (3rd),5701,B
18,Devon County Council,03/08/2012,FINNDAD30449257,4616,1088,EASTLEIGH CARE HOMES,89795,,People Services,Care Spot - Private (3rd),5701,B
18,Devon County Council,03/08/2012,FINNDAD30449258,4613,1088,EASTLEIGH CARE HOMES,89795,,People Services,Care Spot - Private (3rd),5701,B
18,Devon County Council,08/08/2012,CFADRES17332298,REDACTED UNDER DP ACT,-2506.33,EASTLEIGH CARE HOMES,89795,,People Services,Care Spot - Private (3rd),5701,B
18,Devon County Council,08/08/2012,CFADRES30066208,REDACTED UNDER DP ACT,2962.36,EASTLEIGH HOUSE,121646,,People Services,Care Spot - Private (3rd),5701,B
18,Devon County Council,22/08/2012,CFADRES30066882,REDACTED UNDER DP ACT,2962.36,EASTLEIGH HOUSE,121646,,People Services,Care Spot - Private (3rd),5701,B
18,Devon County Council,08/08/2012,CFADRES30066020,REDACTED UNDER DP ACT,11353.81,EBBERLY HOUSE,89798,,People Services,Care Spot - Private (3rd),5701,B
18,Devon County Council,22/08/2012,CFADRES30066694,REDACTED UNDER DP ACT,19915.97,EBBERLY HOUSE,89798,,People Services,Care Spot - Private (3rd),5701,B
18,Devon County Council,22/08/2012,CFADRES30067234,REDACTED UNDER DP ACT,1857.14,EDGECUMBE LODGE CARE HOME,294314,,People Services,Care Spot - Private (3rd),5701,B
18,Devon County Council,08/08/2012,CFADRES30066273,REDACTED UNDER DP ACT,2863.9,ELM TREE HOUSE RESIDENTIAL HOME,169721,,People Services,Care Spot - Private (3rd),5701,B
18,Devon County Council,22/08/2012,CFADRES30066947,REDACTED UNDER DP ACT,2863.9,ELM TREE HOUSE RESIDENTIAL HOME,169721,,People Services,Care Spot - Private (3rd),5701,B
18,Devon County Council,08/08/2012,CFADRES30066459,REDACTED UNDER DP ACT,1866,ELMBRIDGE RESIDENTIAL CARE HOME,263849,,People Services,Care Spot - Private (3rd),5701,B
18,Devon County Council,22/08/2012,CFADRES30067132,REDACTED UNDER DP ACT,1866,ELMBRIDGE RESIDENTIAL CARE HOME,263849,,People Services,Care Spot - Private (3rd),5701,B
18,Devon County Council,08/08/2012,CFADRES30066037,REDACTED UNDER DP ACT,6871.17,ELMWOOD RESIDENTIAL HOME,90030,,People Services,Care Spot - Private (3rd),5701,B
18,Devon County Council,22/08/2012,CFADRES30066711,REDACTED UNDER DP ACT,8706.03,ELMWOOD RESIDENTIAL HOME,90030,,People Services,Care Spot - Private (3rd),5701,B
18,Devon County Council,08/08/2012,CFADRES30066422,REDACTED UNDER DP ACT,1057.06,ELSTREE LAWNS NURSING HOME,240551,,People Services,Care Spot - Private (3rd),5701,B
18,Devon County Council,22/08/2012,CFADRES30067094,REDACTED UNDER DP ACT,1057.06,ELSTREE LAWNS NURSING HOME,240551,,People Services,Care Spot - Private (3rd),5701,B
18,Devon County Council,08/08/2012,CFADRES30066041,REDACTED UNDER DP ACT,1837.92,EMERY PD & ED,90047,,People Services,Care Spot - Private (3rd),5701,B
18,Devon County Council,22/08/2012,CFADRES30066715,REDACTED UNDER DP ACT,1837.92,EMERY PD & ED,90047,,People Services,Care Spot - Private (3rd),5701,B
18,Devon County Council,06/08/2012,CFADDAY30018320,REDACTED UNDER DP ACT,2110,EMPOWERING LIVES,248207,,People Services,Individualised Support - Private (3rd),5706,B
18,Devon County Council,06/08/2012,CFADDAY30018321,REDACTED UNDER DP ACT,714,EMPOWERING LIVES,248207,,People Services,Individualised Support - Private (3rd),5706,B
18,Devon County Council,06/08/2012,CFADDAY30018322,REDACTED UNDER DP ACT,1554,EMPOWERING LIVES,248207,,People Services,Individualised Support - Private (3rd),5706,B
18,Devon County Council,06/08/2012,CFADDAY30018323,REDACTED UNDER DP ACT,1554,EMPOWERING LIVES,248207,,People Services,Individualised Support - Private (3rd),5706,B
18,Devon County Council,06/08/2012,CFADDAY30018324,REDACTED UNDER DP ACT,2932,EMPOWERING LIVES,248207,,People Services,Individualised Support - Private (3rd),5706,B
18,Devon County Council,16/08/2012,CYPSWLOC30206606,5,6499.99,EMPOWERING LIVES,248207,,People Services,Independent Fostering (3rd),5714,B
18,Devon County Council,01/08/2012,CFADDAY30018228,REDACTED UNDER DP ACT,3136,EMTILL PROJECTS LTD**DO NOT EXCL,209609,,People Services,Individualised Support - Private (3rd),5706,B
18,Devon County Council,01/08/2012,CFADDAY30018229,REDACTED UNDER DP ACT,3190,EMTILL PROJECTS LTD**DO NOT EXCL,209609,,People Services,Individualised Support - Private (3rd),5706,B
18,Devon County Council,08/08/2012,CFADDAY30018462,REDACTED UNDER DP ACT,6930,EMTILL PROJECTS LTD**DO NOT EXCL,209609,,People Services,Individualised Support - Private (3rd),5706,B
18,Devon County Council,29/08/2012,CFADDAY30019298,REDACTED UNDER DP ACT,3136,EMTILL PROJECTS LTD**DO NOT EXCL,209609,,People Services,Individualised Support - Private (3rd),5706,B
18,Devon County Council,29/08/2012,CFADDAY30019299,REDACTED UNDER DP ACT,3190,EMTILL PROJECTS LTD**DO NOT EXCL,209609,,People Services,Individualised Support - Private (3rd),5706,B
18,Devon County Council,06/08/2012,CFADDAY30018314,REDACTED UNDER DP ACT,3034,ENIGMA CARE LTD,206089,,People Services,Individualised Support - Private (3rd),5706,B
18,Devon County Council,06/08/2012,CFADDAY30018315,REDACTED UNDER DP ACT,3076,ENIGMA CARE LTD,206089,,People Services,Individualised Support - Private (3rd),5706,B
18,Devon County Council,13/08/2012,CFADDAY30018566,REDACTED UNDER DP ACT,900,ENIGMA CARE LTD,206089,,People Services,Care Spot - Private (3rd),5701,B
18,Devon County Council,13/08/2012,CFADDAY30018567,REDACTED UNDER DP ACT,1441.96,ENIGMA CARE LTD,206089,,People Services,Individualised Support - Private (3rd),5706,B
18,Devon County Council,13/08/2012,CFADDAY30018568,REDACTED UNDER DP ACT,1600,ENIGMA CARE LTD,206089,,People Services,Individualised Support - Private (3rd),5706,B
18,Devon County Council,15/08/2012,CFADDAY30018659,REDACTED UNDER DP ACT,5000,ENIGMA CARE LTD,206089,,People Services,Individualised Support - Private (3rd),5706,B
18,Devon County Council,15/08/2012,CFADDAY30018660,REDACTED UNDER DP ACT,4836,ENIGMA CARE LTD,206089,,People Services,Individualised Support - Private (3rd),5706,B
18,Devon County Council,08/08/2012,CFADRES30066347,REDACTED UNDER DP ACT,11049.76,ENIGMA CARE LTD,206089,,People Services,Care Spot - Private (3rd),5701,B
18,Devon County Council,22/08/2012,CFADRES30067020,REDACTED UNDER DP ACT,12599.76,ENIGMA CARE LTD,206089,,People Services,Care Spot - Private (3rd),5701,B
18,Devon County Council,08/08/2012,CFADRES30066034,REDACTED UNDER DP ACT,16586,FARRINGTON RAB & MRS LH,89976,,People Services,Care Spot - Private (3rd),5701,B
18,Devon County Council,22/08/2012,CFADRES30066708,REDACTED UNDER DP ACT,16586,FARRINGTON RAB & MRS LH,89976,,People Services,Care Spot - Private (3rd),5701,B
18,Devon County Council,08/08/2012,CFADRES30066552,REDACTED UNDER DP ACT,1082.72,FERFOOT LTD T/A FERFOOT CARE HME,291809,,People Services,Care Spot - Private (3rd),5701,B
18,Devon County Council,22/08/2012,CFADRES30067221,REDACTED UNDER DP ACT,1082.72,FERFOOT LTD T/A FERFOOT CARE HME,291809,,People Services,Care Spot - Private (3rd),5701,B
18,Devon County Council,08/08/2012,CFADRES30066144,REDACTED UNDER DP ACT,5644.42,FERNBANK RESIDENTIAL HOME,92871,,People Services,Care Spot - Private (3rd),5701,B
18,Devon County Council,22/08/2012,CFADRES30066818,REDACTED UNDER DP ACT,5644.42,FERNBANK RESIDENTIAL HOME,92871,,People Services,Care Spot - Private (3rd),5701,B
18,Devon County Council,08/08/2012,CFADRES30066095,REDACTED UNDER DP ACT,13865.94,FIRS RESIDENTIAL HOTEL THE,90589,,People Services,Care Spot - Private (3rd),5701,B
18,Devon County Council,22/08/2012,CFADRES30066769,REDACTED UNDER DP ACT,13865.94,FIRS RESIDENTIAL HOTEL THE,90589,,People Services,Care Spot - Private (3rd),5701,B
18,Devon County Council,08/08/2012,CFADRES30066316,REDACTED UNDER DP ACT,14231.17,FIRS THE,190976,,People Services,Care Spot - Private (3rd),5701,B
18,Devon County Council,22/08/2012,CFADRES30066989,REDACTED UNDER DP ACT,23862.7,FIRS THE,190976,,People Services,Care Spot - Private (3rd),5701,B
18,Devon County Council,08/08/2012,CFADRES30066392,REDACTED UNDER DP ACT,587.76,FIRS THE (TAUNTON),229805,,People Services,Care Spot - Private (3rd),5701,B
18,Devon County Council,22/08/2012,CFADRES30067064,REDACTED UNDER DP ACT,587.76,FIRS THE (TAUNTON),229805,,People Services,Care Spot - Private (3rd),5701,B
18,Devon County Council,08/08/2012,CFADRES30066338,REDACTED UNDER DP ACT,5163.96,FORGE HOUSE,202469,,People Services,Care Spot - Private (3rd),5701,B
18,Devon County Council,22/08/2012,CFADRES30067011,REDACTED UNDER DP ACT,5163.96,FORGE HOUSE,202469,,People Services,Care Spot - Private (3rd),5701,B
18,Devon County Council,08/08/2012,CFADRES30066463,REDACTED UNDER DP ACT,784.88,FOUNTAINS THE,265007,,People Services,Care Spot - Private (3rd),5701,B
18,Devon County Council,22/08/2012,CFADRES30067135,REDACTED UNDER DP ACT,784.88,FOUNTAINS THE,265007,,People Services,Care Spot - Private (3rd),5701,B
18,Devon County Council,08/08/2012,CFADRES30065887,REDACTED UNDER DP ACT,16981.52,FREMINGTON MANOR NURSING HOME,28212,,People Services,Care Spot - Private (3rd),5701,B
18,Devon County Council,08/08/2012,CFADRES30065888,REDACTED UNDER DP ACT,5086.17,FREMINGTON MANOR NURSING HOME,28212,,People Services,Care Spot - Private (3rd),5701,B
18,Devon County Council,22/08/2012,CFADRES30066562,REDACTED UNDER DP ACT,16503.57,FREMINGTON MANOR NURSING HOME,28212,,People Services,Care Spot - Private (3rd),5701,B
18,Devon County Council,22/08/2012,CFADRES30066563,REDACTED UNDER DP ACT,5724.06,FREMINGTON MANOR NURSING HOME,28212,,People Services,Care Spot - Private (3rd),5701,B
18,Devon County Council,08/08/2012,CFADRES30066430,REDACTED UNDER DP ACT,694.12,FRIENDS OF THE ELDERLY/THE LAWN,245844,,People Services,Care Spot - Private (3rd),5701,B
18,Devon County Council,22/08/2012,CFADRES30067102,REDACTED UNDER DP ACT,694.12,FRIENDS OF THE ELDERLY/THE LAWN,245844,,People Services,Care Spot - Private (3rd),5701,B
18,Devon County Council,08/08/2012,CFADRES30066190,REDACTED UNDER DP ACT,1008.9,FURZEHAM LODGE RESIDENTIAL HOME,111261,,People Services,Care Spot - Private (3rd),5701,B
18,Devon County Council,22/08/2012,CFADRES30066864,REDACTED UNDER DP ACT,1008.9,FURZEHAM LODGE RESIDENTIAL HOME,111261,,People Services,Care Spot - Private (3rd),5701,B
18,Devon County Council,08/08/2012,CFADRES30065924,REDACTED UNDER DP ACT,4920.68,GITTISHAM CARE LTD,87428,,People Services,Care Spot - Private (3rd),5701,B
18,Devon County Council,22/08/2012,CFADRES30066599,REDACTED UNDER DP ACT,4920.68,GITTISHAM CARE LTD,87428,,People Services,Care Spot - Private (3rd),5701,B
18,Devon County Council,08/08/2012,CFADRES30065996,REDACTED UNDER DP ACT,8697.05,GLENDALE COURT CARE HOME,89472,,People Services,Care Spot - Private (3rd),5701,B
18,Devon County Council,22/08/2012,CFADRES30066671,REDACTED UNDER DP ACT,8136.64,GLENDALE COURT CARE HOME,89472,,People Services,Care Spot - Private (3rd),5701,B
18,Devon County Council,08/08/2012,CFADDOM30040912,REDACTED UNDER DP ACT,599.76,GLENKEALEY RESIDENTIAL HOME,214184,,People Services,Care Spot - Private (3rd),5701,B
18,Devon County Council,08/08/2012,CFADDOM30040915,REDACTED UNDER DP ACT,603.33,GLENKEALEY RESIDENTIAL HOME,214184,,People Services,Care Spot - Private (3rd),5701,B
18,Devon County Council,08/08/2012,CFADDOM30040923,REDACTED UNDER DP ACT,599.76,GLENKEALEY RESIDENTIAL HOME,214184,,People Services,Care Spot - Private (3rd),5701,B
18,Devon County Council,08/08/2012,CFADDOM30040924,REDACTED UNDER DP ACT,1399.44,GLENKEALEY RESIDENTIAL HOME,214184,,People Services,Care Spot - Private (3rd),5701,B
18,Devon County Council,08/08/2012,CFADDOM30040927,REDACTED UNDER DP ACT,1799.28,GLENKEALEY RESIDENTIAL HOME,214184,,People Services,Care Spot - Private (3rd),5701,B
18,Devon County Council,08/08/2012,CFADDOM30040932,REDACTED UNDER DP ACT,842.52,GLENKEALEY RESIDENTIAL HOME,214184,,People Services,Care Spot - Private (3rd),5701,B
18,Devon County Council,08/08/2012,CFADDOM30040934,REDACTED UNDER DP ACT,1092.42,GLENKEALEY RESIDENTIAL HOME,214184,,People Services,Care Spot - Private (3rd),5701,B
18,Devon County Council,08/08/2012,CFADDOM30040935,REDACTED UNDER DP ACT,1399.44,GLENKEALEY RESIDENTIAL HOME,214184,,People Services,Care Spot - Private (3rd),5701,B
18,Devon County Council,08/08/2012,CFADRES30066362,REDACTED UNDER DP ACT,6276.98,GLENKEALEY RESIDENTIAL HOME,214184,,People Services,Care Spot - Private (3rd),5701,B
18,Devon County Council,22/08/2012,CFADRES30067035,REDACTED UNDER DP ACT,5921.26,GLENKEALEY RESIDENTIAL HOME,214184,,People Services,Care Spot - Private (3rd),5701,B
18,Devon County Council,08/08/2012,CFADRES30066451,REDACTED UNDER DP ACT,2750,GLYNDERWEN HOUSE,258539,,People Services,Care Spot - Private (3rd),5701,B
18,Devon County Council,22/08/2012,CFADRES30067124,REDACTED UNDER DP ACT,2750,GLYNDERWEN HOUSE,258539,,People Services,Care Spot - Private (3rd),5701,B
18,Devon County Council,08/08/2012,CFADRES30066551,REDACTED UNDER DP ACT,6833.08,GOLDEN SANDS,291595,,People Services,Care Spot - Private (3rd),5701,B
18,Devon County Council,22/08/2012,CFADRES30067220,REDACTED UNDER DP ACT,6833.08,GOLDEN SANDS,291595,,People Services,Care Spot - Private (3rd),5701,B
18,Devon County Council,08/08/2012,CFADRES30066173,REDACTED UNDER DP ACT,1484.56,GOLP S C,102921,,People Services,Care Spot - Private (3rd),5701,B
18,Devon County Council,22/08/2012,CFADRES30066847,REDACTED UNDER DP ACT,1484.56,GOLP S C,102921,,People Services,Care Spot - Private (3rd),5701,B
18,Devon County Council,08/08/2012,CFADRES30066276,REDACTED UNDER DP ACT,1971.5,GRANARY THE,171058,,People Services,Care Spot - Private (3rd),5701,B
18,Devon County Council,22/08/2012,CFADRES30066950,REDACTED UNDER DP ACT,1971.5,GRANARY THE,171058,,People Services,Care Spot - Private (3rd),5701,B
18,Devon County Council,08/08/2012,CFADRES30065911,REDACTED UNDER DP ACT,688,GRANGE LEA,87031,,People Services,Care Spot - Private (3rd),5701,B
18,Devon County Council,22/08/2012,CFADRES30066586,REDACTED UNDER DP ACT,688,GRANGE LEA,87031,,People Services,Care Spot - Private (3rd),5701,B
18,Devon County Council,08/08/2012,CFADRES30066520,REDACTED UNDER DP ACT,2237.8,GREEN LIGHT PBS LTD,285469,,People Services,Care Spot - Private (3rd),5701,B
18,Devon County Council,22/08/2012,CFADRES30067189,REDACTED UNDER DP ACT,2237.8,GREEN LIGHT PBS LTD,285469,,People Services,Care Spot - Private (3rd),5701,B
18,Devon County Council,08/08/2012,CFADRES30066136,REDACTED UNDER DP ACT,5536.79,GREENACRE FARM COMMUNITIES LTD,90975,,People Services,Care Spot - Private (3rd),5701,B
18,Devon County Council,22/08/2012,CFADRES30066810,REDACTED UNDER DP ACT,4667.74,GREENACRE FARM COMMUNITIES LTD,90975,,People Services,Care Spot - Private (3rd),5701,B
18,Devon County Council,01/08/2012,CFADDAY30018176,REDACTED UNDER DP ACT,1789.2,GUINNESS CARE & SUPPORT,89630,,People Services,Care Spot - Private (3rd),5701,B
18,Devon County Council,06/08/2012,CFADDAY30018260,REDACTED UNDER DP ACT,10046.4,GUINNESS CARE & SUPPORT,89630,,People Services,Care Spot - Private (3rd),5701,B
18,Devon County Council,06/08/2012,CFADDAY30018262,REDACTED UNDER DP ACT,10325.76,GUINNESS CARE & SUPPORT,89630,,People Services,Care Spot - Private (3rd),5701,B
18,Devon County Council,08/08/2012,CFADRES30066004,REDACTED UNDER DP ACT,48540.73,GUINNESS CARE & SUPPORT,89630,,People Services,Care Spot - Private (3rd),5701,B
18,Devon County Council,08/08/2012,CFADRES30066005,REDACTED UNDER DP ACT,39778.06,GUINNESS CARE & SUPPORT,89630,,People Services,Care Spot - Private (3rd),5701,B
18,Devon County Council,08/08/2012,CFADRES30066006,REDACTED UNDER DP ACT,34100.82,GUINNESS CARE & SUPPORT,89630,,People Services,Care Spot - Private (3rd),5701,B
18,Devon County Council,22/08/2012,CFADRES30066679,REDACTED UNDER DP ACT,46191.72,GUINNESS CARE & SUPPORT,89630,,People Services,Care Spot - Private (3rd),5701,B
18,Devon County Council,22/08/2012,CFADRES30066680,REDACTED UNDER DP ACT,45342.4,GUINNESS CARE & SUPPORT,89630,,People Services,Care Spot - Private (3rd),5701,B
18,Devon County Council,22/08/2012,CFADRES30066681,REDACTED UNDER DP ACT,29694.94,GUINNESS CARE & SUPPORT,89630,,People Services,Care Spot - Private (3rd),5701,B
18,Devon County Council,08/08/2012,CFADRES17332297,REDACTED UNDER DP ACT,-5834.04,GUINNESS CARE & SUPPORT,89630,,People Services,Residential Income,9365,B
18,Devon County Council,22/08/2012,CFADRES17332304,REDACTED UNDER DP ACT,-4147.01,GUINNESS CARE & SUPPORT,89630,,People Services,Residential Income,9365,B
18,Devon County Council,08/08/2012,CFADRES30066183,REDACTED UNDER DP ACT,1931.2,H F TRUST LTD,106688,,People Services,Care Spot - Private (3rd),5701,B
18,Devon County Council,22/08/2012,CFADRES30066857,REDACTED UNDER DP ACT,1931.2,H F TRUST LTD,106688,,People Services,Care Spot - Private (3rd),5701,B
18,Devon County Council,08/08/2012,CFADRES30066539,REDACTED UNDER DP ACT,708,HALLMARK CARE HOME/TA CWRT ENFYS,289100,,People Services,Care Spot - Private (3rd),5701,B
18,Devon County Council,22/08/2012,CFADRES30067208,REDACTED UNDER DP ACT,708,HALLMARK CARE HOME/TA CWRT ENFYS,289100,,People Services,Care Spot - Private (3rd),5701,B
18,Devon County Council,08/08/2012,CFADRES30066517,REDACTED UNDER DP ACT,1194,HALSEY HOUSE,285354,,People Services,Care Spot - Private (3rd),5701,B
18,Devon County Council,22/08/2012,CFADRES30067186,REDACTED UNDER DP ACT,1194,HALSEY HOUSE,285354,,People Services,Care Spot - Private (3rd),5701,B
18,Devon County Council,01/08/2012,CFADDAY30018238,REDACTED UNDER DP ACT,1971,HARDY RACHEL,233033,,People Services,Individualised Support - Private (3rd),5706,B
18,Devon County Council,08/08/2012,CFADDAY30018468,REDACTED UNDER DP ACT,2460,HARDY RACHEL,233033,,People Services,Individualised Support - Private (3rd),5706,B
18,Devon County Council,08/08/2012,CFADDAY30018469,REDACTED UNDER DP ACT,1944,HARDY RACHEL,233033,,People Services,Individualised Support - Private (3rd),5706,B
18,Devon County Council,13/08/2012,CFADDAY30018573,REDACTED UNDER DP ACT,1740,HARDY RACHEL,233033,,People Services,Individualised Support - Private (3rd),5706,B
18,Devon County Council,20/08/2012,CFADDAY30018854,REDACTED UNDER DP ACT,1788,HARDY RACHEL,233033,,People Services,Individualised Support - Private (3rd),5706,B
18,Devon County Council,22/08/2012,CFADDAY30019008,REDACTED UNDER DP ACT,1900,HARDY RACHEL,233033,,People Services,Individualised Support - Private (3rd),5706,B
18,Devon County Council,22/08/2012,CFADDAY30019009,REDACTED UNDER DP ACT,1892,HARDY RACHEL,233033,,People Services,Individualised Support - Private (3rd),5706,B
18,Devon County Council,22/08/2012,CFADDAY30019010,REDACTED UNDER DP ACT,1695,HARDY RACHEL,233033,,People Services,Individualised Support - Private (3rd),5706,B
18,Devon County Council,22/08/2012,CFADDAY30019011,REDACTED UNDER DP ACT,2000.04,HARDY RACHEL,233033,,People Services,Individualised Support - Private (3rd),5706,B
18,Devon County Council,22/08/2012,CFADDAY30019012,REDACTED UNDER DP ACT,1788,HARDY RACHEL,233033,,People Services,Individualised Support - Private (3rd),5706,B
18,Devon County Council,29/08/2012,CFADDAY30019303,REDACTED UNDER DP ACT,1971,HARDY RACHEL,233033,,People Services,Individualised Support - Private (3rd),5706,B
18,Devon County Council,22/08/2012,CFADRES30067107,REDACTED UNDER DP ACT,1270.6,HATCHMOOR NURSING HOME,247652,,People Services,Care Spot - Private (3rd),5701,B
18,Devon County Council,08/08/2012,CFADRES30066419,REDACTED UNDER DP ACT,12262.54,HATHERLEIGH CARE VILLAGE,239685,,People Services,Care Spot - Private (3rd),5701,B
18,Devon County Council,22/08/2012,CFADRES30067091,REDACTED UNDER DP ACT,14650.9,HATHERLEIGH CARE VILLAGE,239685,,People Services,Care Spot - Private (3rd),5701,B
18,Devon County Council,22/08/2012,CFADRES30067092,REDACTED UNDER DP ACT,3466.34,HATHERLEIGH CARE VILLAGE,239685,,People Services,Care Spot - Private (3rd),5701,B
18,Devon County Council,13/08/2012,CFADDAY30018522,REDACTED UNDER DP ACT,5985,HAVENCARE (PLYMOUTH) LTD,94000,,People Services,Individualised Support - Private (3rd),5706,B
18,Devon County Council,13/08/2012,CFADDAY30018523,REDACTED UNDER DP ACT,5985,HAVENCARE (PLYMOUTH) LTD,94000,,People Services,Individualised Support - Private (3rd),5706,B
18,Devon County Council,15/08/2012,CFADDAY30018611,REDACTED UNDER DP ACT,6994.92,HAVENCARE (PLYMOUTH) LTD,94000,,People Services,Individualised Support - Private (3rd),5706,B
18,Devon County Council,15/08/2012,CFADDAY30018612,REDACTED UNDER DP ACT,6994.92,HAVENCARE (PLYMOUTH) LTD,94000,,People Services,Individualised Support - Private (3rd),5706,B
18,Devon County Council,22/08/2012,CFADDAY30018941,REDACTED UNDER DP ACT,6994.92,HAVENCARE (PLYMOUTH) LTD,94000,,People Services,Individualised Support - Private (3rd),5706,B
18,Devon County Council,28/08/2012,CFADDAY30019140,REDACTED UNDER DP ACT,5985,HAVENCARE (PLYMOUTH) LTD,94000,,People Services,Individualised Support - Private (3rd),5706,B
18,Devon County Council,08/08/2012,CFADRES30066146,REDACTED UNDER DP ACT,15153.54,HAVENCARE (PLYMOUTH) LTD,94000,,People Services,Care Spot - Private (3rd),5701,B
18,Devon County Council,22/08/2012,CFADRES30066820,REDACTED UNDER DP ACT,15153.54,HAVENCARE (PLYMOUTH) LTD,94000,,People Services,Care Spot - Private (3rd),5701,B
18,Devon County Council,16/08/2012,FNEXMHLD30472453,1110,2841,HAVENCARE (PLYMOUTH) LTD,94000,,People Services,Miscellaneous expenditure,4901,B
18,Devon County Council,16/08/2012,FNEXMHLD30472454,1113,2841,HAVENCARE (PLYMOUTH) LTD,94000,,People Services,Miscellaneous expenditure,4901,B
18,Devon County Council,29/08/2012,FNEXMHLD30472476,1124,2841,HAVENCARE (PLYMOUTH) LTD,94000,,People Services,Miscellaneous expenditure,4901,B
18,Devon County Council,08/08/2012,CFADRES30066171,REDACTED UNDER DP ACT,10827.88,HAVENSCARE RESIDENTIAL HOME,102915,,People Services,Care Spot - Private (3rd),5701,B
18,Devon County Council,22/08/2012,CFADRES30066845,REDACTED UNDER DP ACT,10827.88,HAVENSCARE RESIDENTIAL HOME,102915,,People Services,Care Spot - Private (3rd),5701,B
18,Devon County Council,08/08/2012,CFADRES30065948,REDACTED UNDER DP ACT,10839.88,HAY HOUSE,88805,,People Services,Care Spot - Private (3rd),5701,B
18,Devon County Council,08/08/2012,CFADRES30066535,REDACTED UNDER DP ACT,1040,HC-ONE LTD T/A TRAFALGAR PARK,288236,,People Services,Care Spot - Private (3rd),5701,B
18,Devon County Council,22/08/2012,CFADRES30067204,REDACTED UNDER DP ACT,891.43,HC-ONE LTD T/A TRAFALGAR PARK,288236,,People Services,Care Spot - Private (3rd),5701,B
18,Devon County Council,08/08/2012,CFADRES30066215,REDACTED UNDER DP ACT,3925,HEALTH CARE TRUST LTD,134214,,People Services,Care Spot - Private (3rd),5701,B
18,Devon County Council,22/08/2012,CFADRES30066889,REDACTED UNDER DP ACT,3925,HEALTH CARE TRUST LTD,134214,,People Services,Care Spot - Private (3rd),5701,B
18,Devon County Council,08/08/2012,CFADRES30066532,REDACTED UNDER DP ACT,782,HEATH LODGE CARE HOME,287187,,People Services,Care Spot - Private (3rd),5701,B
18,Devon County Council,22/08/2012,CFADRES30067201,REDACTED UNDER DP ACT,782,HEATH LODGE CARE HOME,287187,,People Services,Care Spot - Private (3rd),5701,B
18,Devon County Council,08/08/2012,CFADRES30066325,REDACTED UNDER DP ACT,14380.34,HEATHERSIDE HOUSE,195163,,People Services,Care Spot - Private (3rd),5701,B
18,Devon County Council,22/08/2012,CFADRES30066998,REDACTED UNDER DP ACT,13120.26,HEATHERSIDE HOUSE,195163,,People Services,Care Spot - Private (3rd),5701,B
18,Devon County Council,08/08/2012,CFADRES30065976,REDACTED UNDER DP ACT,11774.1,HEMBURY FORT HOUSE,89213,,People Services,Care Spot - Private (3rd),5701,B
18,Devon County Council,22/08/2012,CFADRES30066651,REDACTED UNDER DP ACT,11774.1,HEMBURY FORT HOUSE,89213,,People Services,Care Spot - Private (3rd),5701,B
18,Devon County Council,08/08/2012,CFADRES30066137,REDACTED UNDER DP ACT,3431.2,HERONS LEA RESIDENTIAL HOME,91007,,People Services,Care Spot - Private (3rd),5701,B
18,Devon County Council,22/08/2012,CFADRES30066811,REDACTED UNDER DP ACT,3431.2,HERONS LEA RESIDENTIAL HOME,91007,,People Services,Care Spot - Private (3rd),5701,B
18,Devon County Council,08/08/2012,CFADRES30066428,REDACTED UNDER DP ACT,8114.14,HIGHLANDS CARE HOME,244492,,People Services,Care Spot - Private (3rd),5701,B
18,Devon County Council,08/08/2012,CFADRES30066351,REDACTED UNDER DP ACT,689,HIGHLANDS MIST,206676,,People Services,Care Spot - Private (3rd),5701,B
18,Devon County Council,22/08/2012,CFADRES30067024,REDACTED UNDER DP ACT,689,HIGHLANDS MIST,206676,,People Services,Care Spot - Private (3rd),5701,B
18,Devon County Council,08/08/2012,CFADRES30066109,REDACTED UNDER DP ACT,3938.01,HILL HOUSE HOME (BRIXHAM),90696,,People Services,Care Spot - Private (3rd),5701,B
18,Devon County Council,22/08/2012,CFADRES30066784,REDACTED UNDER DP ACT,2706.16,HILL HOUSE HOME (BRIXHAM),90696,,People Services,Care Spot - Private (3rd),5701,B
18,Devon County Council,08/08/2012,CFADRES30066205,REDACTED UNDER DP ACT,8292.77,HILLBROW RESIDENTIAL CARE HME LT,120028,,People Services,Care Spot - Private (3rd),5701,B
18,Devon County Council,22/08/2012,CFADRES30066879,REDACTED UNDER DP ACT,9403.12,HILLBROW RESIDENTIAL CARE HME LT,120028,,People Services,Care Spot - Private (3rd),5701,B
18,Devon County Council,24/08/2012,FINMH30444917,868,4000,HILLCREST BRANCH LTD,222358,,People Services,Care Block - Private (3rd),5702,B
18,Devon County Council,08/08/2012,CFADRES30066179,REDACTED UNDER DP ACT,847.4,HILLCREST HOUSE NURSING HOME,105455,,People Services,Care Spot - Private (3rd),5701,B
18,Devon County Council,22/08/2012,CFADRES30066853,REDACTED UNDER DP ACT,847.4,HILLCREST HOUSE NURSING HOME,105455,,People Services,Care Spot - Private (3rd),5701,B
18,Devon County Council,13/08/2012,CFADDAY30018583,REDACTED UNDER DP ACT,2752.7,HOLSWORTHY DAY CENTRE,277333,,People Services,Care Spot - Private (3rd),5701,B
18,Devon County Council,08/08/2012,CFADRES30066203,REDACTED UNDER DP ACT,2861.54,HOLWELL VILLA,119407,,People Services,Care Spot - Private (3rd),5701,B
18,Devon County Council,22/08/2012,CFADRES30066877,REDACTED UNDER DP ACT,2742.97,HOLWELL VILLA,119407,,People Services,Care Spot - Private (3rd),5701,B
18,Devon County Council,08/08/2012,CFADRES30065982,REDACTED UNDER DP ACT,4408.24,HOMEFARM TRUST LTD,89260,,People Services,Care Spot - Private (3rd),5701,B
18,Devon County Council,22/08/2012,CFADRES30066657,REDACTED UNDER DP ACT,6195.46,HOMEFARM TRUST LTD,89260,,People Services,Care Spot - Private (3rd),5701,B
18,Devon County Council,13/08/2012,CFADDOM30041115,REDACTED UNDER DP ACT,843.15,HOMELIFE CARERS LTD,209222,,People Services,Care Spot - Private (3rd),5701,B
18,Devon County Council,13/08/2012,CFADDOM30041117,REDACTED UNDER DP ACT,539,HOMELIFE CARERS LTD,209222,,People Services,Care Spot - Private (3rd),5701,B
18,Devon County Council,13/08/2012,CFADDOM30041119,REDACTED UNDER DP ACT,669.9,HOMELIFE CARERS LTD,209222,,People Services,Care Spot - Private (3rd),5701,B
18,Devon County Council,13/08/2012,CFADDOM30041122,REDACTED UNDER DP ACT,1905.75,HOMELIFE CARERS LTD,209222,,People Services,Care Spot - Private (3rd),5701,B
18,Devon County Council,15/08/2012,CFADDOM30041407,REDACTED UNDER DP ACT,638.4,HOMELIFE CARERS LTD,209222,,People Services,Care Spot - Private (3rd),5701,B
18,Devon County Council,15/08/2012,CFADDOM30041410,REDACTED UNDER DP ACT,767.6,HOMELIFE CARERS LTD,209222,,People Services,Care Spot - Private (3rd),5701,B
18,Devon County Council,15/08/2012,CFADDOM30041411,REDACTED UNDER DP ACT,908.2,HOMELIFE CARERS LTD,209222,,People Services,Care Spot - Private (3rd),5701,B
18,Devon County Council,15/08/2012,CFADDOM30041412,REDACTED UNDER DP ACT,513,HOMELIFE CARERS LTD,209222,,People Services,Care Spot - Private (3rd),5701,B
18,Devon County Council,15/08/2012,CFADDOM30041413,REDACTED UNDER DP ACT,744.8,HOMELIFE CARERS LTD,209222,,People Services,Care Spot - Private (3rd),5701,B
18,Devon County Council,15/08/2012,CFADDOM30041414,REDACTED UNDER DP ACT,966.3,HOMELIFE CARERS LTD,209222,,People Services,Care Spot - Private (3rd),5701,B
18,Devon County Council,15/08/2012,CFADDOM30041416,REDACTED UNDER DP ACT,532,HOMELIFE CARERS LTD,209222,,People Services,Care Spot - Private (3rd),5701,B
18,Devon County Council,15/08/2012,CFADDOM30041418,REDACTED UNDER DP ACT,638.4,HOMELIFE CARERS LTD,209222,,People Services,Care Spot - Private (3rd),5701,B
18,Devon County Council,15/08/2012,CFADDOM30041419,REDACTED UNDER DP ACT,2048.2,HOMELIFE CARERS LTD,209222,,People Services,Care Spot - Private (3rd),5701,B
18,Devon County Council,15/08/2012,CFADDOM30041420,REDACTED UNDER DP ACT,547.2,HOMELIFE CARERS LTD,209222,,People Services,Care Spot - Private (3rd),5701,B
18,Devon County Council,15/08/2012,CFADDOM30041423,REDACTED UNDER DP ACT,615.6,HOMELIFE CARERS LTD,209222,,People Services,Care Spot - Private (3rd),5701,B
18,Devon County Council,15/08/2012,CFADDOM30041426,REDACTED UNDER DP ACT,790.4,HOMELIFE CARERS LTD,209222,,People Services,Care Spot - Private (3rd),5701,B
18,Devon County Council,15/08/2012,CFADDOM30041428,REDACTED UNDER DP ACT,957.6,HOMELIFE CARERS LTD,209222,,People Services,Care Spot - Private (3rd),5701,B
18,Devon County Council,15/08/2012,CFADDOM30041430,REDACTED UNDER DP ACT,1060.2,HOMELIFE CARERS LTD,209222,,People Services,Care Spot - Private (3rd),5701,B
18,Devon County Council,15/08/2012,CFADDOM30041433,REDACTED UNDER DP ACT,638.4,HOMELIFE CARERS LTD,209222,,People Services,Care Spot - Private (3rd),5701,B
18,Devon County Council,15/08/2012,CFADDOM30041434,REDACTED UNDER DP ACT,524.4,HOMELIFE CARERS LTD,209222,,People Services,Care Spot - Private (3rd),5701,B
18,Devon County Council,15/08/2012,CFADDOM30041438,REDACTED UNDER DP ACT,577.6,HOMELIFE CARERS LTD,209222,,People Services,Care Spot - Private (3rd),5701,B
18,Devon County Council,15/08/2012,CFADDOM30041439,REDACTED UNDER DP ACT,532,HOMELIFE CARERS LTD,209222,,People Services,Care Spot - Private (3rd),5701,B
18,Devon County Council,15/08/2012,CFADDOM30041440,REDACTED UNDER DP ACT,630.8,HOMELIFE CARERS LTD,209222,,People Services,Care Spot - Private (3rd),5701,B
18,Devon County Council,15/08/2012,CFADDOM30041441,REDACTED UNDER DP ACT,535.8,HOMELIFE CARERS LTD,209222,,People Services,Care Spot - Private (3rd),5701,B
18,Devon County Council,15/08/2012,CFADDOM30041442,REDACTED UNDER DP ACT,1056.4,HOMELIFE CARERS LTD,209222,,People Services,Care Spot - Private (3rd),5701,B
18,Devon County Council,15/08/2012,CFADDOM30041443,REDACTED UNDER DP ACT,953.8,HOMELIFE CARERS LTD,209222,,People Services,Care Spot - Private (3rd),5701,B
18,Devon County Council,15/08/2012,CFADDOM30041444,REDACTED UNDER DP ACT,908.2,HOMELIFE CARERS LTD,209222,,People Services,Care Spot - Private (3rd),5701,B
18,Devon County Council,15/08/2012,CFADDOM30041446,REDACTED UNDER DP ACT,1561.8,HOMELIFE CARERS LTD,209222,,People Services,Care Spot - Private (3rd),5701,B
18,Devon County Council,20/08/2012,CFADDOM30041731,REDACTED UNDER DP ACT,2709.4,HOMELIFE CARERS LTD,209222,,People Services,Care Spot - Private (3rd),5701,B
18,Devon County Council,20/08/2012,CFADDOM30041732,REDACTED UNDER DP ACT,1064,HOMELIFE CARERS LTD,209222,,People Services,Care Spot - Private (3rd),5701,B
18,Devon County Council,20/08/2012,CFADDOM30041733,REDACTED UNDER DP ACT,1371.8,HOMELIFE CARERS LTD,209222,,People Services,Care Spot - Private (3rd),5701,B
18,Devon County Council,20/08/2012,CFADDOM30041734,REDACTED UNDER DP ACT,908.2,HOMELIFE CARERS LTD,209222,,People Services,Care Spot - Private (3rd),5701,B
18,Devon County Council,20/08/2012,CFADDOM30041735,REDACTED UNDER DP ACT,2363.6,HOMELIFE CARERS LTD,209222,,People Services,Care Spot - Private (3rd),5701,B
18,Devon County Council,08/08/2012,CFADRES30066086,REDACTED UNDER DP ACT,3886.8,HOMESTEAD THE,90483,,People Services,Care Spot - Private (3rd),5701,B
18,Devon County Council,22/08/2012,CFADRES30066760,REDACTED UNDER DP ACT,4144.41,HOMESTEAD THE,90483,,People Services,Care Spot - Private (3rd),5701,B
18,Devon County Council,08/08/2012,CFADRES30066282,REDACTED UNDER DP ACT,7209.82,HONEYBOURNE HOUSE,174783,,People Services,Care Spot - Private (3rd),5701,B
18,Devon County Council,22/08/2012,CFADRES30066956,REDACTED UNDER DP ACT,7209.82,HONEYBOURNE HOUSE,174783,,People Services,Care Spot - Private (3rd),5701,B
18,Devon County Council,08/08/2012,CFADRES30066501,REDACTED UNDER DP ACT,911.28,HOUNDSWOOD HOUSE CARE HOME,280242,,People Services,Care Spot - Private (3rd),5701,B
18,Devon County Council,22/08/2012,CFADRES30067173,REDACTED UNDER DP ACT,911.28,HOUNDSWOOD HOUSE CARE HOME,280242,,People Services,Care Spot - Private (3rd),5701,B
18,Devon County Council,15/08/2012,CFADDAY30018684,REDACTED UNDER DP ACT,1768,HOUSDEN,255886,,People Services,Individualised Support - Private (3rd),5706,B
18,Devon County Council,15/08/2012,CFADDAY30018685,REDACTED UNDER DP ACT,988,HOUSDEN,255886,,People Services,Individualised Support - Private (3rd),5706,B
18,Devon County Council,15/08/2012,CFADDAY30018686,REDACTED UNDER DP ACT,936,HOUSDEN,255886,,People Services,Individualised Support - Private (3rd),5706,B
18,Devon County Council,15/08/2012,CFADDAY30018687,REDACTED UNDER DP ACT,520,HOUSDEN,255886,,People Services,Individualised Support - Private (3rd),5706,B
18,Devon County Council,08/08/2012,CFADRES30065958,REDACTED UNDER DP ACT,4819.56,HUNTLEY T/A VENVILLE HOUSE DC &,89063,,People Services,Care Spot - Private (3rd),5701,B
18,Devon County Council,22/08/2012,CFADRES30066633,REDACTED UNDER DP ACT,4819.56,HUNTLEY T/A VENVILLE HOUSE DC &,89063,,People Services,Care Spot - Private (3rd),5701,B
18,Devon County Council,24/08/2012,CYPNMLOC30196816,AB 11/08/12,834.75,INDEPENDANCE,259184,,People Services,Care Other - Private (3rd),5705,B
18,Devon County Council,06/08/2012,CFADDAY30018318,REDACTED UNDER DP ACT,1003.8,IVY HOUSE,242760,,People Services,Individualised Support - Private (3rd),5706,B
18,Devon County Council,06/08/2012,CFADDAY30018319,REDACTED UNDER DP ACT,752.85,IVY HOUSE,242760,,People Services,Individualised Support - Private (3rd),5706,B
18,Devon County Council,15/08/2012,CFADDAY30018675,REDACTED UNDER DP ACT,1004.5,IVY HOUSE,242760,,People Services,Individualised Support - Private (3rd),5706,B
18,Devon County Council,15/08/2012,CFADDAY30018676,REDACTED UNDER DP ACT,600,IVY HOUSE,242760,,People Services,Individualised Support - Private (3rd),5706,B
18,Devon County Council,15/08/2012,CFADDAY30018677,REDACTED UNDER DP ACT,840,IVY HOUSE,242760,,People Services,Individualised Support - Private (3rd),5706,B
18,Devon County Council,15/08/2012,CFADDAY30018680,REDACTED UNDER DP ACT,1004.5,IVY HOUSE,242760,,People Services,Individualised Support - Private (3rd),5706,B
18,Devon County Council,15/08/2012,CFADDAY30018681,REDACTED UNDER DP ACT,600,IVY HOUSE,242760,,People Services,Individualised Support - Private (3rd),5706,B
18,Devon County Council,15/08/2012,CFADDAY30018682,REDACTED UNDER DP ACT,840,IVY HOUSE,242760,,People Services,Individualised Support - Private (3rd),5706,B
18,Devon County Council,08/08/2012,CFADRES30066039,REDACTED UNDER DP ACT,12259.32,J G T CARE HOMES,90042,,People Services,Care Spot - Private (3rd),5701,B
18,Devon County Council,08/08/2012,CFADRES30065898,REDACTED UNDER DP ACT,1812.28,JAH-JIREH NURSING HOME,86686,,People Services,Care Spot - Private (3rd),5701,B
18,Devon County Council,22/08/2012,CFADRES30066573,REDACTED UNDER DP ACT,1812.28,JAH-JIREH NURSING HOME,86686,,People Services,Care Spot - Private (3rd),5701,B
18,Devon County Council,08/08/2012,CFADRES30066408,REDACTED UNDER DP ACT,1161.84,JASMINE HOUSE,233197,,People Services,Care Spot - Private (3rd),5701,B
18,Devon County Council,22/08/2012,CFADRES30067080,REDACTED UNDER DP ACT,1161.84,JASMINE HOUSE,233197,,People Services,Care Spot - Private (3rd),5701,B
18,Devon County Council,06/08/2012,CFADDAY30018302,REDACTED UNDER DP ACT,630.36,JEDD INTERNATIONAL LTD,119582,,People Services,Care Spot - Private (3rd),5701,B
18,Devon County Council,08/08/2012,CFADRES30066204,REDACTED UNDER DP ACT,8615.2,JEDD INTERNATIONAL LTD,119582,,People Services,Care Spot - Private (3rd),5701,B
18,Devon County Council,22/08/2012,CFADRES30066878,REDACTED UNDER DP ACT,7968.64,JEDD INTERNATIONAL LTD,119582,,People Services,Care Spot - Private (3rd),5701,B
18,Devon County Council,08/08/2012,CFADRES30066154,REDACTED UNDER DP ACT,12194.26,JONES GP & K T/A DONERAILE,98052,,People Services,Care Spot - Private (3rd),5701,B
18,Devon County Council,22/08/2012,CFADRES30066828,REDACTED UNDER DP ACT,12591.72,JONES GP & K T/A DONERAILE,98052,,People Services,Care Spot - Private (3rd),5701,B
18,Devon County Council,15/08/2012,CFADDAY30018670,REDACTED UNDER DP ACT,1152,KAZLUM SUPPORT SERVICES,234919,979268646,People Services,Individualised Support - Private (3rd),5706,B
18,Devon County Council,22/08/2012,CFADDAY30019013,REDACTED UNDER DP ACT,1324.8,KAZLUM SUPPORT SERVICES,234919,979268646,People Services,Individualised Support - Private (3rd),5706,B
18,Devon County Council,22/08/2012,CFADDAY30019014,REDACTED UNDER DP ACT,3482.56,KAZLUM SUPPORT SERVICES,234919,979268646,People Services,Individualised Support - Private (3rd),5706,B
18,Devon County Council,22/08/2012,CFADDAY30019015,REDACTED UNDER DP ACT,1324.8,KAZLUM SUPPORT SERVICES,234919,979268646,People Services,Individualised Support - Private (3rd),5706,B
18,Devon County Council,22/08/2012,CFADDAY30019016,REDACTED UNDER DP ACT,2764.8,KAZLUM SUPPORT SERVICES,234919,979268646,People Services,Individualised Support - Private (3rd),5706,B
18,Devon County Council,22/08/2012,CFADDAY30019017,REDACTED UNDER DP ACT,1612.8,KAZLUM SUPPORT SERVICES,234919,979268646,People Services,Individualised Support - Private (3rd),5706,B
18,Devon County Council,22/08/2012,CFADDAY30019018,REDACTED UNDER DP ACT,806.4,KAZLUM SUPPORT SERVICES,234919,979268646,People Services,Individualised Support - Private (3rd),5706,B
18,Devon County Council,22/08/2012,CFADDAY30019019,REDACTED UNDER DP ACT,921.6,KAZLUM SUPPORT SERVICES,234919,979268646,People Services,Individualised Support - Private (3rd),5706,B
18,Devon County Council,22/08/2012,CFADDAY30019020,REDACTED UNDER DP ACT,2811.24,KAZLUM SUPPORT SERVICES,234919,979268646,People Services,Individualised Support - Private (3rd),5706,B
18,Devon County Council,22/08/2012,CFADDAY30019021,REDACTED UNDER DP ACT,1640.52,KAZLUM SUPPORT SERVICES,234919,979268646,People Services,Individualised Support - Private (3rd),5706,B
18,Devon County Council,22/08/2012,CFADDAY30019022,REDACTED UNDER DP ACT,1555.2,KAZLUM SUPPORT SERVICES,234919,979268646,People Services,Individualised Support - Private (3rd),5706,B
18,Devon County Council,22/08/2012,CFADDAY30019023,REDACTED UNDER DP ACT,1440,KAZLUM SUPPORT SERVICES,234919,979268646,People Services,Individualised Support - Private (3rd),5706,B
18,Devon County Council,22/08/2012,CFADDAY30019024,REDACTED UNDER DP ACT,1728,KAZLUM SUPPORT SERVICES,234919,979268646,People Services,Individualised Support - Private (3rd),5706,B
18,Devon County Council,22/08/2012,CFADDAY30019025,REDACTED UNDER DP ACT,1152,KAZLUM SUPPORT SERVICES,234919,979268646,People Services,Individualised Support - Private (3rd),5706,B
18,Devon County Council,22/08/2012,CFADDAY30019026,REDACTED UNDER DP ACT,2441.92,KAZLUM SUPPORT SERVICES,234919,979268646,People Services,Individualised Support - Private (3rd),5706,B
18,Devon County Council,29/08/2012,CFADDAY30019304,REDACTED UNDER DP ACT,2073.6,KAZLUM SUPPORT SERVICES,234919,979268646,People Services,Individualised Support - Private (3rd),5706,B
18,Devon County Council,08/08/2012,CFADRES30066212,REDACTED UNDER DP ACT,1268.66,KENT FARM RESIDENTIAL HOME,133861,,People Services,Care Spot - Private (3rd),5701,B
18,Devon County Council,22/08/2012,CFADRES30066886,REDACTED UNDER DP ACT,1268.66,KENT FARM RESIDENTIAL HOME,133861,,People Services,Care Spot - Private (3rd),5701,B
18,Devon County Council,08/08/2012,CFADRES30066283,REDACTED UNDER DP ACT,4859.41,KENWYN RESIDENTIAL HOME,174853,,People Services,Care Spot - Private (3rd),5701,B
18,Devon County Council,22/08/2012,CFADRES30066957,REDACTED UNDER DP ACT,8065.12,KENWYN RESIDENTIAL HOME,174853,,People Services,Care Spot - Private (3rd),5701,B
18,Devon County Council,08/08/2012,CFADRES30066054,REDACTED UNDER DP ACT,4888.52,KEYCHANGE ROSE LAWN SIDMOUTH,90174,,People Services,Care Spot - Private (3rd),5701,B
18,Devon County Council,22/08/2012,CFADRES30066728,REDACTED UNDER DP ACT,4888.52,KEYCHANGE ROSE LAWN SIDMOUTH,90174,,People Services,Care Spot - Private (3rd),5701,B
18,Devon County Council,08/08/2012,CFADRES30066336,REDACTED UNDER DP ACT,2900,KINGSHURST COURT,201348,,People Services,Care Spot - Private (3rd),5701,B
18,Devon County Council,22/08/2012,CFADRES30067009,REDACTED UNDER DP ACT,2540,KINGSHURST COURT,201348,,People Services,Care Spot - Private (3rd),5701,B
18,Devon County Council,08/08/2012,CFADRES30066443,REDACTED UNDER DP ACT,788,KINGSTHORPE VIEW CARE HOME,253347,,People Services,Care Spot - Private (3rd),5701,B
18,Devon County Council,22/08/2012,CFADRES30067116,REDACTED UNDER DP ACT,788,KINGSTHORPE VIEW CARE HOME,253347,,People Services,Care Spot - Private (3rd),5701,B
18,Devon County Council,08/08/2012,CFADRES30066364,REDACTED UNDER DP ACT,952,KINGSTON COURT CARE HOME,215015,,People Services,Care Spot - Private (3rd),5701,B
18,Devon County Council,22/08/2012,CFADRES30067037,REDACTED UNDER DP ACT,952,KINGSTON COURT CARE HOME,215015,,People Services,Care Spot - Private (3rd),5701,B
18,Devon County Council,08/08/2012,CFADRES30065943,REDACTED UNDER DP ACT,1991.16,KINGSWOOD HOUSE NURSING HOME,88741,,People Services,Care Spot - Private (3rd),5701,B
18,Devon County Council,22/08/2012,CFADRES30066618,REDACTED UNDER DP ACT,1991.16,KINGSWOOD HOUSE NURSING HOME,88741,,People Services,Care Spot - Private (3rd),5701,B
18,Devon County Council,08/08/2012,CFADDAY30018454,REDACTED UNDER DP ACT,1032.84,KNIGHT CARE PROVIDERS LTD,208256,,People Services,Individualised Support - Private (3rd),5706,B
18,Devon County Council,08/08/2012,CFADDAY30018455,REDACTED UNDER DP ACT,951.3,KNIGHT CARE PROVIDERS LTD,208256,,People Services,Individualised Support - Private (3rd),5706,B
18,Devon County Council,08/08/2012,CFADDAY30018456,REDACTED UNDER DP ACT,978.48,KNIGHT CARE PROVIDERS LTD,208256,,People Services,Individualised Support - Private (3rd),5706,B
18,Devon County Council,08/08/2012,CFADDAY30018457,REDACTED UNDER DP ACT,896.94,KNIGHT CARE PROVIDERS LTD,208256,,People Services,Individualised Support - Private (3rd),5706,B
18,Devon County Council,08/08/2012,CFADDAY30018458,REDACTED UNDER DP ACT,1032.84,KNIGHT CARE PROVIDERS LTD,208256,,People Services,Individualised Support - Private (3rd),5706,B
18,Devon County Council,08/08/2012,CFADRES30066172,REDACTED UNDER DP ACT,1069.92,KNIGHT SC & N-BUSINESS ACCOUNT,102916,,People Services,Care Spot - Private (3rd),5701,B
18,Devon County Council,22/08/2012,CFADRES30066846,REDACTED UNDER DP ACT,1069.92,KNIGHT SC & N-BUSINESS ACCOUNT,102916,,People Services,Care Spot - Private (3rd),5701,B
18,Devon County Council,08/08/2012,CFADRES30066533,REDACTED UNDER DP ACT,1500,KNIGHTS TEMPLAR COURT,287380,,People Services,Care Spot - Private (3rd),5701,B
18,Devon County Council,22/08/2012,CFADRES30067202,REDACTED UNDER DP ACT,1500,KNIGHTS TEMPLAR COURT,287380,,People Services,Care Spot - Private (3rd),5701,B
18,Devon County Council,08/08/2012,CFADRES30066372,REDACTED UNDER DP ACT,845.08,KNOLL NURSING HOME,219284,,People Services,Care Spot - Private (3rd),5701,B
18,Devon County Council,22/08/2012,CFADRES30067044,REDACTED UNDER DP ACT,845.08,KNOLL NURSING HOME,219284,,People Services,Care Spot - Private (3rd),5701,B
18,Devon County Council,08/08/2012,CFADRES30065965,REDACTED UNDER DP ACT,15058.28,KOTHE KJG & MRS VC T/A SANDHURST,89102,,People Services,Care Spot - Private (3rd),5701,B
18,Devon County Council,22/08/2012,CFADRES30066640,REDACTED UNDER DP ACT,14909.42,KOTHE KJG & MRS VC T/A SANDHURST,89102,,People Services,Care Spot - Private (3rd),5701,B
18,Devon County Council,08/08/2012,CFADRES30066481,REDACTED UNDER DP ACT,774,KOWLESSUR MR & MRS TA BROADACRES,274180,,People Services,Care Spot - Private (3rd),5701,B
18,Devon County Council,22/08/2012,CFADRES30067153,REDACTED UNDER DP ACT,774,KOWLESSUR MR & MRS TA BROADACRES,274180,,People Services,Care Spot - Private (3rd),5701,B
18,Devon County Council,08/08/2012,CFADRES30066227,REDACTED UNDER DP ACT,8739.75,LAKENHAM RESIDENTIAL HOME,143978,,People Services,Care Spot - Private (3rd),5701,B
18,Devon County Council,22/08/2012,CFADRES30066901,REDACTED UNDER DP ACT,9451.17,LAKENHAM RESIDENTIAL HOME,143978,,People Services,Care Spot - Private (3rd),5701,B
18,Devon County Council,08/08/2012,CFADRES30066432,REDACTED UNDER DP ACT,4278.18,LAKESIDE RESIDENTIAL HOME,246277,,People Services,Care Spot - Private (3rd),5701,B
18,Devon County Council,22/08/2012,CFADRES30067104,REDACTED UNDER DP ACT,4278.18,LAKESIDE RESIDENTIAL HOME,246277,,People Services,Care Spot - Private (3rd),5701,B
18,Devon County Council,08/08/2012,CFADRES30066243,REDACTED UNDER DP ACT,9964.94,LAKEVIEW RESIDENTIAL HOME,156132,,People Services,Care Spot - Private (3rd),5701,B
18,Devon County Council,22/08/2012,CFADRES30066917,REDACTED UNDER DP ACT,11156.36,LAKEVIEW RESIDENTIAL HOME,156132,,People Services,Care Spot - Private (3rd),5701,B
18,Devon County Council,08/08/2012,CFADRES30065979,REDACTED UNDER DP ACT,1582.82,LAMBSPARK RESIDENTIAL CARE HME,89243,,People Services,Care Spot - Private (3rd),5701,B
18,Devon County Council,22/08/2012,CFADRES30066654,REDACTED UNDER DP ACT,1582.82,LAMBSPARK RESIDENTIAL CARE HME,89243,,People Services,Care Spot - Private (3rd),5701,B
18,Devon County Council,08/08/2012,CFADRES30066226,REDACTED UNDER DP ACT,8326.48,LANDSCORE HOUSE,143547,,People Services,Care Spot - Private (3rd),5701,B
18,Devon County Council,22/08/2012,CFADRES30066900,REDACTED UNDER DP ACT,7655.04,LANDSCORE HOUSE,143547,,People Services,Care Spot - Private (3rd),5701,B
18,Devon County Council,08/08/2012,CFADRES30066117,REDACTED UNDER DP ACT,3855.62,LARCHES THE,90783,,People Services,Care Spot - Private (3rd),5701,B
18,Devon County Council,22/08/2012,CFADRES30066791,REDACTED UNDER DP ACT,4399.91,LARCHES THE,90783,,People Services,Care Spot - Private (3rd),5701,B
18,Devon County Council,21/08/2012,DHRP30223351,4,520,LARCHES THE,90783,,Corporate Services,Course / Exam Fees & Registration,4312,B
18,Devon County Council,08/08/2012,CFADRES30066415,REDACTED UNDER DP ACT,3904.24,LAS FLORES,237864,,People Services,Care Spot - Private (3rd),5701,B
18,Devon County Council,22/08/2012,CFADRES30067087,REDACTED UNDER DP ACT,3904.24,LAS FLORES,237864,,People Services,Care Spot - Private (3rd),5701,B
18,Devon County Council,08/08/2012,CFADRES30066107,REDACTED UNDER DP ACT,7988.5,LAWNS THE,90648,918307815,People Services,Care Spot - Private (3rd),5701,B
18,Devon County Council,22/08/2012,CFADRES30066782,REDACTED UNDER DP ACT,7988.5,LAWNS THE,90648,918307815,People Services,Care Spot - Private (3rd),5701,B
18,Devon County Council,08/08/2012,CFADRES30066197,REDACTED UNDER DP ACT,9997.02,LAWRENCE HOUSE,117551,,People Services,Care Spot - Private (3rd),5701,B
18,Devon County Council,22/08/2012,CFADRES30066871,REDACTED UNDER DP ACT,9997.02,LAWRENCE HOUSE,117551,,People Services,Care Spot - Private (3rd),5701,B
18,Devon County Council,08/08/2012,CFADRES30066377,REDACTED UNDER DP ACT,8185.95,LE CHALET,221825,,People Services,Care Spot - Private (3rd),5701,B
18,Devon County Council,22/08/2012,CFADRES30067049,REDACTED UNDER DP ACT,6381.94,LE CHALET,221825,,People Services,Care Spot - Private (3rd),5701,B
18,Devon County Council,06/08/2012,CFADDOM30040750,REDACTED UNDER DP ACT,8535,LEAN ON ME COMMUNITY CARE SERVS,244405,,People Services,Care Spot - Private (3rd),5701,B
18,Devon County Council,15/08/2012,CFADDOM30041545,REDACTED UNDER DP ACT,8235,LEAN ON ME COMMUNITY CARE SERVS,244405,,People Services,Care Spot - Private (3rd),5701,B
18,Devon County Council,08/08/2012,CFADRES30066123,REDACTED UNDER DP ACT,2886.16,LEET/A HARDWICK VIEW A/C A,90849,,People Services,Care Spot - Private (3rd),5701,B
18,Devon County Council,22/08/2012,CFADRES30066797,REDACTED UNDER DP ACT,2886.16,LEET/A HARDWICK VIEW A/C A,90849,,People Services,Care Spot - Private (3rd),5701,B
18,Devon County Council,08/08/2012,CFADRES30066139,REDACTED UNDER DP ACT,1658.74,LEONARD CHESHIRE FNDT N W REGION,91676,,People Services,Care Spot - Private (3rd),5701,B
18,Devon County Council,22/08/2012,CFADRES30066813,REDACTED UNDER DP ACT,1658.74,LEONARD CHESHIRE FNDT N W REGION,91676,,People Services,Care Spot - Private (3rd),5701,B
18,Devon County Council,13/08/2012,CFADRES30066138,REDACTED UNDER DP ACT,503.82,LEONARD CHESHIRE FNDTN SW REGION,89638,,People Services,Care Respite - Private (3rd),5703,B
18,Devon County Council,22/08/2012,CFADDAY30018905,REDACTED UNDER DP ACT,600,LEONARD CHESHIRE FOUND S W REGIO,88647,899322375,People Services,Individualised Support - Private (3rd),5706,B
18,Devon County Council,22/08/2012,CFADDAY30018908,REDACTED UNDER DP ACT,780,LEONARD CHESHIRE FOUND S W REGIO,88647,899322375,People Services,Individualised Support - Private (3rd),5706,B
18,Devon County Council,22/08/2012,CFADDAY30018930,REDACTED UNDER DP ACT,720,LEONARD CHESHIRE FOUND S W REGIO,88647,899322375,People Services,Individualised Support - Private (3rd),5706,B
18,Devon County Council,08/08/2012,CFADRES30065936,REDACTED UNDER DP ACT,20528.74,LEONARD CHESHIRE FOUND S W REGIO,88647,899322375,People Services,Care Spot - Private (3rd),5701,B
18,Devon County Council,22/08/2012,CFADRES30066611,REDACTED UNDER DP ACT,20528.74,LEONARD CHESHIRE FOUND S W REGIO,88647,899322375,People Services,Care Spot - Private (3rd),5701,B
18,Devon County Council,08/08/2012,CFADRES30066487,REDACTED UNDER DP ACT,1024,LEONORA HOME,276677,,People Services,Care Spot - Private (3rd),5701,B
18,Devon County Council,22/08/2012,CFADRES30067159,REDACTED UNDER DP ACT,1024,LEONORA HOME,276677,,People Services,Care Spot - Private (3rd),5701,B
18,Devon County Council,06/08/2012,CFADDAY30018179,REDACTED UNDER DP ACT,726.3,LIFEWAYS COMMUNITY CARE LTD,90003,774168208,People Services,Individualised Support - Private (3rd),5706,B
18,Devon County Council,06/08/2012,CFADDAY30018264,REDACTED UNDER DP ACT,2522.28,LIFEWAYS COMMUNITY CARE LTD,90003,774168208,People Services,Individualised Support - Private (3rd),5706,B
18,Devon County Council,06/08/2012,CFADDAY30018265,REDACTED UNDER DP ACT,2522.28,LIFEWAYS COMMUNITY CARE LTD,90003,774168208,People Services,Individualised Support - Private (3rd),5706,B
18,Devon County Council,20/08/2012,CFADDAY30018789,REDACTED UNDER DP ACT,2288.2,LIFEWAYS COMMUNITY CARE LTD,90003,774168208,People Services,Individualised Support - Private (3rd),5706,B
18,Devon County Council,20/08/2012,CFADDAY30018790,REDACTED UNDER DP ACT,1060.04,LIFEWAYS COMMUNITY CARE LTD,90003,774168208,People Services,Individualised Support - Private (3rd),5706,B
18,Devon County Council,20/08/2012,CFADDAY30018791,REDACTED UNDER DP ACT,2331.68,LIFEWAYS COMMUNITY CARE LTD,90003,774168208,People Services,Individualised Support - Private (3rd),5706,B
18,Devon County Council,20/08/2012,CFADDAY30018792,REDACTED UNDER DP ACT,2985.32,LIFEWAYS COMMUNITY CARE LTD,90003,774168208,People Services,Individualised Support - Private (3rd),5706,B
18,Devon County Council,20/08/2012,CFADDAY30018793,REDACTED UNDER DP ACT,1092.8,LIFEWAYS COMMUNITY CARE LTD,90003,774168208,People Services,Individualised Support - Private (3rd),5706,B
18,Devon County Council,22/08/2012,CFADDAY30018934,REDACTED UNDER DP ACT,1040.76,LIFEWAYS COMMUNITY CARE LTD,90003,774168208,People Services,Individualised Support - Private (3rd),5706,B
18,Devon County Council,22/08/2012,CFADDAY30018935,REDACTED UNDER DP ACT,1687.92,LIFEWAYS COMMUNITY CARE LTD,90003,774168208,People Services,Individualised Support - Private (3rd),5706,B
18,Devon County Council,22/08/2012,CFADDAY30018936,REDACTED UNDER DP ACT,2590.6,LIFEWAYS COMMUNITY CARE LTD,90003,774168208,People Services,Individualised Support - Private (3rd),5706,B
18,Devon County Council,28/08/2012,CFADDAY30019126,REDACTED UNDER DP ACT,1764.76,LIFEWAYS COMMUNITY CARE LTD,90003,774168208,People Services,Individualised Support - Private (3rd),5706,B
18,Devon County Council,28/08/2012,CFADDAY30019127,REDACTED UNDER DP ACT,1764.76,LIFEWAYS COMMUNITY CARE LTD,90003,774168208,People Services,Individualised Support - Private (3rd),5706,B
18,Devon County Council,28/08/2012,CFADDAY30019129,REDACTED UNDER DP ACT,2379.48,LIFEWAYS COMMUNITY CARE LTD,90003,774168208,People Services,Individualised Support - Private (3rd),5706,B
18,Devon County Council,28/08/2012,CFADDAY30019130,REDACTED UNDER DP ACT,686.4,LIFEWAYS COMMUNITY CARE LTD,90003,774168208,People Services,Individualised Support - Private (3rd),5706,B
18,Devon County Council,29/08/2012,CFADDAY30019224,REDACTED UNDER DP ACT,1092.8,LIFEWAYS COMMUNITY CARE LTD,90003,774168208,People Services,Individualised Support - Private (3rd),5706,B
18,Devon County Council,06/08/2012,CFADDOM30040319,REDACTED UNDER DP ACT,1518.48,LIFEWAYS COMMUNITY CARE LTD,90003,774168208,People Services,Care Spot - Private (3rd),5701,B
18,Devon County Council,29/08/2012,CFADDOM30042045,REDACTED UNDER DP ACT,1709.06,LIFEWAYS COMMUNITY CARE LTD,90003,774168208,People Services,Care Spot - Private (3rd),5701,B
18,Devon County Council,01/08/2012,CFADDAY30018196,REDACTED UNDER DP ACT,1251.6,LIFEWAYS COMMUNITY CARE LTD (NEW,96733,774168208,People Services,Individualised Support - Private (3rd),5706,B
18,Devon County Council,20/08/2012,CFADDAY30018797,REDACTED UNDER DP ACT,568,LIFEWAYS COMMUNITY CARE LTD (NEW,96733,774168208,People Services,Individualised Support - Private (3rd),5706,B
18,Devon County Council,20/08/2012,CFADDAY30018798,REDACTED UNDER DP ACT,558,LIFEWAYS COMMUNITY CARE LTD (NEW,96733,774168208,People Services,Individualised Support - Private (3rd),5706,B
18,Devon County Council,20/08/2012,CFADDAY30018799,REDACTED UNDER DP ACT,2084.08,LIFEWAYS COMMUNITY CARE LTD (NEW,96733,774168208,People Services,Individualised Support - Private (3rd),5706,B
18,Devon County Council,20/08/2012,CFADDAY30018800,REDACTED UNDER DP ACT,1420,LIFEWAYS COMMUNITY CARE LTD (NEW,96733,774168208,People Services,Individualised Support - Private (3rd),5706,B
18,Devon County Council,20/08/2012,CFADDAY30018801,REDACTED UNDER DP ACT,7287.28,LIFEWAYS COMMUNITY CARE LTD (NEW,96733,774168208,People Services,Individualised Support - Private (3rd),5706,B
18,Devon County Council,20/08/2012,CFADDAY30018802,REDACTED UNDER DP ACT,840.6,LIFEWAYS COMMUNITY CARE LTD (NEW,96733,774168208,People Services,Individualised Support - Private (3rd),5706,B
18,Devon County Council,20/08/2012,CFADDAY30018803,REDACTED UNDER DP ACT,556.4,LIFEWAYS COMMUNITY CARE LTD (NEW,96733,774168208,People Services,Individualised Support - Private (3rd),5706,B
18,Devon County Council,20/08/2012,CFADDAY30018804,REDACTED UNDER DP ACT,581.48,LIFEWAYS COMMUNITY CARE LTD (NEW,96733,774168208,People Services,Individualised Support - Private (3rd),5706,B
18,Devon County Council,20/08/2012,CFADDAY30018805,REDACTED UNDER DP ACT,1062.4,LIFEWAYS COMMUNITY CARE LTD (NEW,96733,774168208,People Services,Individualised Support - Private (3rd),5706,B
18,Devon County Council,20/08/2012,CFADDAY30018806,REDACTED UNDER DP ACT,2341.56,LIFEWAYS COMMUNITY CARE LTD (NEW,96733,774168208,People Services,Individualised Support - Private (3rd),5706,B
18,Devon County Council,20/08/2012,CFADDAY30018808,REDACTED UNDER DP ACT,1456,LIFEWAYS COMMUNITY CARE LTD (NEW,96733,774168208,People Services,Individualised Support - Private (3rd),5706,B
18,Devon County Council,20/08/2012,CFADDAY30018809,REDACTED UNDER DP ACT,780.64,LIFEWAYS COMMUNITY CARE LTD (NEW,96733,774168208,People Services,Individualised Support - Private (3rd),5706,B
18,Devon County Council,20/08/2012,CFADDAY30018810,REDACTED UNDER DP ACT,2090.04,LIFEWAYS COMMUNITY CARE LTD (NEW,96733,774168208,People Services,Individualised Support - Private (3rd),5706,B
18,Devon County Council,20/08/2012,CFADDAY30018811,REDACTED UNDER DP ACT,2077.88,LIFEWAYS COMMUNITY CARE LTD (NEW,96733,774168208,People Services,Individualised Support - Private (3rd),5706,B
18,Devon County Council,20/08/2012,CFADDAY30018812,REDACTED UNDER DP ACT,2233.36,LIFEWAYS COMMUNITY CARE LTD (NEW,96733,774168208,People Services,Individualised Support - Private (3rd),5706,B
18,Devon County Council,20/08/2012,CFADDAY30018813,REDACTED UNDER DP ACT,1202.96,LIFEWAYS COMMUNITY CARE LTD (NEW,96733,774168208,People Services,Individualised Support - Private (3rd),5706,B
18,Devon County Council,22/08/2012,CFADDAY30018943,REDACTED UNDER DP ACT,2162.2,LIFEWAYS COMMUNITY CARE LTD (NEW,96733,774168208,People Services,Individualised Support - Private (3rd),5706,B
18,Devon County Council,22/08/2012,CFADDAY30018946,REDACTED UNDER DP ACT,2613.48,LIFEWAYS COMMUNITY CARE LTD (NEW,96733,774168208,People Services,Individualised Support - Private (3rd),5706,B
18,Devon County Council,22/08/2012,CFADDAY30018947,REDACTED UNDER DP ACT,1923.48,LIFEWAYS COMMUNITY CARE LTD (NEW,96733,774168208,People Services,Individualised Support - Private (3rd),5706,B
18,Devon County Council,22/08/2012,CFADDAY30018948,REDACTED UNDER DP ACT,3780.76,LIFEWAYS COMMUNITY CARE LTD (NEW,96733,774168208,People Services,Individualised Support - Private (3rd),5706,B
18,Devon County Council,22/08/2012,CFADDAY30018949,REDACTED UNDER DP ACT,3923.08,LIFEWAYS COMMUNITY CARE LTD (NEW,96733,774168208,People Services,Individualised Support - Private (3rd),5706,B
18,Devon County Council,29/08/2012,CFADDAY30019236,REDACTED UNDER DP ACT,618.88,LIFEWAYS COMMUNITY CARE LTD (NEW,96733,774168208,People Services,Individualised Support - Private (3rd),5706,B
18,Devon County Council,29/08/2012,CFADDAY30019238,REDACTED UNDER DP ACT,4100,LIFEWAYS COMMUNITY CARE LTD (NEW,96733,774168208,People Services,Individualised Support - Private (3rd),5706,B
18,Devon County Council,29/08/2012,CFADDAY30019239,REDACTED UNDER DP ACT,1134.12,LIFEWAYS COMMUNITY CARE LTD (NEW,96733,774168208,People Services,Individualised Support - Private (3rd),5706,B
18,Devon County Council,29/08/2012,CFADDAY30019240,REDACTED UNDER DP ACT,6623.96,LIFEWAYS COMMUNITY CARE LTD (NEW,96733,774168208,People Services,Individualised Support - Private (3rd),5706,B
18,Devon County Council,29/08/2012,CFADDAY30019241,REDACTED UNDER DP ACT,592.64,LIFEWAYS COMMUNITY CARE LTD (NEW,96733,774168208,People Services,Individualised Support - Private (3rd),5706,B
18,Devon County Council,29/08/2012,CFADDAY30019242,REDACTED UNDER DP ACT,864.64,LIFEWAYS COMMUNITY CARE LTD (NEW,96733,774168208,People Services,Individualised Support - Private (3rd),5706,B
18,Devon County Council,29/08/2012,CFADDAY30019243,REDACTED UNDER DP ACT,5217.24,LIFEWAYS COMMUNITY CARE LTD (NEW,96733,774168208,People Services,Individualised Support - Private (3rd),5706,B
18,Devon County Council,29/08/2012,CFADDAY30019244,REDACTED UNDER DP ACT,3397.32,LIFEWAYS COMMUNITY CARE LTD (NEW,96733,774168208,People Services,Individualised Support - Private (3rd),5706,B
18,Devon County Council,08/08/2012,CFADRES30065934,REDACTED UNDER DP ACT,15145.71,LILACS CARE HOME,88387,,People Services,Care Spot - Private (3rd),5701,B
18,Devon County Council,22/08/2012,CFADRES30066609,REDACTED UNDER DP ACT,15423.62,LILACS CARE HOME,88387,,People Services,Care Spot - Private (3rd),5701,B
18,Devon County Council,22/08/2012,CFADRES30066781,REDACTED UNDER DP ACT,1744.29,LINDLEY BD & MM,90647,,People Services,Care Spot - Private (3rd),5701,B
18,Devon County Council,08/08/2012,CFADRES30066386,REDACTED UNDER DP ACT,829.3,LINGALOO,227505,,People Services,Care Spot - Private (3rd),5701,B
18,Devon County Council,22/08/2012,CFADRES30067058,REDACTED UNDER DP ACT,829.3,LINGALOO,227505,,People Services,Care Spot - Private (3rd),5701,B
18,Devon County Council,08/08/2012,CFADRES30066250,REDACTED UNDER DP ACT,542.9,LISTER HOUSE,156698,,People Services,Care Spot - Private (3rd),5701,B
18,Devon County Council,22/08/2012,CFADRES30066924,REDACTED UNDER DP ACT,542.9,LISTER HOUSE,156698,,People Services,Care Spot - Private (3rd),5701,B
18,Devon County Council,08/08/2012,CFADRES30066124,REDACTED UNDER DP ACT,790.48,LITTLE OLDWAY,90888,,People Services,Care Spot - Private (3rd),5701,B
18,Devon County Council,22/08/2012,CFADRES30066798,REDACTED UNDER DP ACT,790.48,LITTLE OLDWAY,90888,,People Services,Care Spot - Private (3rd),5701,B
18,Devon County Council,08/08/2012,CFADRES30066468,REDACTED UNDER DP ACT,900,LITTLEFAIR,266657,,People Services,Care Spot - Private (3rd),5701,B
18,Devon County Council,22/08/2012,CFADRES30067140,REDACTED UNDER DP ACT,900,LITTLEFAIR,266657,,People Services,Care Spot - Private (3rd),5701,B
18,Devon County Council,08/08/2012,CFADRES30066497,REDACTED UNDER DP ACT,952,LLYS Y TYWYSOG CARE HOME,278958,,People Services,Care Spot - Private (3rd),5701,B
18,Devon County Council,22/08/2012,CFADRES30067169,REDACTED UNDER DP ACT,952,LLYS Y TYWYSOG CARE HOME,278958,,People Services,Care Spot - Private (3rd),5701,B
18,Devon County Council,08/08/2012,CFADRES30066234,REDACTED UNDER DP ACT,574.62,LORNA HOUSE,151321,,People Services,Care Spot - Private (3rd),5701,B
18,Devon County Council,22/08/2012,CFADRES30066908,REDACTED UNDER DP ACT,574.62,LORNA HOUSE,151321,,People Services,Care Spot - Private (3rd),5701,B
18,Devon County Council,08/08/2012,CFADRES30066059,REDACTED UNDER DP ACT,3877.8,LYNDALE CARE LTD,90252,,People Services,Care Spot - Private (3rd),5701,B
18,Devon County Council,22/08/2012,CFADRES30066733,REDACTED UNDER DP ACT,3877.8,LYNDALE CARE LTD,90252,,People Services,Care Spot - Private (3rd),5701,B
18,Devon County Council,08/08/2012,CFADRES30065933,REDACTED UNDER DP ACT,10916.88,MAGNOLIA HOUSE,87589,918175019,People Services,Care Spot - Private (3rd),5701,B
18,Devon County Council,08/08/2012,CFADRES30066440,REDACTED UNDER DP ACT,3573.56,MAGNOLIA HOUSE,251047,,People Services,Care Spot - Private (3rd),5701,B
18,Devon County Council,22/08/2012,CFADRES30066608,REDACTED UNDER DP ACT,10916.88,MAGNOLIA HOUSE,87589,918175019,People Services,Care Spot - Private (3rd),5701,B
18,Devon County Council,22/08/2012,CFADRES30067113,REDACTED UNDER DP ACT,4996.42,MAGNOLIA HOUSE,251047,,People Services,Care Spot - Private (3rd),5701,B
18,Devon County Council,22/08/2012,CFADRES30067233,REDACTED UNDER DP ACT,1642.76,MAIS HOUSE,294196,,People Services,Care Spot - Private (3rd),5701,B
18,Devon County Council,08/08/2012,CFADRES30066368,REDACTED UNDER DP ACT,4325.68,MALDEN HOUSE,216858,,People Services,Care Spot - Private (3rd),5701,B
18,Devon County Council,22/08/2012,CFADRES30067041,REDACTED UNDER DP ACT,4325.68,MALDEN HOUSE,216858,,People Services,Care Spot - Private (3rd),5701,B
18,Devon County Council,08/08/2012,CFADRES30066082,REDACTED UNDER DP ACT,10032.94,MALLANDS CARE LTD,90451,,People Services,Care Spot - Private (3rd),5701,B
18,Devon County Council,22/08/2012,CFADRES30066756,REDACTED UNDER DP ACT,9974.94,MALLANDS CARE LTD,90451,,People Services,Care Spot - Private (3rd),5701,B
18,Devon County Council,08/08/2012,CFADRES30065921,REDACTED UNDER DP ACT,10389.88,MANOR COLLECTION-PUDDAVINE COURT,87306,,People Services,Care Spot - Private (3rd),5701,B
18,Devon County Council,22/08/2012,CFADRES30066596,REDACTED UNDER DP ACT,12700.59,MANOR COLLECTION-PUDDAVINE COURT,87306,,People Services,Care Spot - Private (3rd),5701,B
18,Devon County Council,22/08/2012,CFADRES30066814,REDACTED UNDER DP ACT,6666.11,MANOR COTTAGE HOTEL,91681,,People Services,Care Spot - Private (3rd),5701,B
18,Devon County Council,08/08/2012,CFADRES30066512,REDACTED UNDER DP ACT,661.6,MANOR HOUSE RESIDENTIAL HOME,283346,,People Services,Care Spot - Private (3rd),5701,B
18,Devon County Council,22/08/2012,CFADRES30067183,REDACTED UNDER DP ACT,661.6,MANOR HOUSE RESIDENTIAL HOME,283346,,People Services,Care Spot - Private (3rd),5701,B
18,Devon County Council,08/08/2012,CFADRES30066007,REDACTED UNDER DP ACT,4443.2,MANOR HOUSE THE,89636,,People Services,Care Spot - Private (3rd),5701,B
18,Devon County Council,22/08/2012,CFADRES30066682,REDACTED UNDER DP ACT,4443.2,MANOR HOUSE THE,89636,,People Services,Care Spot - Private (3rd),5701,B
18,Devon County Council,08/08/2012,CFADRES30066003,REDACTED UNDER DP ACT,2223.94,MANOR LODGE,89617,,People Services,Care Spot - Private (3rd),5701,B
18,Devon County Council,22/08/2012,CFADRES30066678,REDACTED UNDER DP ACT,2623.94,MANOR LODGE,89617,,People Services,Care Spot - Private (3rd),5701,B
18,Devon County Council,08/08/2012,CFADRES30066080,REDACTED UNDER DP ACT,8665.49,MANOR THE,90442,,People Services,Care Spot - Private (3rd),5701,B
18,Devon County Council,22/08/2012,CFADRES30066754,REDACTED UNDER DP ACT,8423.75,MANOR THE,90442,,People Services,Care Spot - Private (3rd),5701,B
18,Devon County Council,08/08/2012,CFADRES30066426,REDACTED UNDER DP ACT,6762.79,MARDON HOUSE,243976,,People Services,Care Spot - Private (3rd),5701,B
18,Devon County Council,22/08/2012,CFADRES30067098,REDACTED UNDER DP ACT,6881.36,MARDON HOUSE,243976,,People Services,Care Spot - Private (3rd),5701,B
18,Devon County Council,08/08/2012,CFADRES30066547,REDACTED UNDER DP ACT,955.44,MARGARET ROSE CARE TA WARBERRIES,291175,,People Services,Care Spot - Private (3rd),5701,B
18,Devon County Council,22/08/2012,CFADRES30067216,REDACTED UNDER DP ACT,955.44,MARGARET ROSE CARE TA WARBERRIES,291175,,People Services,Care Spot - Private (3rd),5701,B
18,Devon County Council,08/08/2012,CFADRES30066542,REDACTED UNDER DP ACT,3760,MATSON HOUSE,289305,,People Services,Care Spot - Private (3rd),5701,B
18,Devon County Council,22/08/2012,CFADRES30067211,REDACTED UNDER DP ACT,3760,MATSON HOUSE,289305,,People Services,Care Spot - Private (3rd),5701,B
18,Devon County Council,08/08/2012,CFADRES30065918,REDACTED UNDER DP ACT,2421.56,MCLEOD RC & J,87171,,People Services,Care Spot - Private (3rd),5701,B
18,Devon County Council,22/08/2012,CFADRES30066593,REDACTED UNDER DP ACT,2421.56,MCLEOD RC & J,87171,,People Services,Care Spot - Private (3rd),5701,B
18,Devon County Council,08/08/2012,CFADRES30066453,REDACTED UNDER DP ACT,1149.9,MEADBANK NURSING HOME,259977,,People Services,Care Spot - Private (3rd),5701,B
18,Devon County Council,22/08/2012,CFADRES30067126,REDACTED UNDER DP ACT,1149.9,MEADBANK NURSING HOME,259977,,People Services,Care Spot - Private (3rd),5701,B
18,Devon County Council,08/08/2012,CFADRES30066067,REDACTED UNDER DP ACT,3801.16,MEADOWSIDE,90340,,People Services,Care Spot - Private (3rd),5701,B
18,Devon County Council,22/08/2012,CFADRES30066741,REDACTED UNDER DP ACT,3801.16,MEADOWSIDE,90340,,People Services,Care Spot - Private (3rd),5701,B
18,Devon County Council,08/08/2012,CFADRES30066456,REDACTED UNDER DP ACT,743.22,MENDIP LODGE,261786,,People Services,Care Spot - Private (3rd),5701,B
18,Devon County Council,22/08/2012,CFADRES30067129,REDACTED UNDER DP ACT,743.22,MENDIP LODGE,261786,,People Services,Care Spot - Private (3rd),5701,B
18,Devon County Council,08/08/2012,CFADRES30066536,REDACTED UNDER DP ACT,1488.6,METHODIST HOMES - TORRWOOD,288434,,People Services,Care Spot - Private (3rd),5701,B
18,Devon County Council,22/08/2012,CFADRES30067205,REDACTED UNDER DP ACT,1488.6,METHODIST HOMES - TORRWOOD,288434,,People Services,Care Spot - Private (3rd),5701,B
18,Devon County Council,08/08/2012,CFADRES30066068,REDACTED UNDER DP ACT,8974.6,METHODIST HOMES FOR THE AGED,90351,,People Services,Care Spot - Private (3rd),5701,B
18,Devon County Council,22/08/2012,CFADRES30066742,REDACTED UNDER DP ACT,10118.02,METHODIST HOMES FOR THE AGED,90351,,People Services,Care Spot - Private (3rd),5701,B
18,Devon County Council,08/08/2012,CFADRES30066540,REDACTED UNDER DP ACT,867.44,METHODIST HOMES T/A RICHMOND,289213,,People Services,Care Spot - Private (3rd),5701,B
18,Devon County Council,22/08/2012,CFADRES30067209,REDACTED UNDER DP ACT,867.44,METHODIST HOMES T/A RICHMOND,289213,,People Services,Care Spot - Private (3rd),5701,B
18,Devon County Council,08/08/2012,CFADRES30066550,REDACTED UNDER DP ACT,2200,MIDSHIRES HEALTHCARE LTD,291304,,People Services,Care Spot - Private (3rd),5701,B
18,Devon County Council,22/08/2012,CFADRES30067219,REDACTED UNDER DP ACT,2200,MIDSHIRES HEALTHCARE LTD,291304,,People Services,Care Spot - Private (3rd),5701,B
18,Devon County Council,08/08/2012,CFADRES30066527,REDACTED UNDER DP ACT,1162,MILL HEATH NURSING HOME,286599,,People Services,Care Spot - Private (3rd),5701,B
18,Devon County Council,22/08/2012,CFADRES30067196,REDACTED UNDER DP ACT,1162,MILL HEATH NURSING HOME,286599,,People Services,Care Spot - Private (3rd),5701,B
18,Devon County Council,01/08/2012,CFADDAY30018191,REDACTED UNDER DP ACT,6360,MILLS KP&E - DOVE RIDGE,90716,,People Services,Care Spot - Private (3rd),5701,B
18,Devon County Council,08/08/2012,CFADRES30066112,REDACTED UNDER DP ACT,4859.42,MILLS KP&E - DOVE RIDGE,90716,,People Services,Care Spot - Private (3rd),5701,B
18,Devon County Council,22/08/2012,CFADRES30066787,REDACTED UNDER DP ACT,5096.56,MILLS KP&E - DOVE RIDGE,90716,,People Services,Care Spot - Private (3rd),5701,B
18,Devon County Council,08/08/2012,CFADRES30066529,REDACTED UNDER DP ACT,1024.48,MILLWAY HOUSE,286795,,People Services,Care Spot - Private (3rd),5701,B
18,Devon County Council,22/08/2012,CFADRES30067198,REDACTED UNDER DP ACT,1024.48,MILLWAY HOUSE,286795,,People Services,Care Spot - Private (3rd),5701,B
18,Devon County Council,08/08/2012,CFADRES30066358,REDACTED UNDER DP ACT,1273.36,MILTON COURT CARE CENTRE,209180,,People Services,Care Spot - Private (3rd),5701,B
18,Devon County Council,22/08/2012,CFADRES30067031,REDACTED UNDER DP ACT,1273.36,MILTON COURT CARE CENTRE,209180,,People Services,Care Spot - Private (3rd),5701,B
18,Devon County Council,08/08/2012,CFADRES30066071,REDACTED UNDER DP ACT,8063.58,MIRAMAR CARE HOME,90376,,People Services,Care Spot - Private (3rd),5701,B
18,Devon County Council,22/08/2012,CFADRES30066745,REDACTED UNDER DP ACT,8063.58,MIRAMAR CARE HOME,90376,,People Services,Care Spot - Private (3rd),5701,B
18,Devon County Council,22/08/2012,CFADRES30066580,REDACTED UNDER DP ACT,6488.38,MODUS CARE LTD,86872,,People Services,Care Spot - Private (3rd),5701,B
18,Devon County Council,17/08/2012,CYPNMLOC30196637,12/MCL/3022,13024.43,MODUS CARE LTD,86872,,People Services,Residential Care - Private (3rd),5731,B
18,Devon County Council,20/08/2012,CFADDOM30041820,REDACTED UNDER DP ACT,1155,MOORCARE DEVON LTD,260782,,People Services,Care Spot - Private (3rd),5701,B
18,Devon County Council,13/08/2012,FINTBAD30467374,156,990,MOORCARE DEVON LTD,260782,,People Services,Care Spot - Private (3rd),5701,B
18,Devon County Council,08/08/2012,CFADRES30065922,REDACTED UNDER DP ACT,10716.76,MOORS PARK BISHOPSTEIGNTON LTD,87332,,People Services,Care Spot - Private (3rd),5701,B
18,Devon County Council,22/08/2012,CFADRES30066597,REDACTED UNDER DP ACT,11309.62,MOORS PARK BISHOPSTEIGNTON LTD,87332,,People Services,Care Spot - Private (3rd),5701,B
18,Devon County Council,08/08/2012,CFADRES30066083,REDACTED UNDER DP ACT,13937.06,MORGAN T/A PENSYLVANIA HOUSE HA&,90452,,People Services,Care Spot - Private (3rd),5701,B
18,Devon County Council,08/08/2012,CFADRES30066187,REDACTED UNDER DP ACT,2227.06,MOUNT OLIVET NURSING HOME,109320,,People Services,Care Spot - Private (3rd),5701,B
18,Devon County Council,22/08/2012,CFADRES30066861,REDACTED UNDER DP ACT,880.9,MOUNT OLIVET NURSING HOME,109320,,People Services,Care Spot - Private (3rd),5701,B
18,Devon County Council,08/08/2012,CFADRES30066373,REDACTED UNDER DP ACT,9791.82,MOUNT PLEASANT,219575,,People Services,Care Spot - Private (3rd),5701,B
18,Devon County Council,22/08/2012,CFADRES30067045,REDACTED UNDER DP ACT,9649.8,MOUNT PLEASANT,219575,,People Services,Care Spot - Private (3rd),5701,B
18,Devon County Council,28/08/2012,CFADDAY30019168,REDACTED UNDER DP ACT,1530,MOUNT PLEASANT CRE HME(DAY CARE),244546,,People Services,Care Spot - Private (3rd),5701,B
18,Devon County Council,28/08/2012,CFADDAY30019169,REDACTED UNDER DP ACT,808.07,MOUNT PLEASANT CRE HME(DAY CARE),244546,,People Services,Care Spot - Private (3rd),5701,B
18,Devon County Council,08/08/2012,CFADDAY30018369,REDACTED UNDER DP ACT,2000,MOUNT RALEIGH RCH (KALM LIVING),90601,,People Services,Individualised Support - Private (3rd),5706,B
18,Devon County Council,15/08/2012,CFADDAY30018596,REDACTED UNDER DP ACT,1809.88,MOUNT RALEIGH RCH (KALM LIVING),90601,,People Services,Individualised Support - Private (3rd),5706,B
18,Devon County Council,22/08/2012,CFADDAY30018940,REDACTED UNDER DP ACT,1600,MOUNT RALEIGH RCH (KALM LIVING),90601,,People Services,Individualised Support - Private (3rd),5706,B
18,Devon County Council,01/08/2012,CFADDAY30018239,REDACTED UNDER DP ACT,1400,MULHALL SUE,233997,,People Services,Individualised Support - Private (3rd),5706,B
18,Devon County Council,08/08/2012,CFADRES30066438,REDACTED UNDER DP ACT,800.68,NAPIER LODGE,250489,,People Services,Care Spot - Private (3rd),5701,B
18,Devon County Council,22/08/2012,CFADRES30067111,REDACTED UNDER DP ACT,800.68,NAPIER LODGE,250489,,People Services,Care Spot - Private (3rd),5701,B
18,Devon County Council,08/08/2012,CFADRES30066192,REDACTED UNDER DP ACT,2526.8,NATIONAL SOCIETY FOR EPILEPSY,113016,,People Services,Care Spot - Private (3rd),5701,B
18,Devon County Council,22/08/2012,CFADRES30066866,REDACTED UNDER DP ACT,2526.8,NATIONAL SOCIETY FOR EPILEPSY,113016,,People Services,Care Spot - Private (3rd),5701,B
18,Devon County Council,08/08/2012,CFADRES30065967,REDACTED UNDER DP ACT,1694.58,NAZARETH HOUSE CARE HOME,89117,,People Services,Care Spot - Private (3rd),5701,B
18,Devon County Council,22/08/2012,CFADRES30066642,REDACTED UNDER DP ACT,1694.58,NAZARETH HOUSE CARE HOME,89117,,People Services,Care Spot - Private (3rd),5701,B
18,Devon County Council,08/08/2012,CFADRES30066145,REDACTED UNDER DP ACT,8167.41,ND MCCOWEN-SMITH T/A WELLESLEY,93568,974855463,People Services,Care Spot - Private (3rd),5701,B
18,Devon County Council,22/08/2012,CFADRES30066819,REDACTED UNDER DP ACT,7541.65,ND MCCOWEN-SMITH T/A WELLESLEY,93568,974855463,People Services,Care Spot - Private (3rd),5701,B
18,Devon County Council,08/08/2012,CFADRES30066559,REDACTED UNDER DP ACT,1735.71,NEEDWOOD HOUSE NURSING HOME,293114,,People Services,Care Spot - Private (3rd),5701,B
18,Devon County Council,22/08/2012,CFADRES30067229,REDACTED UNDER DP ACT,900,NEEDWOOD HOUSE NURSING HOME,293114,,People Services,Care Spot - Private (3rd),5701,B
18,Devon County Council,08/08/2012,CFADRES30066058,REDACTED UNDER DP ACT,11692.64,NEILSON RETIREMENT HOTEL,90214,927360125,People Services,Care Spot - Private (3rd),5701,B
18,Devon County Council,22/08/2012,CFADRES30066732,REDACTED UNDER DP ACT,9202.64,NEILSON RETIREMENT HOTEL,90214,927360125,People Services,Care Spot - Private (3rd),5701,B
18,Devon County Council,08/08/2012,CFADRES30066396,REDACTED UNDER DP ACT,820,NEW CENTURY CARE LTD TA CLYDE HS,231150,,People Services,Care Spot - Private (3rd),5701,B
18,Devon County Council,22/08/2012,CFADRES30067068,REDACTED UNDER DP ACT,820,NEW CENTURY CARE LTD TA CLYDE HS,231150,,People Services,Care Spot - Private (3rd),5701,B
18,Devon County Council,08/08/2012,CFADRES30066218,REDACTED UNDER DP ACT,3847.57,NEW WITHEVEN,138197,,People Services,Care Spot - Private (3rd),5701,B
18,Devon County Council,22/08/2012,CFADRES30066892,REDACTED UNDER DP ACT,5074.78,NEW WITHEVEN,138197,,People Services,Care Spot - Private (3rd),5701,B
18,Devon County Council,08/08/2012,CFADRES30066115,REDACTED UNDER DP ACT,7670.06,NEWTON ABBOT/DIST SOC MENTALLY H,90755,,People Services,Care Spot - Private (3rd),5701,B
18,Devon County Council,22/08/2012,CFADRES30066789,REDACTED UNDER DP ACT,8241.49,NEWTON ABBOT/DIST SOC MENTALLY H,90755,,People Services,Care Spot - Private (3rd),5701,B
18,Devon County Council,08/08/2012,CFADRES30065900,REDACTED UNDER DP ACT,1815.36,NIGHTINGALE CARE HOMES,86712,974855659,People Services,Care Spot - Private (3rd),5701,B
18,Devon County Council,22/08/2012,CFADRES30066575,REDACTED UNDER DP ACT,1815.36,NIGHTINGALE CARE HOMES,86712,974855659,People Services,Care Spot - Private (3rd),5701,B
18,Devon County Council,08/08/2012,CFADRES30066100,REDACTED UNDER DP ACT,3253.05,NIGHTINGALE HOUSE,90603,,People Services,Care Spot - Private (3rd),5701,B
18,Devon County Council,22/08/2012,CFADRES30066774,REDACTED UNDER DP ACT,2926.6,NIGHTINGALE HOUSE,90603,,People Services,Care Spot - Private (3rd),5701,B
18,Devon County Council,08/08/2012,CFADRES30066369,REDACTED UNDER DP ACT,2521.62,NIGHTINGALES THE,216973,,People Services,Care Spot - Private (3rd),5701,B
18,Devon County Council,22/08/2012,CFADRES30067042,REDACTED UNDER DP ACT,2521.62,NIGHTINGALES THE,216973,,People Services,Care Spot - Private (3rd),5701,B
18,Devon County Council,08/08/2012,CFADDAY30018365,REDACTED UNDER DP ACT,1004,NORTHAM LODGE,90377,,People Services,Care Spot - Private (3rd),5701,B
18,Devon County Council,08/08/2012,CFADDAY30018366,REDACTED UNDER DP ACT,1296,NORTHAM LODGE,90377,,People Services,Care Spot - Private (3rd),5701,B
18,Devon County Council,08/08/2012,CFADDAY30018367,REDACTED UNDER DP ACT,1479.6,NORTHAM LODGE,90377,,People Services,Care Spot - Private (3rd),5701,B
18,Devon County Council,28/08/2012,CFADDOM30041998,REDACTED UNDER DP ACT,603,NORTHAM LODGE,90377,,People Services,Care Spot - Private (3rd),5701,B
18,Devon County Council,08/08/2012,CFADRES30066072,REDACTED UNDER DP ACT,34037.67,NORTHAM LODGE,90377,,People Services,Care Spot - Private (3rd),5701,B
18,Devon County Council,22/08/2012,CFADRES30066746,REDACTED UNDER DP ACT,34126.38,NORTHAM LODGE,90377,,People Services,Care Spot - Private (3rd),5701,B
18,Devon County Council,08/08/2012,FNEXMHLD30472418,3621,3676,NORTHAM LODGE,90377,,People Services,Care Spot - Private (3rd),5701,B
18,Devon County Council,08/08/2012,CFADRES30065995,REDACTED UNDER DP ACT,2213.28,NORTHFIELD HOUSE,89435,,People Services,Care Spot - Private (3rd),5701,B
18,Devon County Council,22/08/2012,CFADRES30066670,REDACTED UNDER DP ACT,2213.28,NORTHFIELD HOUSE,89435,,People Services,Care Spot - Private (3rd),5701,B
18,Devon County Council,08/08/2012,CFADRES30066544,REDACTED UNDER DP ACT,950,NORTHWAY HOUSE RESIDENTIAL HOME,290532,,People Services,Care Spot - Private (3rd),5701,B
18,Devon County Council,22/08/2012,CFADRES30067213,REDACTED UNDER DP ACT,950,NORTHWAY HOUSE RESIDENTIAL HOME,290532,,People Services,Care Spot - Private (3rd),5701,B
18,Devon County Council,08/08/2012,CFADRES30066412,REDACTED UNDER DP ACT,2680.82,NOSNOM,236271,,People Services,Care Spot - Private (3rd),5701,B
18,Devon County Council,22/08/2012,CFADRES30067084,REDACTED UNDER DP ACT,2680.82,NOSNOM,236271,,People Services,Care Spot - Private (3rd),5701,B
18,Devon County Council,08/08/2012,CFADRES30065940,REDACTED UNDER DP ACT,4890.02,NOTARO HOMES N LTD,88692,,People Services,Care Spot - Private (3rd),5701,B
18,Devon County Council,22/08/2012,CFADRES30066615,REDACTED UNDER DP ACT,4890.02,NOTARO HOMES N LTD,88692,,People Services,Care Spot - Private (3rd),5701,B
18,Devon County Council,20/08/2012,CFADDOM30041739,REDACTED UNDER DP ACT,1106.7,NURSE PLUS & CARER PLUS (UK) LTD,209782,,People Services,Care Spot - Private (3rd),5701,B
18,Devon County Council,20/08/2012,CFADDOM30041740,REDACTED UNDER DP ACT,1799.28,NURSE PLUS & CARER PLUS (UK) LTD,209782,,People Services,Care Spot - Private (3rd),5701,B
18,Devon County Council,20/08/2012,CFADDOM30041745,REDACTED UNDER DP ACT,2756.04,NURSE PLUS & CARER PLUS (UK) LTD,209782,,People Services,Care Spot - Private (3rd),5701,B
18,Devon County Council,20/08/2012,CFADDOM30041748,REDACTED UNDER DP ACT,906.78,NURSE PLUS & CARER PLUS (UK) LTD,209782,,People Services,Care Spot - Private (3rd),5701,B
18,Devon County Council,20/08/2012,CFADDOM30041750,REDACTED UNDER DP ACT,799.68,NURSE PLUS & CARER PLUS (UK) LTD,209782,,People Services,Care Spot - Private (3rd),5701,B
18,Devon County Council,20/08/2012,CFADDOM30041751,REDACTED UNDER DP ACT,642.6,NURSE PLUS & CARER PLUS (UK) LTD,209782,,People Services,Care Spot - Private (3rd),5701,B
18,Devon County Council,20/08/2012,CFADDOM30041752,REDACTED UNDER DP ACT,504.51,NURSE PLUS & CARER PLUS (UK) LTD,209782,,People Services,Care Spot - Private (3rd),5701,B
18,Devon County Council,20/08/2012,CFADDOM30041755,REDACTED UNDER DP ACT,1035.3,NURSE PLUS & CARER PLUS (UK) LTD,209782,,People Services,Care Spot - Private (3rd),5701,B
18,Devon County Council,20/08/2012,CFADDOM30041759,REDACTED UNDER DP ACT,599.76,NURSE PLUS & CARER PLUS (UK) LTD,209782,,People Services,Care Spot - Private (3rd),5701,B
18,Devon County Council,20/08/2012,CFADDOM30041760,REDACTED UNDER DP ACT,653.31,NURSE PLUS & CARER PLUS (UK) LTD,209782,,People Services,Care Spot - Private (3rd),5701,B
18,Devon County Council,20/08/2012,CFADDOM30041763,REDACTED UNDER DP ACT,799.68,NURSE PLUS & CARER PLUS (UK) LTD,209782,,People Services,Care Spot - Private (3rd),5701,B
18,Devon County Council,20/08/2012,CFADDOM30041767,REDACTED UNDER DP ACT,510.51,NURSE PLUS & CARER PLUS (UK) LTD,209782,,People Services,Care Spot - Private (3rd),5701,B
18,Devon County Council,20/08/2012,CFADDOM30041770,REDACTED UNDER DP ACT,514.08,NURSE PLUS & CARER PLUS (UK) LTD,209782,,People Services,Care Spot - Private (3rd),5701,B
18,Devon County Council,20/08/2012,CFADDOM30041771,REDACTED UNDER DP ACT,506.94,NURSE PLUS & CARER PLUS (UK) LTD,209782,,People Services,Care Spot - Private (3rd),5701,B
18,Devon County Council,20/08/2012,CFADDOM30041773,REDACTED UNDER DP ACT,528.36,NURSE PLUS & CARER PLUS (UK) LTD,209782,,People Services,Care Spot - Private (3rd),5701,B
18,Devon County Council,20/08/2012,CFADDOM30041774,REDACTED UNDER DP ACT,799.68,NURSE PLUS & CARER PLUS (UK) LTD,209782,,People Services,Care Spot - Private (3rd),5701,B
18,Devon County Council,20/08/2012,CFADDOM30041784,REDACTED UNDER DP ACT,1028.16,NURSE PLUS & CARER PLUS (UK) LTD,209782,,People Services,Care Spot - Private (3rd),5701,B
18,Devon County Council,20/08/2012,CFADDOM30041785,REDACTED UNDER DP ACT,799.68,NURSE PLUS & CARER PLUS (UK) LTD,209782,,People Services,Care Spot - Private (3rd),5701,B
18,Devon County Council,20/08/2012,CFADDOM30041786,REDACTED UNDER DP ACT,842.52,NURSE PLUS & CARER PLUS (UK) LTD,209782,,People Services,Care Spot - Private (3rd),5701,B
18,Devon County Council,20/08/2012,CFADDOM30041789,REDACTED UNDER DP ACT,828.24,NURSE PLUS & CARER PLUS (UK) LTD,209782,,People Services,Care Spot - Private (3rd),5701,B
18,Devon County Council,20/08/2012,CFADDOM30041794,REDACTED UNDER DP ACT,813.96,NURSE PLUS & CARER PLUS (UK) LTD,209782,,People Services,Care Spot - Private (3rd),5701,B
18,Devon County Council,07/08/2012,RECSERV30601961,134682,11854.07,NURSE PLUS & CARER PLUS (UK) LTD,209782,,Corporate Services,External Agency Staff,4321,B
18,Devon County Council,17/08/2012,RECSERV30602070,137297,13691.52,NURSE PLUS & CARER PLUS (UK) LTD,209782,,Corporate Services,External Agency Staff,4321,B
18,Devon County Council,17/08/2012,RECSERV30602071,138085,15167.15,NURSE PLUS & CARER PLUS (UK) LTD,209782,,Corporate Services,External Agency Staff,4321,B
18,Devon County Council,22/08/2012,RECSERV30602148,139431,15782.14,NURSE PLUS & CARER PLUS (UK) LTD,209782,,Corporate Services,External Agency Staff,4321,B
18,Devon County Council,08/08/2012,CFADRES30065968,REDACTED UNDER DP ACT,2464,NUTLEY LODGE,89120,,People Services,Care Spot - Private (3rd),5701,B
18,Devon County Council,22/08/2012,CFADRES30066643,REDACTED UNDER DP ACT,2464,NUTLEY LODGE,89120,,People Services,Care Spot - Private (3rd),5701,B
18,Devon County Council,08/08/2012,CFADRES30066429,REDACTED UNDER DP ACT,1365.62,OAK HOUSE,244550,,People Services,Care Spot - Private (3rd),5701,B
18,Devon County Council,22/08/2012,CFADRES30067101,REDACTED UNDER DP ACT,1365.62,OAK HOUSE,244550,,People Services,Care Spot - Private (3rd),5701,B
18,Devon County Council,08/08/2012,CFADRES30066240,REDACTED UNDER DP ACT,7832.2,OAK HOUSE CARE HOME,154484,,People Services,Care Spot - Private (3rd),5701,B
18,Devon County Council,22/08/2012,CFADRES30066914,REDACTED UNDER DP ACT,7832.2,OAK HOUSE CARE HOME,154484,,People Services,Care Spot - Private (3rd),5701,B
18,Devon County Council,08/08/2012,CFADRES30066504,REDACTED UNDER DP ACT,1282.6,OAK LODGE NURSING HOME,280917,,People Services,Care Spot - Private (3rd),5701,B
18,Devon County Council,22/08/2012,CFADRES30067176,REDACTED UNDER DP ACT,1282.6,OAK LODGE NURSING HOME,280917,,People Services,Care Spot - Private (3rd),5701,B
18,Devon County Council,06/08/2012,CFADDOM30040752,REDACTED UNDER DP ACT,843.6,OAKFIELD INDEPENDENT CARE AND,253505,,People Services,Care Spot - Private (3rd),5701,B
18,Devon County Council,20/08/2012,CFADDOM30041802,REDACTED UNDER DP ACT,539,OAKFIELD INDEPENDENT CARE AND,253505,,People Services,Care Spot - Private (3rd),5701,B
18,Devon County Council,20/08/2012,CFADDOM30041803,REDACTED UNDER DP ACT,851.2,OAKFIELD INDEPENDENT CARE AND,253505,,People Services,Care Spot - Private (3rd),5701,B
18,Devon County Council,20/08/2012,CFADDOM30041805,REDACTED UNDER DP ACT,501.6,OAKFIELD INDEPENDENT CARE AND,253505,,People Services,Care Spot - Private (3rd),5701,B
18,Devon County Council,20/08/2012,CFADDOM30041809,REDACTED UNDER DP ACT,662.2,OAKFIELD INDEPENDENT CARE AND,253505,,People Services,Care Spot - Private (3rd),5701,B
18,Devon County Council,20/08/2012,CFADDOM30041810,REDACTED UNDER DP ACT,578.87,OAKFIELD INDEPENDENT CARE AND,253505,,People Services,Care Spot - Private (3rd),5701,B
18,Devon County Council,20/08/2012,CFADDOM30041817,REDACTED UNDER DP ACT,638.4,OAKFIELD INDEPENDENT CARE AND,253505,,People Services,Care Spot - Private (3rd),5701,B
18,Devon County Council,08/08/2012,CFADRES30066359,REDACTED UNDER DP ACT,767.34,OAKHURST RETIREMENT HOTEL,209339,,People Services,Care Spot - Private (3rd),5701,B
18,Devon County Council,22/08/2012,CFADRES30067032,REDACTED UNDER DP ACT,767.34,OAKHURST RETIREMENT HOTEL,209339,,People Services,Care Spot - Private (3rd),5701,B
18,Devon County Council,08/08/2012,CFADRES30066093,REDACTED UNDER DP ACT,13134.34,OAKLANDS RESIDENTIAL CARE HOME,90566,,People Services,Care Spot - Private (3rd),5701,B
18,Devon County Council,22/08/2012,CFADRES30066767,REDACTED UNDER DP ACT,13410.35,OAKLANDS RESIDENTIAL CARE HOME,90566,,People Services,Care Spot - Private (3rd),5701,B
18,Devon County Council,08/08/2012,CFADDOM30040941,REDACTED UNDER DP ACT,1050,OASIS COMMUNITY CARE LTD,253349,,People Services,Care Spot - Private (3rd),5701,B
18,Devon County Council,08/08/2012,CFADDOM30040947,REDACTED UNDER DP ACT,1050,OASIS COMMUNITY CARE LTD,253349,,People Services,Care Spot - Private (3rd),5701,B
18,Devon County Council,08/08/2012,CFADDOM30040948,REDACTED UNDER DP ACT,840,OASIS COMMUNITY CARE LTD,253349,,People Services,Care Spot - Private (3rd),5701,B
18,Devon County Council,08/08/2012,CFADRES30066084,REDACTED UNDER DP ACT,1695.18,OATEN MJ&P TA HATT HOUSE,90459,,People Services,Care Spot - Private (3rd),5701,B
18,Devon County Council,22/08/2012,CFADRES30066758,REDACTED UNDER DP ACT,1695.18,OATEN MJ&P TA HATT HOUSE,90459,,People Services,Care Spot - Private (3rd),5701,B
18,Devon County Council,20/08/2012,CFADDAY30018858,REDACTED UNDER DP ACT,2092,OCEAN CARE SOLUTIONS LTD,287932,,People Services,Individualised Support - Private (3rd),5706,B
18,Devon County Council,22/08/2012,CFADDAY30019041,REDACTED UNDER DP ACT,4550,OCEAN CARE SOLUTIONS LTD,287932,,People Services,Individualised Support - Private (3rd),5706,B
18,Devon County Council,20/08/2012,CFADDAY30018821,REDACTED UNDER DP ACT,835.52,OGWELL GRANGE LTD,110454,,People Services,Care Spot - Private (3rd),5701,B
18,Devon County Council,08/08/2012,CFADRES30066189,REDACTED UNDER DP ACT,11766.14,OGWELL GRANGE LTD,110454,,People Services,Care Spot - Private (3rd),5701,B
18,Devon County Council,22/08/2012,CFADRES30066863,REDACTED UNDER DP ACT,11114.24,OGWELL GRANGE LTD,110454,,People Services,Care Spot - Private (3rd),5701,B
18,Devon County Council,08/08/2012,CFADRES30066491,REDACTED UNDER DP ACT,8191.54,OKECROFT,277435,,People Services,Care Spot - Private (3rd),5701,B
18,Devon County Council,22/08/2012,CFADRES30067163,REDACTED UNDER DP ACT,8191.54,OKECROFT,277435,,People Services,Care Spot - Private (3rd),5701,B
18,Devon County Council,08/08/2012,CFADRES30066185,REDACTED UNDER DP ACT,1512.68,OLD VICARAGE OTTERTON,107590,,People Services,Care Spot - Private (3rd),5701,B
18,Devon County Council,22/08/2012,CFADRES30066859,REDACTED UNDER DP ACT,3010.68,OLD VICARAGE OTTERTON,107590,,People Services,Care Spot - Private (3rd),5701,B
18,Devon County Council,08/08/2012,CFADRES30066483,REDACTED UNDER DP ACT,1002.02,OLD VICARAGE RESIDENTIAL HOME,275410,,People Services,Care Spot - Private (3rd),5701,B
18,Devon County Council,22/08/2012,CFADRES30067155,REDACTED UNDER DP ACT,1002.02,OLD VICARAGE RESIDENTIAL HOME,275410,,People Services,Care Spot - Private (3rd),5701,B
18,Devon County Council,08/08/2012,CFADDAY30018360,REDACTED UNDER DP ACT,4182,ORCHARD VIEW CARE HOME,89507,,People Services,Individualised Support - Private (3rd),5706,B
18,Devon County Council,08/08/2012,CFADDAY30018361,REDACTED UNDER DP ACT,2768.92,ORCHARD VIEW CARE HOME,89507,,People Services,Individualised Support - Private (3rd),5706,B
18,Devon County Council,08/08/2012,CFADRES30065998,REDACTED UNDER DP ACT,9329.56,ORCHARD VIEW CARE HOME,89507,,People Services,Care Spot - Private (3rd),5701,B
18,Devon County Council,22/08/2012,CFADRES30066673,REDACTED UNDER DP ACT,9329.56,ORCHARD VIEW CARE HOME,89507,,People Services,Care Spot - Private (3rd),5701,B
18,Devon County Council,01/08/2012,CFADDAY30018182,REDACTED UNDER DP ACT,1945.88,OTTERHAYES TRUST LTD,90675,,People Services,Individualised Support - Private (3rd),5706,B
18,Devon County Council,01/08/2012,CFADDAY30018183,REDACTED UNDER DP ACT,1180,OTTERHAYES TRUST LTD,90675,,People Services,Individualised Support - Private (3rd),5706,B
18,Devon County Council,01/08/2012,CFADDAY30018184,REDACTED UNDER DP ACT,1896,OTTERHAYES TRUST LTD,90675,,People Services,Individualised Support - Private (3rd),5706,B
18,Devon County Council,01/08/2012,CFADDAY30018185,REDACTED UNDER DP ACT,1180,OTTERHAYES TRUST LTD,90675,,People Services,Individualised Support - Private (3rd),5706,B
18,Devon County Council,01/08/2012,CFADDAY30018186,REDACTED UNDER DP ACT,1652,OTTERHAYES TRUST LTD,90675,,People Services,Individualised Support - Private (3rd),5706,B
18,Devon County Council,01/08/2012,CFADDAY30018187,REDACTED UNDER DP ACT,1416,OTTERHAYES TRUST LTD,90675,,People Services,Individualised Support - Private (3rd),5706,B
18,Devon County Council,01/08/2012,CFADDAY30018188,REDACTED UNDER DP ACT,1652,OTTERHAYES TRUST LTD,90675,,People Services,Individualised Support - Private (3rd),5706,B
18,Devon County Council,01/08/2012,CFADDAY30018189,REDACTED UNDER DP ACT,1180,OTTERHAYES TRUST LTD,90675,,People Services,Individualised Support - Private (3rd),5706,B
18,Devon County Council,01/08/2012,CFADDAY30018190,REDACTED UNDER DP ACT,1813.24,OTTERHAYES TRUST LTD,90675,,People Services,Individualised Support - Private (3rd),5706,B
18,Devon County Council,06/08/2012,CFADDAY30018266,REDACTED UNDER DP ACT,1864.72,OTTERHAYES TRUST LTD,90675,,People Services,Individualised Support - Private (3rd),5706,B
18,Devon County Council,08/08/2012,CFADRES30066108,REDACTED UNDER DP ACT,3222.84,OTTERHAYES TRUST LTD,90675,,People Services,Care Spot - Private (3rd),5701,B
18,Devon County Council,22/08/2012,CFADRES30066783,REDACTED UNDER DP ACT,3222.84,OTTERHAYES TRUST LTD,90675,,People Services,Care Spot - Private (3rd),5701,B
18,Devon County Council,08/08/2012,CFADRES30066485,REDACTED UNDER DP ACT,992.3,OVERDALE,276369,,People Services,Care Spot - Private (3rd),5701,B
18,Devon County Council,22/08/2012,CFADRES30067157,REDACTED UNDER DP ACT,992.3,OVERDALE,276369,,People Services,Care Spot - Private (3rd),5701,B
18,Devon County Council,08/08/2012,CFADRES30066506,REDACTED UNDER DP ACT,918.75,OVERLEAT RESIDENTIAL CARE HOME,281124,,People Services,Care Spot - Private (3rd),5701,B
18,Devon County Council,22/08/2012,CFADRES30067178,REDACTED UNDER DP ACT,4578.75,OVERLEAT RESIDENTIAL CARE HOME,281124,,People Services,Care Spot - Private (3rd),5701,B
18,Devon County Council,08/08/2012,CFADRES17332296,REDACTED UNDER DP ACT,-1745.87,PALM COURT NURSING HOME LTD,87033,,People Services,Care Spot - Private (3rd),5701,B
18,Devon County Council,08/08/2012,CFADRES30066184,REDACTED UNDER DP ACT,1578.46,PARADISE HOUSE ASSOCIATION LTD,107043,,People Services,Care Spot - Private (3rd),5701,B
18,Devon County Council,22/08/2012,CFADRES30066858,REDACTED UNDER DP ACT,1578.46,PARADISE HOUSE ASSOCIATION LTD,107043,,People Services,Care Spot - Private (3rd),5701,B
18,Devon County Council,08/08/2012,CFADRES30066156,REDACTED UNDER DP ACT,3068.86,PARIKIA APL DG HARDEE T/A,99658,,People Services,Care Spot - Private (3rd),5701,B
18,Devon County Council,22/08/2012,CFADRES30066830,REDACTED UNDER DP ACT,3068.86,PARIKIA APL DG HARDEE T/A,99658,,People Services,Care Spot - Private (3rd),5701,B
18,Devon County Council,08/08/2012,CFADRES30066096,REDACTED UNDER DP ACT,10858,PARK HOUSE RESIDENTIAL HOME,90590,,People Services,Care Spot - Private (3rd),5701,B
18,Devon County Council,22/08/2012,CFADRES30066770,REDACTED UNDER DP ACT,11895.14,PARK HOUSE RESIDENTIAL HOME,90590,,People Services,Care Spot - Private (3rd),5701,B
18,Devon County Council,08/08/2012,CFADRES30066090,REDACTED UNDER DP ACT,15292.01,PARKLAND HOUSE,90529,,People Services,Care Spot - Private (3rd),5701,B
18,Devon County Council,22/08/2012,CFADRES30066764,REDACTED UNDER DP ACT,13774.52,PARKLAND HOUSE,90529,,People Services,Care Spot - Private (3rd),5701,B
18,Devon County Council,08/08/2012,CFADRES30066119,REDACTED UNDER DP ACT,4383.73,PARKLANDS RESIDENTIAL HOME,90789,,People Services,Care Spot - Private (3rd),5701,B
18,Devon County Council,22/08/2012,CFADRES30066793,REDACTED UNDER DP ACT,5363.44,PARKLANDS RESIDENTIAL HOME,90789,,People Services,Care Spot - Private (3rd),5701,B
18,Devon County Council,08/08/2012,CFADRES30066413,REDACTED UNDER DP ACT,1500,PARKVIEW HOUSE,236450,,People Services,Care Spot - Private (3rd),5701,B
18,Devon County Council,22/08/2012,CFADRES30067085,REDACTED UNDER DP ACT,1500,PARKVIEW HOUSE,236450,,People Services,Care Spot - Private (3rd),5701,B
18,Devon County Council,08/08/2012,CFADRES30066094,REDACTED UNDER DP ACT,4321.87,PARKVIEW SOCIETY LTD,90583,,People Services,Care Spot - Private (3rd),5701,B
18,Devon County Council,22/08/2012,CFADRES30066768,REDACTED UNDER DP ACT,4132.12,PARKVIEW SOCIETY LTD,90583,,People Services,Care Spot - Private (3rd),5701,B
18,Devon County Council,01/08/2012,CFADDOM30040412,REDACTED UNDER DP ACT,2088.8,PENCLEASE HOUSE,213058,,People Services,Care Spot - Private (3rd),5701,B
18,Devon County Council,01/08/2012,CFADDOM30040413,REDACTED UNDER DP ACT,626.64,PENCLEASE HOUSE,213058,,People Services,Care Spot - Private (3rd),5701,B
18,Devon County Council,01/08/2012,CFADDOM30040417,REDACTED UNDER DP ACT,2088.8,PENCLEASE HOUSE,213058,,People Services,Care Spot - Private (3rd),5701,B
18,Devon County Council,01/08/2012,CFADDOM30040418,REDACTED UNDER DP ACT,701.24,PENCLEASE HOUSE,213058,,People Services,Care Spot - Private (3rd),5701,B
18,Devon County Council,01/08/2012,CFADDOM30040420,REDACTED UNDER DP ACT,1879.92,PENCLEASE HOUSE,213058,,People Services,Care Spot - Private (3rd),5701,B
18,Devon County Council,28/08/2012,CFADDOM30042022,REDACTED UNDER DP ACT,1566.6,PENCLEASE HOUSE,213058,,People Services,Care Spot - Private (3rd),5701,B
18,Devon County Council,28/08/2012,CFADDOM30042023,REDACTED UNDER DP ACT,626.64,PENCLEASE HOUSE,213058,,People Services,Care Spot - Private (3rd),5701,B
18,Devon County Council,28/08/2012,CFADDOM30042027,REDACTED UNDER DP ACT,2088.8,PENCLEASE HOUSE,213058,,People Services,Care Spot - Private (3rd),5701,B
18,Devon County Council,28/08/2012,CFADDOM30042028,REDACTED UNDER DP ACT,626.64,PENCLEASE HOUSE,213058,,People Services,Care Spot - Private (3rd),5701,B
18,Devon County Council,28/08/2012,CFADDOM30042030,REDACTED UNDER DP ACT,1879.92,PENCLEASE HOUSE,213058,,People Services,Care Spot - Private (3rd),5701,B
18,Devon County Council,08/08/2012,CFADRES30066271,REDACTED UNDER DP ACT,3149.28,PENDENNIS RESIDENTIAL HOME,169104,,People Services,Care Spot - Private (3rd),5701,B
18,Devon County Council,22/08/2012,CFADRES30066945,REDACTED UNDER DP ACT,3149.28,PENDENNIS RESIDENTIAL HOME,169104,,People Services,Care Spot - Private (3rd),5701,B
18,Devon County Council,08/08/2012,CFADRES30065992,REDACTED UNDER DP ACT,1108.8,PENDRUCCOMBE HOUSE,89393,,People Services,Care Spot - Private (3rd),5701,B
18,Devon County Council,22/08/2012,CFADRES30066667,REDACTED UNDER DP ACT,1108.8,PENDRUCCOMBE HOUSE,89393,,People Services,Care Spot - Private (3rd),5701,B
18,Devon County Council,13/08/2012,CFADDOM30041054,REDACTED UNDER DP ACT,831.6,PENINSULA CARE DEVON,159339,,People Services,Care Spot - Private (3rd),5701,B
18,Devon County Council,13/08/2012,CFADDOM30041055,REDACTED UNDER DP ACT,893.2,PENINSULA CARE DEVON,159339,,People Services,Care Spot - Private (3rd),5701,B
18,Devon County Council,13/08/2012,CFADDOM30041058,REDACTED UNDER DP ACT,646.8,PENINSULA CARE DEVON,159339,,People Services,Care Spot - Private (3rd),5701,B
18,Devon County Council,13/08/2012,CFADDOM30041063,REDACTED UNDER DP ACT,1031.8,PENINSULA CARE DEVON,159339,,People Services,Care Spot - Private (3rd),5701,B
18,Devon County Council,13/08/2012,CFADDOM30041068,REDACTED UNDER DP ACT,708.4,PENINSULA CARE DEVON,159339,,People Services,Care Spot - Private (3rd),5701,B
18,Devon County Council,13/08/2012,CFADDOM30041070,REDACTED UNDER DP ACT,1478.4,PENINSULA CARE DEVON,159339,,People Services,Care Spot - Private (3rd),5701,B
18,Devon County Council,13/08/2012,CFADDOM30041072,REDACTED UNDER DP ACT,539,PENINSULA CARE DEVON,159339,,People Services,Care Spot - Private (3rd),5701,B
18,Devon County Council,13/08/2012,CFADDOM30041073,REDACTED UNDER DP ACT,646.8,PENINSULA CARE DEVON,159339,,People Services,Care Spot - Private (3rd),5701,B
18,Devon County Council,13/08/2012,CFADDOM30041075,REDACTED UNDER DP ACT,1339.8,PENINSULA CARE DEVON,159339,,People Services,Care Spot - Private (3rd),5701,B
18,Devon County Council,13/08/2012,CFADDOM30041076,REDACTED UNDER DP ACT,754.6,PENINSULA CARE DEVON,159339,,People Services,Care Spot - Private (3rd),5701,B
18,Devon County Council,13/08/2012,CFADDOM30041077,REDACTED UNDER DP ACT,862.4,PENINSULA CARE DEVON,159339,,People Services,Care Spot - Private (3rd),5701,B
18,Devon County Council,13/08/2012,CFADDOM30041078,REDACTED UNDER DP ACT,600.6,PENINSULA CARE DEVON,159339,,People Services,Care Spot - Private (3rd),5701,B
18,Devon County Council,13/08/2012,CFADDOM30041082,REDACTED UNDER DP ACT,616,PENINSULA CARE DEVON,159339,,People Services,Care Spot - Private (3rd),5701,B
18,Devon County Council,20/08/2012,CFADDOM30041720,REDACTED UNDER DP ACT,2130,PENINSULA CARE DEVON,159339,,People Services,Care Spot - Private (3rd),5701,B
18,Devon County Council,20/08/2012,CFADDOM30041721,REDACTED UNDER DP ACT,1001,PENINSULA CARE DEVON,159339,,People Services,Care Spot - Private (3rd),5701,B
18,Devon County Council,08/08/2012,CFADRES30066210,REDACTED UNDER DP ACT,7985.31,PENINSULA CARE HOMES LTD,124008,,People Services,Care Spot - Private (3rd),5701,B
18,Devon County Council,22/08/2012,CFADRES30066884,REDACTED UNDER DP ACT,10653.16,PENINSULA CARE HOMES LTD,124008,,People Services,Care Spot - Private (3rd),5701,B
18,Devon County Council,08/08/2012,CFADRES30066366,REDACTED UNDER DP ACT,988.9,PENNWOOD LODGE NURSING HOME,216348,,People Services,Care Spot - Private (3rd),5701,B
18,Devon County Council,22/08/2012,CFADRES30067039,REDACTED UNDER DP ACT,988.9,PENNWOOD LODGE NURSING HOME,216348,,People Services,Care Spot - Private (3rd),5701,B
18,Devon County Council,08/08/2012,CFADRES30066000,REDACTED UNDER DP ACT,3663.72,PHILLIPS T/A KORNILOFF GJ & JS,89545,,People Services,Care Spot - Private (3rd),5701,B
18,Devon County Council,22/08/2012,CFADRES30066675,REDACTED UNDER DP ACT,3663.72,PHILLIPS T/A KORNILOFF GJ & JS,89545,,People Services,Care Spot - Private (3rd),5701,B
18,Devon County Council,22/08/2012,CFADRES30066714,REDACTED UNDER DP ACT,8994.04,PHILLIPS WN&D,90044,927522419,People Services,Care Spot - Private (3rd),5701,B
18,Devon County Council,13/08/2012,CFADDAY30018524,REDACTED UNDER DP ACT,1926.43,PHOENIX LEARNING & CARE LTD,100780,,People Services,Individualised Support - Private (3rd),5706,B
18,Devon County Council,13/08/2012,CFADDAY30018525,REDACTED UNDER DP ACT,2466.3,PHOENIX LEARNING & CARE LTD,100780,,People Services,Individualised Support - Private (3rd),5706,B
18,Devon County Council,13/08/2012,CFADDAY30018526,REDACTED UNDER DP ACT,2548.51,PHOENIX LEARNING & CARE LTD,100780,,People Services,Individualised Support - Private (3rd),5706,B
18,Devon County Council,08/08/2012,CFADRES30066162,REDACTED UNDER DP ACT,2200.42,PHOENIX LEARNING & CARE LTD,100780,,People Services,Care Spot - Private (3rd),5701,B
18,Devon County Council,22/08/2012,CFADRES30066836,REDACTED UNDER DP ACT,2200.42,PHOENIX LEARNING & CARE LTD,100780,,People Services,Care Spot - Private (3rd),5701,B
18,Devon County Council,08/08/2012,CFADRES30066382,REDACTED UNDER DP ACT,3648.64,PHOENIX LODGE,225836,,People Services,Care Spot - Private (3rd),5701,B
18,Devon County Council,22/08/2012,CFADRES30067054,REDACTED UNDER DP ACT,3648.64,PHOENIX LODGE,225836,,People Services,Care Spot - Private (3rd),5701,B
18,Devon County Council,08/08/2012,CFADRES30066098,REDACTED UNDER DP ACT,10993.89,PINEHURST,90592,,People Services,Care Spot - Private (3rd),5701,B
18,Devon County Council,08/08/2012,CFADRES30066278,REDACTED UNDER DP ACT,7244.7,PINEHURST,171536,,People Services,Care Spot - Private (3rd),5701,B
18,Devon County Council,22/08/2012,CFADRES30066772,REDACTED UNDER DP ACT,10285.82,PINEHURST,90592,,People Services,Care Spot - Private (3rd),5701,B
18,Devon County Council,22/08/2012,CFADRES30066952,REDACTED UNDER DP ACT,8571.43,PINEHURST,171536,,People Services,Care Spot - Private (3rd),5701,B
18,Devon County Council,08/08/2012,CFADDOM30040840,REDACTED UNDER DP ACT,824.32,PINEWOOD NURSING HOME,159483,,People Services,Care Spot - Private (3rd),5701,B
18,Devon County Council,08/08/2012,CFADDOM30040841,REDACTED UNDER DP ACT,684.48,PINEWOOD NURSING HOME,159483,,People Services,Care Spot - Private (3rd),5701,B
18,Devon County Council,08/08/2012,CFADDOM30040845,REDACTED UNDER DP ACT,552,PINEWOOD NURSING HOME,159483,,People Services,Care Spot - Private (3rd),5701,B
18,Devon County Council,08/08/2012,CFADDOM30040847,REDACTED UNDER DP ACT,787.52,PINEWOOD NURSING HOME,159483,,People Services,Care Spot - Private (3rd),5701,B
18,Devon County Council,08/08/2012,CFADDOM30040851,REDACTED UNDER DP ACT,566.72,PINEWOOD NURSING HOME,159483,,People Services,Care Spot - Private (3rd),5701,B
18,Devon County Council,08/08/2012,CFADDOM30040854,REDACTED UNDER DP ACT,610.88,PINEWOOD NURSING HOME,159483,,People Services,Care Spot - Private (3rd),5701,B
18,Devon County Council,08/08/2012,CFADRES30066099,REDACTED UNDER DP ACT,4102,PINHAY PARTNERSHIP,90595,918492005,People Services,Care Spot - Private (3rd),5701,B
18,Devon County Council,22/08/2012,CFADRES30066773,REDACTED UNDER DP ACT,7436.18,PINHAY PARTNERSHIP,90595,918492005,People Services,Care Spot - Private (3rd),5701,B
18,Devon County Council,01/08/2012,CFADDAY30018242,REDACTED UNDER DP ACT,3930,PLATINUM LIVING DEVON LTD,250083,,People Services,Individualised Support - Private (3rd),5706,B
18,Devon County Council,15/08/2012,CFADDAY30018683,REDACTED UNDER DP ACT,3930,PLATINUM LIVING DEVON LTD,250083,,People Services,Individualised Support - Private (3rd),5706,B
18,Devon County Council,13/08/2012,CFADDOM30041156,REDACTED UNDER DP ACT,864.5,PLATINUM PLUS HEALTHCARE LTD,237129,,People Services,Care Spot - Private (3rd),5701,B
18,Devon County Council,13/08/2012,CFADDOM30041157,REDACTED UNDER DP ACT,938,PLATINUM PLUS HEALTHCARE LTD,237129,,People Services,Care Spot - Private (3rd),5701,B
18,Devon County Council,13/08/2012,CFADDOM30041159,REDACTED UNDER DP ACT,784,PLATINUM PLUS HEALTHCARE LTD,237129,,People Services,Care Spot - Private (3rd),5701,B
18,Devon County Council,13/08/2012,CFADDOM30041161,REDACTED UNDER DP ACT,1568,PLATINUM PLUS HEALTHCARE LTD,237129,,People Services,Care Spot - Private (3rd),5701,B
18,Devon County Council,13/08/2012,CFADDOM30041162,REDACTED UNDER DP ACT,1092,PLATINUM PLUS HEALTHCARE LTD,237129,,People Services,Care Spot - Private (3rd),5701,B
18,Devon County Council,13/08/2012,CFADDOM30041163,REDACTED UNDER DP ACT,882,PLATINUM PLUS HEALTHCARE LTD,237129,,People Services,Care Spot - Private (3rd),5701,B
18,Devon County Council,08/08/2012,CFADRES30066474,REDACTED UNDER DP ACT,824,POPLARS THE,270234,,People Services,Care Spot - Private (3rd),5701,B
18,Devon County Council,22/08/2012,CFADRES30067146,REDACTED UNDER DP ACT,824,POPLARS THE,270234,,People Services,Care Spot - Private (3rd),5701,B
18,Devon County Council,08/08/2012,CFADRES30066355,REDACTED UNDER DP ACT,9325.14,POTTLES COURT,207641,,People Services,Care Spot - Private (3rd),5701,B
18,Devon County Council,22/08/2012,CFADRES30067028,REDACTED UNDER DP ACT,9107.42,POTTLES COURT,207641,,People Services,Care Spot - Private (3rd),5701,B
18,Devon County Council,20/08/2012,CFADDOM30041799,REDACTED UNDER DP ACT,1341,PREMIER COMMUNITY SERVICES LTD,236361,,People Services,Care Spot - Private (3rd),5701,B
18,Devon County Council,29/08/2012,CFADDOM30042071,REDACTED UNDER DP ACT,2156,PREMIER COMMUNITY SERVICES LTD,236361,,People Services,Care Spot - Private (3rd),5701,B
18,Devon County Council,29/08/2012,CFADDOM30042072,REDACTED UNDER DP ACT,831.6,PREMIER COMMUNITY SERVICES LTD,236361,,People Services,Care Spot - Private (3rd),5701,B
18,Devon County Council,29/08/2012,CFADDOM30042073,REDACTED UNDER DP ACT,539,PREMIER COMMUNITY SERVICES LTD,236361,,People Services,Care Spot - Private (3rd),5701,B
18,Devon County Council,29/08/2012,CFADDOM30042076,REDACTED UNDER DP ACT,1355.2,PREMIER COMMUNITY SERVICES LTD,236361,,People Services,Care Spot - Private (3rd),5701,B
18,Devon County Council,29/08/2012,CFADDOM30042077,REDACTED UNDER DP ACT,542.85,PREMIER COMMUNITY SERVICES LTD,236361,,People Services,Care Spot - Private (3rd),5701,B
18,Devon County Council,29/08/2012,CFADDOM30042079,REDACTED UNDER DP ACT,862.4,PREMIER COMMUNITY SERVICES LTD,236361,,People Services,Care Spot - Private (3rd),5701,B
18,Devon County Council,29/08/2012,CFADDOM30042080,REDACTED UNDER DP ACT,1293.6,PREMIER COMMUNITY SERVICES LTD,236361,,People Services,Care Spot - Private (3rd),5701,B
18,Devon County Council,29/08/2012,CFADDOM30042081,REDACTED UNDER DP ACT,589.05,PREMIER COMMUNITY SERVICES LTD,236361,,People Services,Care Spot - Private (3rd),5701,B
18,Devon County Council,29/08/2012,CFADDOM30042082,REDACTED UNDER DP ACT,731.5,PREMIER COMMUNITY SERVICES LTD,236361,,People Services,Care Spot - Private (3rd),5701,B
18,Devon County Council,29/08/2012,FINEAAD30661385,1126,531.3,PREMIER COMMUNITY SERVICES LTD,236361,,People Services,Care Spot - Private (3rd),5701,B
18,Devon County Council,08/08/2012,CFADRES30066549,REDACTED UNDER DP ACT,782,PRIME LIFE LTD T/A FIR CLOSE,291236,,People Services,Care Spot - Private (3rd),5701,B
18,Devon County Council,22/08/2012,CFADRES30067218,REDACTED UNDER DP ACT,782,PRIME LIFE LTD T/A FIR CLOSE,291236,,People Services,Care Spot - Private (3rd),5701,B
18,Devon County Council,08/08/2012,CFADRES30066013,REDACTED UNDER DP ACT,2107.66,PRIMROSE HOUSE ACCOUNT,89742,,People Services,Care Spot - Private (3rd),5701,B
18,Devon County Council,22/08/2012,CFADRES30066688,REDACTED UNDER DP ACT,2107.66,PRIMROSE HOUSE ACCOUNT,89742,,People Services,Care Spot - Private (3rd),5701,B
18,Devon County Council,08/08/2012,CFADRES30066447,REDACTED UNDER DP ACT,952,PRIMROSE LODGE,256495,,People Services,Care Spot - Private (3rd),5701,B
18,Devon County Council,22/08/2012,CFADRES30067120,REDACTED UNDER DP ACT,952,PRIMROSE LODGE,256495,,People Services,Care Spot - Private (3rd),5701,B
18,Devon County Council,08/08/2012,CFADRES30066180,REDACTED UNDER DP ACT,3310.76,PRIORS PEASE RESIDENTIAL HOME,105459,,People Services,Care Spot - Private (3rd),5701,B
18,Devon County Council,22/08/2012,CFADRES30066854,REDACTED UNDER DP ACT,3310.76,PRIORS PEASE RESIDENTIAL HOME,105459,,People Services,Care Spot - Private (3rd),5701,B
18,Devon County Council,08/08/2012,CFADDOM30040861,REDACTED UNDER DP ACT,1932.7,PRIORY RESIDENTIAL CARE HOME,195039,,People Services,Care Spot - Private (3rd),5701,B
18,Devon County Council,08/08/2012,CFADRES30066324,REDACTED UNDER DP ACT,6671.62,PRIORY RESIDENTIAL CARE HOME,195039,,People Services,Care Spot - Private (3rd),5701,B
18,Devon County Council,22/08/2012,CFADRES30066997,REDACTED UNDER DP ACT,7354.34,PRIORY RESIDENTIAL CARE HOME,195039,,People Services,Care Spot - Private (3rd),5701,B
18,Devon County Council,08/08/2012,CFADRES30066055,REDACTED UNDER DP ACT,14243.08,PRIVETT JA & BM,90182,,People Services,Care Spot - Private (3rd),5701,B
18,Devon County Council,22/08/2012,CFADRES30066729,REDACTED UNDER DP ACT,14243.08,PRIVETT JA & BM,90182,,People Services,Care Spot - Private (3rd),5701,B
18,Devon County Council,28/08/2012,CFADDOM30041984,REDACTED UNDER DP ACT,19705.83,Q CARE LTD,253549,,People Services,Care Block - Private (3rd),5702,B
18,Devon County Council,28/08/2012,CFADDOM30041985,REDACTED UNDER DP ACT,16526.1,Q CARE LTD,253549,,People Services,Care Block - Private (3rd),5702,B
18,Devon County Council,28/08/2012,CFADDOM30041986,REDACTED UNDER DP ACT,1149.39,Q CARE LTD,253549,,People Services,Care Block - Private (3rd),5702,B
18,Devon County Council,08/08/2012,CFADRES30066557,REDACTED UNDER DP ACT,5032.5,QUANTUM CARE T/A FREEMAN HOUSE,292957,,People Services,Care Spot - Private (3rd),5701,B
18,Devon County Council,22/08/2012,CFADRES30067227,REDACTED UNDER DP ACT,1067.5,QUANTUM CARE T/A FREEMAN HOUSE,292957,,People Services,Care Spot - Private (3rd),5701,B
18,Devon County Council,08/08/2012,CFADRES30065981,REDACTED UNDER DP ACT,9861.18,QUAY COURT CARE CENTRE LTD,89250,,People Services,Care Spot - Private (3rd),5701,B
18,Devon County Council,22/08/2012,CFADRES30066656,REDACTED UNDER DP ACT,8345.94,QUAY COURT CARE CENTRE LTD,89250,,People Services,Care Spot - Private (3rd),5701,B
18,Devon County Council,08/08/2012,CFADRES30066161,REDACTED UNDER DP ACT,6973.38,QUAY COURT CARE CNTR/KAHALA CRT,100778,,People Services,Care Spot - Private (3rd),5701,B
18,Devon County Council,22/08/2012,CFADRES30066835,REDACTED UNDER DP ACT,6973.38,QUAY COURT CARE CNTR/KAHALA CRT,100778,,People Services,Care Spot - Private (3rd),5701,B
18,Devon County Council,08/08/2012,CFADRES30066411,REDACTED UNDER DP ACT,870.6,R M J J HEALTHCARE TA FANSHAWE,236091,,People Services,Care Spot - Private (3rd),5701,B
18,Devon County Council,22/08/2012,CFADRES30067083,REDACTED UNDER DP ACT,870.6,R M J J HEALTHCARE TA FANSHAWE,236091,,People Services,Care Spot - Private (3rd),5701,B
18,Devon County Council,08/08/2012,CFADRES30066473,REDACTED UNDER DP ACT,821.28,R N I B KATHLEEN CHAMBERS HOUSE,269873,,People Services,Care Spot - Private (3rd),5701,B
18,Devon County Council,22/08/2012,CFADRES30067145,REDACTED UNDER DP ACT,821.28,R N I B KATHLEEN CHAMBERS HOUSE,269873,,People Services,Care Spot - Private (3rd),5701,B
18,Devon County Council,01/08/2012,CFADDOM30040459,REDACTED UNDER DP ACT,547.2,R V CARE SOMERSET LTD,269911,,People Services,Care Spot - Private (3rd),5701,B
18,Devon County Council,01/08/2012,CFADDOM30040461,REDACTED UNDER DP ACT,1411.2,R V CARE SOMERSET LTD,269911,,People Services,Care Spot - Private (3rd),5701,B
18,Devon County Council,01/08/2012,CFADDOM30040465,REDACTED UNDER DP ACT,903.6,R V CARE SOMERSET LTD,269911,,People Services,Care Spot - Private (3rd),5701,B
18,Devon County Council,01/08/2012,CFADDOM30040467,REDACTED UNDER DP ACT,1785.6,R V CARE SOMERSET LTD,269911,,People Services,Care Spot - Private (3rd),5701,B
18,Devon County Council,01/08/2012,CFADDOM30040468,REDACTED UNDER DP ACT,583.2,R V CARE SOMERSET LTD,269911,,People Services,Care Spot - Private (3rd),5701,B
18,Devon County Council,01/08/2012,CFADDOM30040471,REDACTED UNDER DP ACT,1785.6,R V CARE SOMERSET LTD,269911,,People Services,Care Spot - Private (3rd),5701,B
18,Devon County Council,01/08/2012,CFADDOM30040479,REDACTED UNDER DP ACT,921.6,R V CARE SOMERSET LTD,269911,,People Services,Care Spot - Private (3rd),5701,B
18,Devon County Council,01/08/2012,CFADDOM30040482,REDACTED UNDER DP ACT,907.2,R V CARE SOMERSET LTD,269911,,People Services,Care Spot - Private (3rd),5701,B
18,Devon County Council,08/08/2012,CFADDOM30040951,REDACTED UNDER DP ACT,1814.4,R V CARE SOMERSET LTD,269911,,People Services,Care Spot - Private (3rd),5701,B
18,Devon County Council,08/08/2012,CFADDOM30040952,REDACTED UNDER DP ACT,1814.4,R V CARE SOMERSET LTD,269911,,People Services,Care Spot - Private (3rd),5701,B
18,Devon County Council,08/08/2012,CFADDOM30040953,REDACTED UNDER DP ACT,1814.4,R V CARE SOMERSET LTD,269911,,People Services,Care Spot - Private (3rd),5701,B
18,Devon County Council,08/08/2012,CFADDOM30040954,REDACTED UNDER DP ACT,1828.8,R V CARE SOMERSET LTD,269911,,People Services,Care Spot - Private (3rd),5701,B
18,Devon County Council,08/08/2012,CFADDOM30040955,REDACTED UNDER DP ACT,579.6,R V CARE SOMERSET LTD,269911,,People Services,Care Spot - Private (3rd),5701,B
18,Devon County Council,15/08/2012,CFADDOM30041550,REDACTED UNDER DP ACT,907.2,R V CARE SOMERSET LTD,269911,,People Services,Care Spot - Private (3rd),5701,B
18,Devon County Council,15/08/2012,CFADDOM30041556,REDACTED UNDER DP ACT,705.6,R V CARE SOMERSET LTD,269911,,People Services,Care Spot - Private (3rd),5701,B
18,Devon County Council,15/08/2012,CFADDOM30041559,REDACTED UNDER DP ACT,1094.4,R V CARE SOMERSET LTD,269911,,People Services,Care Spot - Private (3rd),5701,B
18,Devon County Council,15/08/2012,CFADDOM30041561,REDACTED UNDER DP ACT,846,R V CARE SOMERSET LTD,269911,,People Services,Care Spot - Private (3rd),5701,B
18,Devon County Council,15/08/2012,CFADDOM30041567,REDACTED UNDER DP ACT,1814.4,R V CARE SOMERSET LTD,269911,,People Services,Care Spot - Private (3rd),5701,B
18,Devon County Council,15/08/2012,CFADDOM30041571,REDACTED UNDER DP ACT,504,R V CARE SOMERSET LTD,269911,,People Services,Care Spot - Private (3rd),5701,B
18,Devon County Council,15/08/2012,CFADDOM30041572,REDACTED UNDER DP ACT,900,R V CARE SOMERSET LTD,269911,,People Services,Care Spot - Private (3rd),5701,B
18,Devon County Council,29/08/2012,CFADDOM30042086,REDACTED UNDER DP ACT,2016,R V CARE SOMERSET LTD,269911,,People Services,Care Spot - Private (3rd),5701,B
18,Devon County Council,29/08/2012,CFADDOM30042087,REDACTED UNDER DP ACT,1400.4,R V CARE SOMERSET LTD,269911,,People Services,Care Spot - Private (3rd),5701,B
18,Devon County Council,08/08/2012,CFADRES30066114,REDACTED UNDER DP ACT,4568.16,RADWAY LODGE PARTNERSHIP,90726,,People Services,Care Spot - Private (3rd),5701,B
18,Devon County Council,22/08/2012,CFADRES30066788,REDACTED UNDER DP ACT,959.03,RADWAY LODGE PARTNERSHIP,90726,,People Services,Care Spot - Private (3rd),5701,B
18,Devon County Council,08/08/2012,CFADRES30066450,REDACTED UNDER DP ACT,741,RATAN HOMES LTD T/A GROVE HOUSE,258455,,People Services,Care Spot - Private (3rd),5701,B
18,Devon County Council,22/08/2012,CFADRES30067123,REDACTED UNDER DP ACT,741,RATAN HOMES LTD T/A GROVE HOUSE,258455,,People Services,Care Spot - Private (3rd),5701,B
18,Devon County Council,08/08/2012,CFADRES30066478,REDACTED UNDER DP ACT,736,RAVENHURST CARE HOME,272303,,People Services,Care Spot - Private (3rd),5701,B
18,Devon County Council,22/08/2012,CFADRES30067150,REDACTED UNDER DP ACT,736,RAVENHURST CARE HOME,272303,,People Services,Care Spot - Private (3rd),5701,B
18,Devon County Council,22/08/2012,CFADRES30067047,REDACTED UNDER DP ACT,12252.82,RAWLYN HOUSE,220682,,People Services,Care Spot - Private (3rd),5701,B
18,Devon County Council,22/08/2012,CFADRES30066629,REDACTED UNDER DP ACT,21292.92,REDMOUNT NURSING HOME,89007,,People Services,Care Spot - Private (3rd),5701,B
18,Devon County Council,08/08/2012,CFADRES30066442,REDACTED UNDER DP ACT,801.26,REDWOOD HOUSE RESIDENTIAL HOME,252171,,People Services,Care Spot - Private (3rd),5701,B
18,Devon County Council,22/08/2012,CFADRES30067115,REDACTED UNDER DP ACT,801.26,REDWOOD HOUSE RESIDENTIAL HOME,252171,,People Services,Care Spot - Private (3rd),5701,B
18,Devon County Council,08/08/2012,CFADRES30065994,REDACTED UNDER DP ACT,1591.02,RENAISSANCE CARE SERVICES LTD,89421,927308909,People Services,Care Spot - Private (3rd),5701,B
18,Devon County Council,22/08/2012,CFADRES30066669,REDACTED UNDER DP ACT,1591.02,RENAISSANCE CARE SERVICES LTD,89421,927308909,People Services,Care Spot - Private (3rd),5701,B
18,Devon County Council,08/08/2012,CFADRES30066118,REDACTED UNDER DP ACT,13546.71,REST HAVEN,90785,,People Services,Care Spot - Private (3rd),5701,B
18,Devon County Council,22/08/2012,CFADRES30066792,REDACTED UNDER DP ACT,13191,REST HAVEN,90785,,People Services,Care Spot - Private (3rd),5701,B
18,Devon County Council,08/08/2012,CFADRES30066160,REDACTED UNDER DP ACT,957.94,RETREAT CARE HOME LTD,100777,,People Services,Care Spot - Private (3rd),5701,B
18,Devon County Council,22/08/2012,CFADRES30066834,REDACTED UNDER DP ACT,957.94,RETREAT CARE HOME LTD,100777,,People Services,Care Spot - Private (3rd),5701,B
18,Devon County Council,08/08/2012,CFADRES30066209,REDACTED UNDER DP ACT,922.3,RIDGE HOUSE,123407,,People Services,Care Spot - Private (3rd),5701,B
18,Devon County Council,22/08/2012,CFADRES30066883,REDACTED UNDER DP ACT,922.3,RIDGE HOUSE,123407,,People Services,Care Spot - Private (3rd),5701,B
18,Devon County Council,08/08/2012,CFADRES30065975,REDACTED UNDER DP ACT,3493.8,RIDGEWAY RES HOME LTD (HOMES),89204,,People Services,Care Spot - Private (3rd),5701,B
18,Devon County Council,22/08/2012,CFADRES30066650,REDACTED UNDER DP ACT,3493.8,RIDGEWAY RES HOME LTD (HOMES),89204,,People Services,Care Spot - Private (3rd),5701,B
18,Devon County Council,08/08/2012,CFADRES30066353,REDACTED UNDER DP ACT,7958.91,RISE CARE HOME THE,207075,,People Services,Care Spot - Private (3rd),5701,B
18,Devon County Council,22/08/2012,CFADRES30067026,REDACTED UNDER DP ACT,9526.05,RISE CARE HOME THE,207075,,People Services,Care Spot - Private (3rd),5701,B
18,Devon County Council,08/08/2012,CFADRES30066402,REDACTED UNDER DP ACT,1043.42,RIVER COURT RES & NURSING HOME,231744,,People Services,Care Spot - Private (3rd),5701,B
18,Devon County Council,22/08/2012,CFADRES30067074,REDACTED UNDER DP ACT,1043.42,RIVER COURT RES & NURSING HOME,231744,,People Services,Care Spot - Private (3rd),5701,B
18,Devon County Council,08/08/2012,CFADRES30065953,REDACTED UNDER DP ACT,5321.06,RIVIERA CARE LTD,88995,,People Services,Care Spot - Private (3rd),5701,B
18,Devon County Council,22/08/2012,CFADRES30066628,REDACTED UNDER DP ACT,5911.3,RIVIERA CARE LTD,88995,,People Services,Care Spot - Private (3rd),5701,B
18,Devon County Council,08/08/2012,CFADRES30065908,REDACTED UNDER DP ACT,25453.32,ROBERT OWEN COMMUNITIES,86977,,People Services,Care Spot - Private (3rd),5701,B
18,Devon County Council,22/08/2012,CFADRES30066583,REDACTED UNDER DP ACT,18469.3,ROBERT OWEN COMMUNITIES,86977,,People Services,Care Spot - Private (3rd),5701,B
18,Devon County Council,08/08/2012,CFADRES30066262,REDACTED UNDER DP ACT,10565.42,ROBOROUGH HOUSE NURSING HOME,160844,,People Services,Care Spot - Private (3rd),5701,B
18,Devon County Council,22/08/2012,CFADRES30066936,REDACTED UNDER DP ACT,10911.22,ROBOROUGH HOUSE NURSING HOME,160844,,People Services,Care Spot - Private (3rd),5701,B
18,Devon County Council,08/08/2012,CFADRES30066106,REDACTED UNDER DP ACT,5911.86,ROGERS D&SC T/A ASHDOWN RES HOME,90646,,People Services,Care Spot - Private (3rd),5701,B
18,Devon County Council,22/08/2012,CFADRES30066780,REDACTED UNDER DP ACT,5794.72,ROGERS D&SC T/A ASHDOWN RES HOME,90646,,People Services,Care Spot - Private (3rd),5701,B
18,Devon County Council,08/08/2012,CFADRES30066251,REDACTED UNDER DP ACT,8812.06,ROSE LODGE CARE HOME,157417,,People Services,Care Spot - Private (3rd),5701,B
18,Devon County Council,22/08/2012,CFADRES30066925,REDACTED UNDER DP ACT,9295.88,ROSE LODGE CARE HOME,157417,,People Services,Care Spot - Private (3rd),5701,B
18,Devon County Council,08/08/2012,CFADRES30066244,REDACTED UNDER DP ACT,543.6,ROSEACRE CARE LIMITED,156366,,People Services,Care Spot - Private (3rd),5701,B
18,Devon County Council,22/08/2012,CFADRES30066918,REDACTED UNDER DP ACT,543.6,ROSEACRE CARE LIMITED,156366,,People Services,Care Spot - Private (3rd),5701,B
18,Devon County Council,08/08/2012,CFADRES30066297,REDACTED UNDER DP ACT,912.52,ROSEDALE HOUSE,181940,,People Services,Care Spot - Private (3rd),5701,B
18,Devon County Council,22/08/2012,CFADRES30066970,REDACTED UNDER DP ACT,912.52,ROSEDALE HOUSE,181940,,People Services,Care Spot - Private (3rd),5701,B
18,Devon County Council,08/08/2012,CFADRES30066480,REDACTED UNDER DP ACT,607.04,ROSEHAVEN RESIDENTIAL CARE HOME,273171,,People Services,Care Spot - Private (3rd),5701,B
18,Devon County Council,22/08/2012,CFADRES30067152,REDACTED UNDER DP ACT,607.04,ROSEHAVEN RESIDENTIAL CARE HOME,273171,,People Services,Care Spot - Private (3rd),5701,B
18,Devon County Council,20/08/2012,CFADDAY30018753,REDACTED UNDER DP ACT,506.78,ROSEHILL REST HOME,88750,,People Services,Care Spot - Private (3rd),5701,B
18,Devon County Council,08/08/2012,CFADRES30065944,REDACTED UNDER DP ACT,7425.52,ROSEHILL REST HOME,88750,,People Services,Care Spot - Private (3rd),5701,B
18,Devon County Council,22/08/2012,CFADRES30066619,REDACTED UNDER DP ACT,7069.81,ROSEHILL REST HOME,88750,,People Services,Care Spot - Private (3rd),5701,B
18,Devon County Council,08/08/2012,CFADRES30066002,REDACTED UNDER DP ACT,3678.84,ROSEMONT RESIDENTIAL HOME,89560,,People Services,Care Spot - Private (3rd),5701,B
18,Devon County Council,22/08/2012,CFADRES30066677,REDACTED UNDER DP ACT,3678.84,ROSEMONT RESIDENTIAL HOME,89560,,People Services,Care Spot - Private (3rd),5701,B
18,Devon County Council,08/08/2012,CFADRES30066555,REDACTED UNDER DP ACT,882.8,ROSEWOOD CARE TA HOLMLEIGH NS HM,292353,,People Services,Care Spot - Private (3rd),5701,B
18,Devon County Council,22/08/2012,CFADRES30067224,REDACTED UNDER DP ACT,882.8,ROSEWOOD CARE TA HOLMLEIGH NS HM,292353,,People Services,Care Spot - Private (3rd),5701,B
18,Devon County Council,08/08/2012,CFADRES30065971,REDACTED UNDER DP ACT,731.64,ROUNDHAM COURT,89155,,People Services,Care Spot - Private (3rd),5701,B
18,Devon County Council,22/08/2012,CFADRES30066646,REDACTED UNDER DP ACT,787.92,ROUNDHAM COURT,89155,,People Services,Care Spot - Private (3rd),5701,B
18,Devon County Council,08/08/2012,CFADRES30066425,REDACTED UNDER DP ACT,782,ROWANS THE,242266,,People Services,Care Spot - Private (3rd),5701,B
18,Devon County Council,22/08/2012,CFADRES30067097,REDACTED UNDER DP ACT,782,ROWANS THE,242266,,People Services,Care Spot - Private (3rd),5701,B
18,Devon County Council,01/08/2012,CFADDAY30018193,REDACTED UNDER DP ACT,600,ROWE J,90959,,People Services,Individualised Support - Private (3rd),5706,B
18,Devon County Council,08/08/2012,CFADRES30066133,REDACTED UNDER DP ACT,4290.3,ROWE J,90959,,People Services,Care Spot - Private (3rd),5701,B
18,Devon County Council,22/08/2012,CFADRES30066807,REDACTED UNDER DP ACT,4290.3,ROWE J,90959,,People Services,Care Spot - Private (3rd),5701,B
18,Devon County Council,08/08/2012,CFADRES30066515,REDACTED UNDER DP ACT,868.36,ROYAL BRTSH LEGN TA DUNKIRK MEML,285004,,People Services,Care Spot - Private (3rd),5701,B
18,Devon County Council,22/08/2012,CFADRES30067184,REDACTED UNDER DP ACT,868.36,ROYAL BRTSH LEGN TA DUNKIRK MEML,285004,,People Services,Care Spot - Private (3rd),5701,B
18,Devon County Council,08/08/2012,CFADRES30066131,REDACTED UNDER DP ACT,13724.83,ROYAL MASONIC BVLNT INST-NO 4 AC,90938,,People Services,Care Spot - Private (3rd),5701,B
18,Devon County Council,22/08/2012,CFADRES30066805,REDACTED UNDER DP ACT,17951.78,ROYAL MASONIC BVLNT INST-NO 4 AC,90938,,People Services,Care Spot - Private (3rd),5701,B
18,Devon County Council,08/08/2012,CFADRES17332301,REDACTED UNDER DP ACT,-807.98,ROYAL MASONIC BVLNT INST-NO 4 AC,90938,,People Services,Residential Income,9365,B
18,Devon County Council,08/08/2012,CFADRES30066097,REDACTED UNDER DP ACT,11859.46,SAINTHILL HOUSE/VISION UK,90591,,People Services,Care Spot - Private (3rd),5701,B
18,Devon County Council,22/08/2012,CFADRES30066771,REDACTED UNDER DP ACT,12323.74,SAINTHILL HOUSE/VISION UK,90591,,People Services,Care Spot - Private (3rd),5701,B
18,Devon County Council,08/08/2012,CFADRES30066245,REDACTED UNDER DP ACT,17660.88,SANCTUARY CARE LTD {RESIDENTIAL),156414,,People Services,Care Spot - Private (3rd),5701,B
18,Devon County Council,08/08/2012,CFADRES30066247,REDACTED UNDER DP ACT,1772.44,SANCTUARY CARE LTD {RESIDENTIAL),156414,,People Services,Care Spot - Private (3rd),5701,B
18,Devon County Council,22/08/2012,CFADRES30066919,REDACTED UNDER DP ACT,15539.16,SANCTUARY CARE LTD {RESIDENTIAL),156414,,People Services,Care Spot - Private (3rd),5701,B
18,Devon County Council,22/08/2012,CFADRES30066921,REDACTED UNDER DP ACT,973.32,SANCTUARY CARE LTD {RESIDENTIAL),156414,,People Services,Care Spot - Private (3rd),5701,B
18,Devon County Council,08/08/2012,CFADRES30066087,REDACTED UNDER DP ACT,14622.26,SANCTUARY H ASSOC T/A GREENSLADE,90484,,People Services,Care Spot - Private (3rd),5701,B
18,Devon County Council,22/08/2012,CFADRES30066761,REDACTED UNDER DP ACT,13531.3,SANCTUARY H ASSOC T/A GREENSLADE,90484,,People Services,Care Spot - Private (3rd),5701,B
18,Devon County Council,08/08/2012,CFADRES30066554,REDACTED UNDER DP ACT,1081.66,SCIO HEALTH CARE LD TA HIGHFIELD,291988,,People Services,Care Spot - Private (3rd),5701,B
18,Devon County Council,22/08/2012,CFADRES30067223,REDACTED UNDER DP ACT,1081.66,SCIO HEALTH CARE LD TA HIGHFIELD,291988,,People Services,Care Spot - Private (3rd),5701,B
18,Devon County Council,08/08/2012,CFADRES30066116,REDACTED UNDER DP ACT,1354.76,SCOPE - FEES COLLECTION ACCOUNT,90767,,People Services,Care Spot - Private (3rd),5701,B
18,Devon County Council,22/08/2012,CFADRES30066790,REDACTED UNDER DP ACT,1354.76,SCOPE - FEES COLLECTION ACCOUNT,90767,,People Services,Care Spot - Private (3rd),5701,B
18,Devon County Council,08/08/2012,CFADRES30065977,REDACTED UNDER DP ACT,919.22,SCOPE FEES COLLECTION ACCOUNT,89217,,People Services,Care Spot - Private (3rd),5701,B
18,Devon County Council,22/08/2012,CFADRES30066652,REDACTED UNDER DP ACT,919.22,SCOPE FEES COLLECTION ACCOUNT,89217,,People Services,Care Spot - Private (3rd),5701,B
18,Devon County Council,08/08/2012,CFADRES30065974,REDACTED UNDER DP ACT,4884.38,SEASWIFT HOUSE,89181,,People Services,Care Spot - Private (3rd),5701,B
18,Devon County Council,22/08/2012,CFADRES30066649,REDACTED UNDER DP ACT,4098.66,SEASWIFT HOUSE,89181,,People Services,Care Spot - Private (3rd),5701,B
18,Devon County Council,08/08/2012,CFADRES30066073,REDACTED UNDER DP ACT,13612.1,SEATON THE,90393,,People Services,Care Spot - Private (3rd),5701,B
18,Devon County Council,08/08/2012,CFADRES30065972,REDACTED UNDER DP ACT,2767.9,SEFTON PARK,89168,,People Services,Care Spot - Private (3rd),5701,B
18,Devon County Council,22/08/2012,CFADRES30066647,REDACTED UNDER DP ACT,2767.9,SEFTON PARK,89168,,People Services,Care Spot - Private (3rd),5701,B
18,Devon County Council,08/08/2012,CFADRES30066102,REDACTED UNDER DP ACT,4798.6,SELF UNLIMITED,90612,,People Services,Care Spot - Private (3rd),5701,B
18,Devon County Council,22/08/2012,CFADRES30066776,REDACTED UNDER DP ACT,4798.6,SELF UNLIMITED,90612,,People Services,Care Spot - Private (3rd),5701,B
18,Devon County Council,08/08/2012,CFADRES30066466,REDACTED UNDER DP ACT,592.86,SELKIRK HOUSE,265298,,People Services,Care Respite - Private (3rd),5703,B
18,Devon County Council,08/08/2012,CFADRES30066414,REDACTED UNDER DP ACT,4146.66,SERENITA CARE HOME,237664,,People Services,Care Spot - Private (3rd),5701,B
18,Devon County Council,22/08/2012,CFADRES30067086,REDACTED UNDER DP ACT,4146.66,SERENITA CARE HOME,237664,,People Services,Care Spot - Private (3rd),5701,B
18,Devon County Council,08/08/2012,CFADRES30066449,REDACTED UNDER DP ACT,4659.32,SESAME,257301,,People Services,Care Spot - Private (3rd),5701,B
18,Devon County Council,22/08/2012,CFADRES30067122,REDACTED UNDER DP ACT,4207.89,SESAME,257301,,People Services,Care Spot - Private (3rd),5701,B
18,Devon County Council,08/08/2012,CFADRES30066416,REDACTED UNDER DP ACT,1100,SHIRE HOUSE,238334,,People Services,Care Spot - Private (3rd),5701,B
18,Devon County Council,22/08/2012,CFADRES30067088,REDACTED UNDER DP ACT,1100,SHIRE HOUSE,238334,,People Services,Care Spot - Private (3rd),5701,B
18,Devon County Council,08/08/2012,CFADRES30065988,REDACTED UNDER DP ACT,5096.38,SILVER THREADS CARE HOME(C IN C),89357,,People Services,Care Spot - Private (3rd),5701,B
18,Devon County Council,22/08/2012,CFADRES30066663,REDACTED UNDER DP ACT,4302.1,SILVER THREADS CARE HOME(C IN C),89357,,People Services,Care Spot - Private (3rd),5701,B
18,Devon County Council,08/08/2012,CFADRES30066047,REDACTED UNDER DP ACT,8368.85,SILVERLEIGH CEDARS,90133,,People Services,Care Spot - Private (3rd),5701,B
18,Devon County Council,22/08/2012,CFADRES30066721,REDACTED UNDER DP ACT,8300.99,SILVERLEIGH CEDARS,90133,,People Services,Care Spot - Private (3rd),5701,B
18,Devon County Council,08/08/2012,CFADRES30066101,REDACTED UNDER DP ACT,7591.46,SMITH JR & RM,90606,,People Services,Care Spot - Private (3rd),5701,B
